Workbook

Sheet Main
B10: 2020-07-15
B12: Sheet No. | C12: Template Name | D12: Summary
B13: 1 | C13: Future Intra | D13: For Intraday trading in F&O segment
B14: 2 | C14: Cash Intra | D14: For Intraday trading in cash market segment
B15: 3 | C15: Mid-cap Intra | D15: For Intraday trading in Mid-cap stocks
B16: 4 | C16: Bulk Deals | D16: Reveals Bulk Deals carried on NSE & BSE
B17: 5 | C17: Call Tracker
K27: `

Sheet Future Intra
M5: Back to Main Page
A6: FOR INTRA DAY TRADING | L6: =Main!B10 -> 2020-07-15
A9: Sr.no | B9: Sector | C9: Scrip | D9: CLOSE RATE | E9: Pivot Point | F9: Supports | I9: Resistances
B10: Sector | D10: Point | E10: Point | F10: S1 | G10: S2 | H10: S3 | I10: R1 | J10: R2 | K10: R3 | L10: HIGH | M10: LOW | N10: OI | O10: % Change in OI
A11: 1 | B11: Index | C11: BANKNIFTY | D11: 21396.50 | E11: 21517.80 | F11: 21091.60 | G11: 20786.70 | H11: 20360.50 | I11: 21822.70 | J11: 22248.90 | K11: 22553.80 | L11: 21944 | M11: 21212.9 | N11: 1784150 | O11: -6.09%
A12: 2 | B12: Index | C12: NIFTY | D12: 10613.85 | E12: 10643.60 | F12: 10523.25 | G12: 10432.65 | H12: 10312.30 | I12: 10734.20 | J12: 10854.55 | K12: 10945.15 | L12: 10763.95 | M12: 10553 | N12: 12604125 | O12: -4.28%
A13: 3 | B13: Cement | C13: ACC | D13: 1295.55 | E13: 1315.52 | F13: 1271.03 | G13: 1246.52 | H13: 1202.03 | I13: 1340.03 | J13: 1384.52 | K13: 1409.03 | L13: 1360 | M13: 1291 | N13: 2063000 | O13: -12.29%
A14: 4 | B14: Others | C14: ADANIENT | D14: 150.10 | E14: 151.93 | F14: 147.17 | G14: 144.23 | H14: 139.47 | I14: 154.87 | J14: 159.63 | K14: 162.57 | L14: 156.7 | M14: 149 | N14: 19400000 | O14: 1.85%
A15: 5 | B15: Others | C15: ADANIPORTS | D15: 321.65 | E15: 325.48 | F15: 317.17 | G15: 312.68 | H15: 304.37 | I15: 329.97 | J15: 338.28 | K15: 342.77 | L15: 333.8 | M15: 321 | N15: 30930000 | O15: -0.57%
A16: 6 | B16: Automobile | C16: AMARAJABAT | D16: 696.10 | E16: 696.52 | F16: 687.08 | G16: 678.07 | H16: 668.63 | I16: 705.53 | J16: 714.97 | K16: 723.98 | L16: 705.95 | M16: 687.5 | N16: 1546000 | O16: -1.02%
A17: 7 | B17: Cement | C17: AMBUJACEM | D17: 191.20 | E17: 193.90 | F17: 188.00 | G17: 184.80 | H17: 178.90 | I17: 197.10 | J17: 203.00 | K17: 206.20 | L17: 199.8 | M17: 190.7 | N17: 17841000 | O17: -3.10%
A18: 8 | B18: Others | C18: APOLLOHOSP | D18: 1441.65 | E18: 1441.40 | F18: 1425.25 | G18: 1408.85 | H18: 1392.70 | I18: 1457.80 | J18: 1473.95 | K18: 1490.35 | L18: 1457.55 | M18: 1425 | N18: 899500 | O18: -0.77%
A19: 9 | B19: Automobile | C19: APOLLOTYRE | D19: 110.50 | E19: 111.58 | F19: 109.17 | G19: 107.83 | H19: 105.42 | I19: 112.92 | J19: 115.33 | K19: 116.67 | L19: 114 | M19: 110.25 | N19: 9725000 | O19: 2.91%
A20: 10 | B20: Automobile | C20: ASHOKLEY | D20: 50.40 | E20: 49.92 | F20: 49.18 | G20: 47.97 | H20: 47.23 | I20: 51.13 | J20: 51.87 | K20: 53.08 | L20: 50.65 | M20: 48.7 | N20: 44766000 | O20: -1.17%
A21: 11 | B21: FMCG | C21: ASIANPAINT | D21: 1692.80 | E21: 1698.83 | F21: 1680.22 | G21: 1667.63 | H21: 1649.02 | I21: 1711.42 | J21: 1730.03 | K21: 1742.62 | L21: 1717.45 | M21: 1686.25 | N21: 5311500 | O21: -1.14%
A22: 12 | B22: Pharma | C22: AUROPHARMA | D22: 812.30 | E22: 815.10 | F22: 803.70 | G22: 795.10 | H22: 783.70 | I22: 823.70 | J22: 835.10 | K22: 843.70 | L22: 826.5 | M22: 806.5 | N22: 13178100 | O22: 1.27%
A23: 13 | B23: Banking | C23: AXISBANK | D23: 418.65 | E23: 423.65 | F23: 410.30 | G23: 401.95 | H23: 388.60 | I23: 432.00 | J23: 445.35 | K23: 453.70 | L23: 437 | M23: 415.3 | N23: 59568000 | O23: -0.74%
A24: 14 | B24: Automobile | C24: BAJAJ-AUTO | D24: 2899.40 | E24: 2885.27 | F24: 2862.23 | G24: 2825.07 | H24: 2802.03 | I24: 2922.43 | J24: 2945.47 | K24: 2982.63 | L24: 2908.3 | M24: 2848.1 | N24: 1685250 | O24: -2.33%
A25: 15 | B25: Finance | C25: BAJAJFINSV | D25: 6265.80 | E25: 6311.75 | F25: 6165.10 | G25: 6064.40 | H25: 5917.75 | I25: 6412.45 | J25: 6559.10 | K25: 6659.80 | L25: 6458.4 | M25: 6211.05 | N25: 797000 | O25: 9.52%
A26: 16 | B26: Finance | C26: BAJFINANCE | D26: 3195.90 | E26: 3179.02 | F26: 3139.88 | G26: 3083.87 | H26: 3044.73 | I26: 3235.03 | J26: 3274.17 | K26: 3330.18 | L26: 3218.15 | M26: 3123 | N26: 6739500 | O26: -7.03%
A27: 17 | B27: Automobile | C27: BALKRISIND | D27: 1256.50 | E27: 1257.57 | F27: 1241.33 | G27: 1226.17 | H27: 1209.93 | I27: 1272.73 | J27: 1288.97 | K27: 1304.13 | L27: 1273.8 | M27: 1242.4 | N27: 1561600 | O27: 6.55%
A28: 18 | B28: Banking | C28: BANDHANBNK | D28: 354.15 | E28: 355.52 | F28: 343.73 | G28: 333.32 | H28: 321.53 | I28: 365.93 | J28: 377.72 | K28: 388.13 | L28: 367.3 | M28: 345.1 | N28: 11313000 | O28: -4.29%
A29: 19 | B29: Banking | C29: BANKBARODA | D29: 49.15 | E29: 49.13 | F29: 48.12 | G29: 47.08 | H29: 46.07 | I29: 50.17 | J29: 51.18 | K29: 52.22 | L29: 50.15 | M29: 48.1 | N29: 44780200 | O29: 3.29%
A30: 20 | B30: FMCG | C30: BATAINDIA | D30: 1283.80 | E30: 1275.67 | F30: 1261.53 | G30: 1239.27 | H30: 1225.13 | I30: 1297.93 | J30: 1312.07 | K30: 1334.33 | L30: 1289.8 | M30: 1253.4 | N30: 2191200 | O30: 1.09%
A31: 21 | B31: Capital_Goods | C31: BEL | D31: 97.50 | E31: 97.90 | F31: 95.50 | G31: 93.50 | H31: 91.10 | I31: 99.90 | J31: 102.30 | K31: 104.30 | L31: 100.3 | M31: 95.9 | N31: 23347200 | O31: 0.26%
A32: 22 | B32: FMCG | C32: BERGEPAINT | D32: 501.20 | E32: 499.18 | F32: 496.22 | G32: 491.23 | H32: 488.27 | I32: 504.17 | J32: 507.13 | K32: 512.12 | L32: 502.15 | M32: 494.2 | N32: 4477000 | O32: -0.34%
A33: 23 | B33: Automobile | C33: BHARATFORG | D33: 368.15 | E33: 369.70 | F33: 362.90 | G33: 357.65 | H33: 350.85 | I33: 374.95 | J33: 381.75 | K33: 387.00 | L33: 376.5 | M33: 364.45 | N33: 6484500 | O33: -1.50%
A34: 24 | B34: Telecom | C34: BHARTIARTL | D34: 591.30 | E34: 589.82 | F34: 581.63 | G34: 571.97 | H34: 563.78 | I34: 599.48 | J34: 607.67 | K34: 617.33 | L34: 598 | M34: 580.15 | N34: 83885469 | O34: -0.54%
A35: 25 | B35: Capital_Goods | C35: BHEL | D35: 38.95 | E35: 39.78 | F35: 37.47 | G35: 35.98 | H35: 33.67 | I35: 41.27 | J35: 43.58 | K35: 45.07 | L35: 42.1 | M35: 38.3 | N35: 48111000 | O35: 1.15%
A36: 26 | B36: Pharma | C36: BIOCON | D36: 439.00 | E36: 433.07 | F36: 423.28 | G36: 407.57 | H36: 397.78 | I36: 448.78 | J36: 458.57 | K36: 474.28 | L36: 442.85 | M36: 417.35 | N36: 16111500 | O36: 4.65%
A37: 27 | B37: Automobile | C37: BOSCHLTD | D37: 13261.30 | E37: 13427.55 | F37: 13006.30 | G37: 12751.30 | H37: 12330.05 | I37: 13682.55 | J37: 14103.80 | K37: 14358.80 | L37: 13848.8 | M37: 13172.55 | N37: 114450 | O37: 0.48%
A38: 28 | B38: Oil_Gas | C38: BPCL | D38: 373.90 | E38: 377.55 | F38: 368.60 | G38: 363.30 | H38: 354.35 | I38: 382.85 | J38: 391.80 | K38: 397.10 | L38: 386.5 | M38: 372.25 | N38: 18981000 | O38: -0.25%
A39: 29 | B39: FMCG | C39: BRITANNIA | D39: 3750.35 | E39: 3765.32 | F39: 3728.08 | G39: 3705.82 | H39: 3668.58 | I39: 3787.58 | J39: 3824.82 | K39: 3847.08 | L39: 3802.55 | M39: 3743.05 | N39: 1711200 | O39: -0.40%
A40: 30 | B40: Pharma | C40: CADILAHC | D40: 355.10 | E40: 357.22 | F40: 351.53 | G40: 347.97 | H40: 342.28 | I40: 360.78 | J40: 366.47 | K40: 370.03 | L40: 362.9 | M40: 353.65 | N40: 7548200 | O40: 3.28%
A41: 31 | B41: Banking | C41: CANBK | D41: 100.90 | E41: 101.62 | F41: 98.83 | G41: 96.77 | H41: 93.98 | I41: 103.68 | J41: 106.47 | K41: 108.53 | L41: 104.4 | M41: 99.55 | N41: 14205000 | O41: 13.87%
A42: 32 | B42: Textile | C42: CENTURYTEX | D42: 300.95 | E42: 304.02 | F42: 293.03 | G42: 285.12 | H42: 274.13 | I42: 311.93 | J42: 322.92 | K42: 330.83 | L42: 315 | M42: 296.1 | N42: 3221400 | O42: -5.35%
A43: 33 | B43: Finance | C43: CHOLAFIN | D43: 197.85 | E43: 198.62 | F43: 194.58 | G43: 191.32 | H43: 187.28 | I43: 201.88 | J43: 205.92 | K43: 209.18 | L43: 202.65 | M43: 195.35 | N43: 6690000 | O43: -3.50%
A44: 34 | B44: Pharma | C44: CIPLA | D44: 634.75 | E44: 638.40 | F44: 630.20 | G44: 625.65 | H44: 617.45 | I44: 642.95 | J44: 651.15 | K44: 655.70 | L44: 646.6 | M44: 633.85 | N44: 12805000 | O44: 2.13%
A45: 35 | B45: Others | C45: COALINDIA | D45: 128.30 | E45: 128.98 | F45: 127.37 | G45: 126.43 | H45: 124.82 | I45: 129.92 | J45: 131.53 | K45: 132.47 | L45: 130.6 | M45: 128.05 | N45: 38698300 | O45: 1.48%
A46: 36 | B46: FMCG | C46: COLPAL | D46: 1434.40 | E46: 1433.78 | F46: 1419.77 | G46: 1405.13 | H46: 1391.12 | I46: 1448.42 | J46: 1462.43 | K46: 1477.07 | L46: 1447.8 | M46: 1419.15 | N46: 2836400 | O46: 0.97%
A47: 37 | B47: Others | C47: CONCOR | D47: 423.60 | E47: 423.08 | F47: 419.12 | G47: 414.63 | H47: 410.67 | I47: 427.57 | J47: 431.53 | K47: 436.02 | L47: 427.05 | M47: 418.6 | N47: 5372031 | O47: -0.20%
A48: 38 | B48: Capital_Goods | C48: CUMMINSIND | D48: 387.30 | E48: 386.28 | F48: 380.62 | G48: 373.93 | H48: 368.27 | I48: 392.97 | J48: 398.63 | K48: 405.32 | L48: 391.95 | M48: 379.6 | N48: 1959600 | O48: -2.68%
A49: 39 | B49: FMCG | C49: DABUR | D49: 480.85 | E49: 482.12 | F49: 476.28 | G49: 471.72 | H49: 465.88 | I49: 486.68 | J49: 492.52 | K49: 497.08 | L49: 487.95 | M49: 477.55 | N49: 13671250 | O49: -0.78%
A50: 40 | B50: Pharma | C50: DIVISLAB | D50: 2220.95 | E50: 2231.98 | F50: 2202.97 | G50: 2184.98 | H50: 2155.97 | I50: 2249.97 | J50: 2278.98 | K50: 2296.97 | L50: 2261 | M50: 2214 | N50: 4665200 | O50: 0.86%
A51: 41 | B51: Realty | C51: DLF | D51: 140.25 | E51: 141.65 | F51: 137.90 | G51: 135.55 | H51: 131.80 | I51: 144.00 | J51: 147.75 | K51: 150.10 | L51: 145.4 | M51: 139.3 | N51: 30366600 | O51: 1.04%
A52: 42 | B52: Pharma | C52: DRREDDY | D52: 3982.55 | E52: 3952.77 | F52: 3909.68 | G52: 3836.82 | H52: 3793.73 | I52: 4025.63 | J52: 4068.72 | K52: 4141.58 | L52: 3995.85 | M52: 3879.9 | N52: 3569750 | O52: -1.67%
A53: 43 | B53: Automobile | C53: EICHERMOT | D53: 18915.20 | E53: 19131.25 | F53: 18562.45 | G53: 18209.70 | H53: 17640.90 | I53: 19484.00 | J53: 20052.80 | K53: 20405.55 | L53: 19700.05 | M53: 18778.5 | N53: 278425 | O53: -2.60%
A54: 44 | B54: Finance | C54: EQUITAS | D54: 57.00 | E54: 56.52 | F54: 55.48 | G54: 53.97 | H54: 52.93 | I54: 58.03 | J54: 59.07 | K54: 60.58 | L54: 57.55 | M54: 55 | N54: 11635600 | O54: -9.14%
A55: 45 | B55: Automobile | C55: ESCORTS | D55: 1089.60 | E55: 1106.28 | F55: 1070.32 | G55: 1051.03 | H55: 1015.07 | I55: 1125.57 | J55: 1161.53 | K55: 1180.82 | L55: 1142.25 | M55: 1087 | N55: 2757700 | O55: -16.74%
A56: 46 | B56: Automobile | C56: EXIDEIND | D56: 154.05 | E56: 155.03 | F56: 152.32 | G56: 150.58 | H56: 147.87 | I56: 156.77 | J56: 159.48 | K56: 161.22 | L56: 157.75 | M56: 153.3 | N56: 11523600 | O56: 1.68%
A57: 47 | B57: Banking | C57: FEDERALBNK | D57: 51.15 | E57: 51.53 | F57: 50.22 | G57: 49.28 | H57: 47.97 | I57: 52.47 | J57: 53.78 | K57: 54.72 | L57: 52.85 | M57: 50.6 | N57: 55088500 | O57: -5.88%
A58: 48 | B58: Oil_Gas | C58: GAIL | D58: 99.10 | E58: 99.92 | F58: 97.48 | G58: 95.87 | H58: 93.43 | I58: 101.53 | J58: 103.97 | K58: 105.58 | L58: 102.35 | M58: 98.3 | N58: 34940800 | O58: -2.85%
A59: 49 | B59: Pharma | C59: GLENMARK | D59: 410.85 | E59: 412.62 | F59: 407.23 | G59: 403.62 | H59: 398.23 | I59: 416.23 | J59: 421.62 | K59: 425.23 | L59: 418 | M59: 409 | N59: 5140500 | O59: -2.49%
A60: 50 | B60: Infrastructure | C60: GMRINFRA | D60: 19.90 | E60: 19.80 | F60: 19.45 | G60: 19.00 | H60: 18.65 | I60: 20.25 | J60: 20.60 | K60: 21.05 | L60: 20.15 | M60: 19.35 | N60: 99945000 | O60: -0.76%
A61: 51 | B61: FMCG | C61: GODREJCP | D61: 696.15 | E61: 698.15 | F61: 690.30 | G61: 684.45 | H61: 676.60 | I61: 704.00 | J61: 711.85 | K61: 717.70 | L61: 706 | M61: 692.3 | N61: 7054000 | O61: -1.43%
A62: 52 | B62: Others | C62: GODREJPROP | D62: 892.55 | E62: 890.80 | F62: 881.60 | G62: 870.65 | H62: 861.45 | I62: 901.75 | J62: 910.95 | K62: 921.90 | L62: 900 | M62: 879.85 | N62: 348400 | O62: 1.71%
A63: 53 | B63: Cement | C63: GRASIM | D63: 596.75 | E63: 602.12 | F63: 588.63 | G63: 580.52 | H63: 567.03 | I63: 610.23 | J63: 623.72 | K63: 631.83 | L63: 615.6 | M63: 594 | N63: 18619050 | O63: 0.64%
A64: 54 | B64: Others | C64: HAVELLS | D64: 581.25 | E64: 579.43 | F64: 572.27 | G64: 563.28 | H64: 556.12 | I64: 588.42 | J64: 595.58 | K64: 604.57 | L64: 586.6 | M64: 570.45 | N64: 5275000 | O64: -0.11%
A65: 55 | B65: Technology | C65: HCLTECH | D65: 591.25 | E65: 597.12 | F65: 582.38 | G65: 573.52 | H65: 558.78 | I65: 605.98 | J65: 620.72 | K65: 629.58 | L65: 611.85 | M65: 588.25 | N65: 20393800 | O65: -3.54%
A66: 56 | B66: Finance | C66: HDFC | D66: 1798.20 | E66: 1801.72 | F66: 1773.53 | G66: 1748.87 | H66: 1720.68 | I66: 1826.38 | J66: 1854.57 | K66: 1879.23 | L66: 1829.9 | M66: 1777.05 | N66: 29208300 | O66: -0.05%
A67: 57 | B67: Banking | C67: HDFCBANK | D67: 1060.30 | E67: 1061.77 | F67: 1048.78 | G67: 1037.27 | H67: 1024.28 | I67: 1073.28 | J67: 1086.27 | K67: 1097.78 | L67: 1074.75 | M67: 1050.25 | N67: 41798350 | O67: -2.83%
A68: 58 | B68: Finance | C68: HDFCLIFE | D68: 598.95 | E68: 601.60 | F68: 593.35 | G68: 587.75 | H68: 579.50 | I68: 607.20 | J68: 615.45 | K68: 621.05 | L68: 609.85 | M68: 596 | N68: 12611500 | O68: -1.25%
A69: 59 | B69: Automobile | C69: HEROMOTOCO | D69: 2597.25 | E69: 2615.27 | F69: 2568.13 | G69: 2539.02 | H69: 2491.88 | I69: 2644.38 | J69: 2691.52 | K69: 2720.63 | L69: 2662.4 | M69: 2586.15 | N69: 2359500 | O69: -3.94%
A70: 60 | B70: Metals | C70: HINDALCO | D70: 164.40 | E70: 165.20 | F70: 161.70 | G70: 159.00 | H70: 155.50 | I70: 167.90 | J70: 171.40 | K70: 174.10 | L70: 168.7 | M70: 162.5 | N70: 37453000 | O70: -4.49%
A71: 61 | B71: Oil_Gas | C71: HINDPETRO | D71: 211.05 | E71: 212.12 | F71: 208.93 | G71: 206.82 | H71: 203.63 | I71: 214.23 | J71: 217.42 | K71: 219.53 | L71: 215.3 | M71: 210 | N71: 27475200 | O71: 3.25%
A72: 62 | B72: FMCG | C72: HINDUNILVR | D72: 2227.65 | E72: 2237.23 | F72: 2211.42 | G72: 2195.18 | H72: 2169.37 | I72: 2253.47 | J72: 2279.28 | K72: 2295.52 | L72: 2263.05 | M72: 2221 | N72: 16688400 | O72: -0.23%
A73: 63 | B73: Finance | C73: IBULHSGFIN | D73: 223.60 | E73: 226.58 | F73: 217.12 | G73: 210.63 | H73: 201.17 | I73: 233.07 | J73: 242.53 | K73: 249.02 | L73: 236.05 | M73: 220.1 | N73: 11798600 | O73: -8.75%
A74: 64 | B74: Banking | C74: ICICIBANK | D74: 346.05 | E74: 346.58 | F74: 340.17 | G74: 334.28 | H74: 327.87 | I74: 352.47 | J74: 358.88 | K74: 364.77 | L74: 353 | M74: 340.7 | N74: 110330000 | O74: -0.61%
A75: 65 | B75: Finance | C75: ICICIPRULI | D75: 422.85 | E75: 426.38 | F75: 416.42 | G75: 409.98 | H75: 400.02 | I75: 432.82 | J75: 442.78 | K75: 449.22 | L75: 436.35 | M75: 419.95 | N75: 7651500 | O75: -3.02%
A76: 66 | B76: Telecom | C76: IDEA | D76: 9.40 | E76: 9.48 | F76: 9.22 | G76: 9.03 | H76: 8.77 | I76: 9.67 | J76: 9.93 | K76: 10.12 | L76: 9.75 | M76: 9.3 | N76: 374780000 | O76: -2.41%
A77: 67 | B77: Banking | C77: IDFCFIRSTB | D77: 25.75 | E77: 25.97 | F77: 25.23 | G77: 24.72 | H77: 23.98 | I77: 26.48 | J77: 27.22 | K77: 27.73 | L77: 26.7 | M77: 25.45 | N77: 124165000 | O77: 3.03%
A78: 68 | B78: Oil_Gas | C78: IGL | D78: 416.05 | E78: 413.67 | F78: 408.43 | G78: 400.82 | H78: 395.58 | I78: 421.28 | J78: 426.52 | K78: 434.13 | L78: 418.9 | M78: 406.05 | N78: 9770750 | O78: -0.55%
A79: 69 | B79: Others | C79: INDIGO | D79: 955.20 | E79: 968.17 | F79: 928.43 | G79: 901.67 | H79: 861.93 | I79: 994.93 | J79: 1034.67 | K79: 1061.43 | L79: 1007.9 | M79: 941.4 | N79: 3057000 | O79: 8.65%
A80: 70 | B80: Banking | C80: INDUSINDBK | D80: 511.25 | E80: 517.15 | F80: 499.65 | G80: 488.05 | H80: 470.55 | I80: 528.75 | J80: 546.25 | K80: 557.85 | L80: 534.65 | M80: 505.55 | N80: 31874400 | O80: -0.52%
A81: 71 | B81: Telecom | C81: INFRATEL | D81: 209.55 | E81: 211.23 | F81: 206.67 | G81: 203.78 | H81: 199.22 | I81: 214.12 | J81: 218.68 | K81: 221.57 | L81: 215.8 | M81: 208.35 | N81: 12658800 | O81: 0.89%
A82: 72 | B82: Technology | C82: INFY | D82: 786.00 | E82: 791.58 | F82: 778.47 | G82: 770.93 | H82: 757.82 | I82: 799.12 | J82: 812.23 | K82: 819.77 | L82: 804.7 | M82: 784.05 | N82: 53704800 | O82: 0.62%
A83: 73 | B83: Oil_Gas | C83: IOC | D83: 86.40 | E83: 86.82 | F83: 85.63 | G83: 84.87 | H83: 83.68 | I83: 87.58 | J83: 88.77 | K83: 89.53 | L83: 88 | M83: 86.05 | N83: 54269700 | O83: -0.16%
A84: 74 | B84: FMCG | C84: ITC | D84: 196.30 | E84: 196.38 | F84: 193.02 | G84: 189.73 | H84: 186.37 | I84: 199.67 | J84: 203.03 | K84: 206.32 | L84: 199.75 | M84: 193.1 | N84: 88620800 | O84: -0.93%
A85: 75 | B85: Metals | C85: JINDALSTEL | D85: 166.25 | E85: 166.62 | F85: 164.28 | G85: 162.32 | H85: 159.98 | I85: 168.58 | J85: 170.92 | K85: 172.88 | L85: 168.95 | M85: 164.65 | N85: 17655000 | O85: -2.00%
A86: 76 | B86: Metals | C86: JSWSTEEL | D86: 194.60 | E86: 195.33 | F86: 191.67 | G86: 188.73 | H86: 185.07 | I86: 198.27 | J86: 201.93 | K86: 204.87 | L86: 199 | M86: 192.4 | N86: 46612800 | O86: -0.28%
A87: 77 | B87: Others | C87: JUBLFOOD | D87: 1658.45 | E87: 1652.13 | F87: 1631.97 | G87: 1605.48 | H87: 1585.32 | I87: 1678.62 | J87: 1698.78 | K87: 1725.27 | L87: 1672.3 | M87: 1625.65 | N87: 2132500 | O87: -4.76%
A88: 78 | B88: Others | C88: JUSTDIAL | D88: 374.55 | E88: 374.17 | F88: 367.88 | G88: 361.22 | H88: 354.93 | I88: 380.83 | J88: 387.12 | K88: 393.78 | L88: 380.45 | M88: 367.5 | N88: 1227800 | O88: -8.07%
A89: 79 | B89: Banking | C89: KOTAKBANK | D89: 1297.25 | E89: 1307.25 | F89: 1282.00 | G89: 1266.75 | H89: 1241.50 | I89: 1322.50 | J89: 1347.75 | K89: 1363.00 | L89: 1332.5 | M89: 1292 | N89: 8652000 | O89: 0.03%
A90: 80 | B90: Finance | C90: L&TFH | D90: 64.40 | E90: 65.18 | F90: 62.52 | G90: 60.63 | H90: 57.97 | I90: 67.07 | J90: 69.73 | K90: 71.62 | L90: 67.85 | M90: 63.3 | N90: 34129200 | O90: -0.30%
A91: 81 | B91: Finance | C91: LICHSGFIN | D91: 262.10 | E91: 265.00 | F91: 257.25 | G91: 252.40 | H91: 244.65 | I91: 269.85 | J91: 277.60 | K91: 282.45 | L91: 272.75 | M91: 260.15 | N91: 10072000 | O91: 5.95%
A92: 82 | B92: Capital_Goods | C92: LT | D92: 915.20 | E92: 919.40 | F92: 902.20 | G92: 889.20 | H92: 872.00 | I92: 932.40 | J92: 949.60 | K92: 962.60 | L92: 936.6 | M92: 906.4 | N92: 9499050 | O92: -2.14%
A93: 83 | B93: Pharma | C93: LUPIN | D93: 873.65 | E93: 875.33 | F93: 866.77 | G93: 859.88 | H93: 851.32 | I93: 882.22 | J93: 890.78 | K93: 897.67 | L93: 883.9 | M93: 868.45 | N93: 8755850 | O93: 0.21%
A94: 84 | B94: Automobile | C94: M&M | D94: 544.80 | E94: 545.42 | F94: 536.83 | G94: 528.87 | H94: 520.28 | I94: 553.38 | J94: 561.97 | K94: 569.93 | L94: 554 | M94: 537.45 | N94: 17564400 | O94: -3.93%
A95: 85 | B95: Finance | C95: M&MFIN | D95: 194.80 | E95: 195.30 | F95: 189.80 | G95: 184.80 | H95: 179.30 | I95: 200.30 | J95: 205.80 | K95: 210.80 | L95: 200.8 | M95: 190.3 | N95: 10182900 | O95: -5.37%
A96: 86 | B96: Finance | C96: MANAPPURAM | D96: 157.45 | E96: 157.28 | F96: 155.57 | G96: 153.68 | H96: 151.97 | I96: 159.17 | J96: 160.88 | K96: 162.77 | L96: 159 | M96: 155.4 | N96: 16518000 | O96: 0.84%
A97: 87 | B97: FMCG | C97: MARICO | D97: 348.50 | E97: 348.62 | F97: 346.38 | G97: 344.27 | H97: 342.03 | I97: 350.73 | J97: 352.97 | K97: 355.08 | L97: 350.85 | M97: 346.5 | N97: 11516000 | O97: 0.61%
A98: 88 | B98: Automobile | C98: MARUTI | D98: 5795.75 | E98: 5844.45 | F98: 5713.55 | G98: 5631.35 | H98: 5500.45 | I98: 5926.65 | J98: 6057.55 | K98: 6139.75 | L98: 5975.35 | M98: 5762.25 | N98: 2797800 | O98: 1.59%
A99: 89 | B99: FMCG | C99: MCDOWELL-N | D99: 620.25 | E99: 623.70 | F99: 611.95 | G99: 603.65 | H99: 591.90 | I99: 632.00 | J99: 643.75 | K99: 652.05 | L99: 635.45 | M99: 615.4 | N99: 16123750 | O99: -1.53%
A100: 90 | B100: Finance | C100: MFSL | D100: 555.00 | E100: 554.60 | F100: 548.00 | G100: 541.00 | H100: 534.40 | I100: 561.60 | J100: 568.20 | K100: 575.20 | L100: 561.2 | M100: 547.6 | N100: 1462500 | O100: -6.79%
A101: 91 | B101: Oil_Gas | C101: MGL | D101: 987.50 | E101: 981.47 | F101: 973.03 | G101: 958.57 | H101: 950.13 | I101: 995.93 | J101: 1004.37 | K101: 1018.83 | L101: 989.9 | M101: 967 | N101: 1167600 | O101: -9.57%
A102: 92 | B102: Technology | C102: MINDTREE | D102: 976.60 | E102: 989.65 | F102: 954.30 | G102: 932.00 | H102: 896.65 | I102: 1011.95 | J102: 1047.30 | K102: 1069.60 | L102: 1025 | M102: 967.35 | N102: 2133600 | O102: 23.24%
A103: 93 | B103: Automobile | C103: MOTHERSUMI | D103: 94.05 | E103: 94.03 | F103: 92.62 | G103: 91.18 | H103: 89.77 | I103: 95.47 | J103: 96.88 | K103: 98.32 | L103: 95.45 | M103: 92.6 | N103: 28210000 | O103: 0.00%
A104: 94 | B104: Automobile | C104: MRF | D104: 64577.90 | E104: 64499.13 | F104: 63920.77 | G104: 63263.63 | H104: 62685.27 | I104: 65156.27 | J104: 65734.63 | K104: 66391.77 | L104: 65077.5 | M104: 63842 | N104: 14120 | O104: 2.47%
A105: 95 | B105: Finance | C105: MUTHOOTFIN | D105: 1085.85 | E105: 1090.57 | F105: 1068.13 | G105: 1050.42 | H105: 1027.98 | I105: 1108.28 | J105: 1130.72 | K105: 1148.43 | L105: 1113 | M105: 1072.85 | N105: 4107750 | O105: -1.72%
A106: 96 | B106: Metals | C106: NATIONALUM | D106: 34.15 | E106: 34.62 | F106: 33.48 | G106: 32.82 | H106: 31.68 | I106: 35.28 | J106: 36.42 | K106: 37.08 | L106: 35.75 | M106: 33.95 | N106: 38063000 | O106: -0.44%
A107: 97 | B107: Others | C107: NAUKRI | D107: 2894.65 | E107: 2874.88 | F107: 2839.82 | G107: 2784.98 | H107: 2749.92 | I107: 2929.72 | J107: 2964.78 | K107: 3019.62 | L107: 2909.95 | M107: 2820.05 | N107: 720000 | O107: -1.20%
A108: 98 | B108: Infrastructure | C108: NCC | D108: 31.85 | E108: 31.92 | F108: 31.13 | G108: 30.42 | H108: 29.63 | I108: 32.63 | J108: 33.42 | K108: 34.13 | L108: 32.7 | M108: 31.2 | N108: 21357000 | O108: -4.15%
A109: 99 | B109: FMCG | C109: NESTLEIND | D109: 16950.50 | E109: 17015.10 | F109: 16845.40 | G109: 16740.30 | H109: 16570.60 | I109: 17120.20 | J109: 17289.90 | K109: 17395.00 | L109: 17184.8 | M109: 16910 | N109: 608350 | O109: -0.34%
A110: 100 | B110: Technology | C110: NIITTECH | D110: 1545.15 | E110: 1567.22 | F110: 1515.48 | G110: 1485.82 | H110: 1434.08 | I110: 1596.88 | J110: 1648.62 | K110: 1678.28 | L110: 1618.95 | M110: 1537.55 | N110: 447750 | O110: 5.66%
A111: 101 | B111: Metals | C111: NMDC | D111: 82.65 | E111: 83.55 | F111: 81.55 | G111: 80.45 | H111: 78.45 | I111: 84.65 | J111: 86.65 | K111: 87.75 | L111: 85.55 | M111: 82.45 | N111: 31141600 | O111: -1.61%
A112: 102 | B112: Power | C112: NTPC | D112: 87.70 | E112: 88.35 | F112: 86.80 | G112: 85.90 | H112: 84.35 | I112: 89.25 | J112: 90.80 | K112: 91.70 | L112: 89.9 | M112: 87.45 | N112: 71250000 | O112: 0.47%
A113: 103 | B113: Oil_Gas | C113: ONGC | D113: 77.40 | E113: 77.92 | F113: 76.68 | G113: 75.97 | H113: 74.73 | I113: 78.63 | J113: 79.87 | K113: 80.58 | L113: 79.15 | M113: 77.2 | N113: 63086100 | O113: -2.15%
A114: 104 | B114: Textile | C114: PAGEIND | D114: 19560.90 | E114: 19584.03 | F114: 19232.52 | G114: 18904.13 | H114: 18552.62 | I114: 19912.42 | J114: 20263.93 | K114: 20592.32 | L114: 19935.55 | M114: 19255.65 | N114: 109860 | O114: -2.79%
A115: 105 | B115: Pharma | C115: PEL | D115: 1382.50 | E115: 1386.80 | F115: 1351.40 | G115: 1320.30 | H115: 1284.90 | I115: 1417.90 | J115: 1453.30 | K115: 1484.40 | L115: 1422.2 | M115: 1355.7 | N115: 3489200 | O115: -1.48%
A116: 106 | B116: Oil_Gas | C116: PETRONET | D116: 260.00 | E116: 260.33 | F116: 256.92 | G116: 253.83 | H116: 250.42 | I116: 263.42 | J116: 266.83 | K116: 269.92 | L116: 263.75 | M116: 257.25 | N116: 13959000 | O116: -1.61%
A117: 107 | B117: Finance | C117: PFC | D117: 80.60 | E117: 81.68 | F117: 79.22 | G117: 77.83 | H117: 75.37 | I117: 83.07 | J117: 85.53 | K117: 86.92 | L117: 84.15 | M117: 80.3 | N117: 50554800 | O117: 3.27%
A118: 108 | B118: FMCG | C118: PIDILITIND | D118: 1385.35 | E118: 1389.25 | F118: 1378.70 | G118: 1372.05 | H118: 1361.50 | I118: 1395.90 | J118: 1406.45 | K118: 1413.10 | L118: 1399.8 | M118: 1382.6 | N118: 3262000 | O118: -1.36%
A119: 109 | B119: Banking | C119: PNB | D119: 33.50 | E119: 33.62 | F119: 33.08 | G119: 32.67 | H119: 32.13 | I119: 34.03 | J119: 34.57 | K119: 34.98 | L119: 34.15 | M119: 33.2 | N119: 61012000 | O119: -4.22%
A120: 110 | B120: Power | C120: POWERGRID | D120: 163.95 | E120: 165.57 | F120: 161.98 | G120: 160.02 | H120: 156.43 | I120: 167.53 | J120: 171.12 | K120: 173.08 | L120: 169.15 | M120: 163.6 | N120: 31940000 | O120: 0.36%
A121: 111 | B121: Media | C121: PVR | D121: 1009.45 | E121: 1011.03 | F121: 988.57 | G121: 967.68 | H121: 945.22 | I121: 1031.92 | J121: 1054.38 | K121: 1075.27 | L121: 1033.5 | M121: 990.15 | N121: 1489213 | O121: 0.72%
A122: 112 | B122: Cement | C122: RAMCOCEM | D122: 654.90 | E122: 659.97 | F122: 646.93 | G122: 638.97 | H122: 625.93 | I122: 667.93 | J122: 680.97 | K122: 688.93 | L122: 673 | M122: 652 | N122: 1348100 | O122: 22.38%
A123: 113 | B123: Banking | C123: RBLBANK | D123: 164.50 | E123: 166.67 | F123: 159.43 | G123: 154.37 | H123: 147.13 | I123: 171.73 | J123: 178.97 | K123: 184.03 | L123: 173.9 | M123: 161.6 | N123: 24042200 | O123: 10.94%
A124: 114 | B124: Power | C124: RECLTD | D124: 103.30 | E124: 103.67 | F124: 102.23 | G124: 101.17 | H124: 99.73 | I124: 104.73 | J124: 106.17 | K124: 107.23 | L124: 105.1 | M124: 102.6 | N124: 18282000 | O124: -2.34%
A125: 115 | B125: Oil_Gas | C125: RELIANCE | D125: 1923.15 | E125: 1919.73 | F125: 1893.47 | G125: 1863.78 | H125: 1837.52 | I125: 1949.42 | J125: 1975.68 | K125: 2005.37 | L125: 1946 | M125: 1890.05 | N125: 44827840 | O125: -0.63%
A126: 116 | B126: Metals | C126: SAIL | D126: 34.40 | E126: 34.58 | F126: 33.87 | G126: 33.33 | H126: 32.62 | I126: 35.12 | J126: 35.83 | K126: 36.37 | L126: 35.3 | M126: 34.05 | N126: 46911000 | O126: -7.67%
A127: 117 | B127: Finance | C127: SBILIFE | D127: 862.95 | E127: 870.02 | F127: 851.13 | G127: 839.32 | H127: 820.43 | I127: 881.83 | J127: 900.72 | K127: 912.53 | L127: 888.9 | M127: 858.2 | N127: 6180750 | O127: 2.13%
A128: 118 | B128: Banking | C128: SBIN | D128: 186.25 | E128: 187.70 | F128: 183.05 | G128: 179.85 | H128: 175.20 | I128: 190.90 | J128: 195.55 | K128: 198.75 | L128: 192.35 | M128: 184.5 | N128: 112737000 | O128: -4.45%
A129: 119 | B129: Cement | C129: SHREECEM | D129: 22156.20 | E129: 22146.37 | F129: 21819.83 | G129: 21483.47 | H129: 21156.93 | I129: 22482.73 | J129: 22809.27 | K129: 23145.63 | L129: 22472.9 | M129: 21810 | N129: 142850 | O129: -0.70%
A130: 120 | B130: Capital_Goods | C130: SIEMENS | D130: 1131.75 | E130: 1141.98 | F130: 1115.47 | G130: 1099.18 | H130: 1072.67 | I130: 1158.27 | J130: 1184.78 | K130: 1201.07 | L130: 1168.5 | M130: 1125.7 | N130: 2354000 | O130: 2.93%
A131: 121 | B131: Textile | C131: SRF | D131: 3819.70 | E131: 3844.30 | F131: 3781.00 | G131: 3742.30 | H131: 3679.00 | I131: 3883.00 | J131: 3946.30 | K131: 3985.00 | L131: 3907.6 | M131: 3805.6 | N131: 657500 | O131: 2.06%
A132: 122 | B132: Finance | C132: SRTRANSFIN | D132: 675.25 | E132: 674.85 | F132: 653.95 | G132: 632.65 | H132: 611.75 | I132: 696.15 | J132: 717.05 | K132: 738.35 | L132: 695.75 | M132: 653.55 | N132: 3166916 | O132: 0.44%
A133: 123 | B133: Pharma | C133: SUNPHARMA | D133: 492.50 | E133: 495.83 | F133: 486.77 | G133: 481.03 | H133: 471.97 | I133: 501.57 | J133: 510.63 | K133: 516.37 | L133: 504.9 | M133: 490.1 | N133: 28548800 | O133: -1.89%
A134: 124 | B134: Media | C134: SUNTV | D134: 392.50 | E134: 393.10 | F134: 387.55 | G134: 382.60 | H134: 377.05 | I134: 398.05 | J134: 403.60 | K134: 408.55 | L134: 398.65 | M134: 388.15 | N134: 6393000 | O134: 9.20%
A135: 125 | B135: Fertilisers | C135: TATACHEM | D135: 306.15 | E135: 302.77 | F135: 298.08 | G135: 290.02 | H135: 285.33 | I135: 310.83 | J135: 315.52 | K135: 323.58 | L135: 307.45 | M135: 294.7 | N135: 3872000 | O135: -6.92%
A136: 126 | B136: Others | C136: TATACONSUM | D136: 421.00 | E136: 422.77 | F136: 417.43 | G136: 413.87 | H136: 408.53 | I136: 426.33 | J136: 431.67 | K136: 435.23 | L136: 428.1 | M136: 419.2 | N136: 15865200 | O136: 0.41%
A137: 127 | B137: Automobile | C137: TATAMOTORS | D137: 105.30 | E137: 105.77 | F137: 103.68 | G137: 102.07 | H137: 99.98 | I137: 107.38 | J137: 109.47 | K137: 111.08 | L137: 107.85 | M137: 104.15 | N137: 94403400 | O137: 0.13%
A138: 128 | B138: Power | C138: TATAPOWER | D138: 48.15 | E138: 48.08 | F138: 47.17 | G138: 46.18 | H138: 45.27 | I138: 49.07 | J138: 49.98 | K138: 50.97 | L138: 49 | M138: 47.1 | N138: 49464000 | O138: 0.33%
A139: 129 | B139: Metals | C139: TATASTEEL | D139: 337.50 | E139: 336.92 | F139: 334.08 | G139: 330.67 | H139: 327.83 | I139: 340.33 | J139: 343.17 | K139: 346.58 | L139: 339.75 | M139: 333.5 | N139: 16331900 | O139: -3.36%
A140: 130 | B140: Technology | C140: TCS | D140: 2175.25 | E140: 2194.50 | F140: 2149.90 | G140: 2124.55 | H140: 2079.95 | I140: 2219.85 | J140: 2264.45 | K140: 2289.80 | L140: 2239.1 | M140: 2169.15 | N140: 9271500 | O140: -3.34%
A141: 131 | B141: Technology | C141: TECHM | D141: 593.35 | E141: 593.77 | F141: 587.63 | G141: 581.92 | H141: 575.78 | I141: 599.48 | J141: 605.62 | K141: 611.33 | L141: 599.9 | M141: 588.05 | N141: 15451200 | O141: -7.45%
A142: 132 | B142: FMCG | C142: TITAN | D142: 975.40 | E142: 970.78 | F142: 961.72 | G142: 948.03 | H142: 938.97 | I142: 984.47 | J142: 993.53 | K142: 1007.22 | L142: 979.85 | M142: 957.1 | N142: 7315500 | O142: -0.76%
A143: 133 | B143: Pharma | C143: TORNTPHARM | D143: 2430.95 | E143: 2410.30 | F143: 2382.65 | G143: 2334.35 | H143: 2306.70 | I143: 2458.60 | J143: 2486.25 | K143: 2534.55 | L143: 2437.95 | M143: 2362 | N143: 1441000 | O143: -1.34%
A144: 134 | B144: Power | C144: TORNTPOWER | D144: 326.20 | E144: 328.12 | F144: 323.33 | G144: 320.47 | H144: 315.68 | I144: 330.98 | J144: 335.77 | K144: 338.63 | L144: 332.9 | M144: 325.25 | N144: 1578000 | O144: -4.71%
A145: 135 | B145: Automobile | C145: TVSMOTOR | D145: 380.65 | E145: 381.47 | F145: 374.43 | G145: 368.22 | H145: 361.18 | I145: 387.68 | J145: 394.72 | K145: 400.93 | L145: 388.5 | M145: 375.25 | N145: 4951800 | O145: 5.27%
A146: 136 | B146: FMCG | C146: UBL | D146: 1008.35 | E146: 1011.50 | F146: 1000.35 | G146: 992.35 | H146: 981.20 | I146: 1019.50 | J146: 1030.65 | K146: 1038.65 | L146: 1022.65 | M146: 1003.5 | N146: 1070300 | O146: -3.53%
A147: 137 | B147: Finance | C147: UJJIVAN | D147: 249.00 | E147: 248.88 | F147: 243.87 | G147: 238.73 | H147: 233.72 | I147: 254.02 | J147: 259.03 | K147: 264.17 | L147: 253.9 | M147: 243.75 | N147: 3042600 | O147: -5.08%
A148: 138 | B148: Cement | C148: ULTRACEMCO | D148: 3764.55 | E148: 3776.37 | F148: 3724.93 | G148: 3685.32 | H148: 3633.88 | I148: 3815.98 | J148: 3867.42 | K148: 3907.03 | L148: 3827.8 | M148: 3736.75 | N148: 2322400 | O148: -4.37%
A149: 139 | B149: Fertilisers | C149: UPL | D149: 438.90 | E149: 438.50 | F149: 431.00 | G149: 423.10 | H149: 415.60 | I149: 446.40 | J149: 453.90 | K149: 461.80 | L149: 446 | M149: 430.6 | N149: 11469900 | O149: 1.05%
A150: 140 | B150: Metals | C150: VEDL | D150: 109.35 | E150: 109.83 | F150: 108.12 | G150: 106.88 | H150: 105.17 | I150: 111.07 | J150: 112.78 | K150: 114.02 | L150: 111.55 | M150: 108.6 | N150: 107328200 | O150: 2.07%
A151: 141 | B151: Capital_Goods | C151: VOLTAS | D151: 548.30 | E151: 548.32 | F151: 543.18 | G151: 538.07 | H151: 532.93 | I151: 553.43 | J151: 558.57 | K151: 563.68 | L151: 553.45 | M151: 543.2 | N151: 3339000 | O151: -0.33%
A152: 142 | B152: Technology | C152: WIPRO | D152: 225.75 | E152: 227.62 | F152: 222.93 | G152: 220.12 | H152: 215.43 | I152: 230.43 | J152: 235.12 | K152: 237.93 | L152: 232.3 | M152: 224.8 | N152: 29305600 | O152: 4.87%
A153: 143 | B153: Media | C153: ZEEL | D153: 166.20 | E153: 167.90 | F153: 163.45 | G153: 160.70 | H153: 156.25 | I153: 170.65 | J153: 175.10 | K153: 177.85 | L153: 172.35 | M153: 165.15 | N153: 20535000 | O153: 8.10%
A154: 144
A155: 145
A156: 146
A157: 147
A175: Pivot Point: This is trigger point for intra day buy/sell based on the price range of the previous day
A176: As per the tool,the trader should take BUY position just above Pivot and keep the stop loss of pivot point and the first target would be Resistance 1(R1)
A177: If R1 is crossed then R2 becomes the next target with stop loss of at R1
A178: Similarly if price goes below pivot point then the trader should sell and keep a stop loss of pivot point and the first target would be S1
A179: If S1 is crossed then S2 becomes the next target with stop loss of at S1
A181: Disclaimer:
A182: This document has been prepared by the Retail Research Desk of Asit C Mehta
A183: Investment Intermediates Ltd. and is meant for use of the recipient only
A184: and is not for circulation. This document is not to be reported or
A185: copied or made available to others. It should not be considered to be
A186: taken as an offer to sell or a solicitation to buy any security. The
A187: information contained herein is from sources believed reliable. We do
A188: not represent that it is accurate or complete and it should not be
A189: relied upon as such. We may from time to time have positions in and buy
A190: and sell securities referred to herein

Sheet Cash Intra
M5: Back to Main Page
A6: FOR INTRA DAY TRADING | K6: =Main!B10 -> 2020-07-15
A8: Sr.no | B8: Scrip | C8: CLOSE RATE | D8: Pivot Point | E8: Supports | H8: Resistances
C9: Point | E9: S1 | F9: S2 | G9: S3 | H9: R1 | I9: R2 | J9: R3 | K9: HIGH | L9: LOW | M9: Total Trade Quanity in Lakhs
A10: 1 | B10: Nifty 50 | C10: 10607.35 | D10: 10641.97 | E10: 10528.28 | F10: 10449.22 | G10: 10335.53 | H10: 10721.03 | I10: 10834.72 | J10: 10913.78 | K10: 10755.65 | L10: 10562.9
A11: 2 | B11: Nifty Bank | C11: 21392.2 | D11: 21508.12 | E11: 21106.53 | F11: 20820.87 | G11: 20419.28 | H11: 21793.78 | I11: 22195.37 | J11: 22481.03 | K11: 21909.7 | L11: 21222.45
A12: 3 | B12: Nifty CPSE | C12: 1386.05 | D12: 1396.22 | E12: 1374.58 | F12: 1363.12 | G12: 1341.48 | H12: 1407.68 | I12: 1429.32 | J12: 1440.78 | K12: 1417.85 | L12: 1384.75
A13: 4 | B13: Nifty Infra | C13: 3071.5 | D13: 3081.37 | E13: 3051.13 | F13: 3030.77 | G13: 3000.53 | H13: 3101.73 | I13: 3131.97 | J13: 3152.33 | K13: 3111.6 | L13: 3061
A14: 5 | B14: Nifty IT | C14: 15640.55 | D14: 15731.35 | E14: 15521.05 | F14: 15401.55 | G14: 15191.25 | H14: 15850.85 | I14: 16061.15 | J14: 16180.65 | K14: 15941.65 | L14: 15611.85
A15: 6 | B15: Nifty PSE | C15: 2424.5 | D15: 2440.80 | E15: 2405.00 | F15: 2385.50 | G15: 2349.70 | H15: 2460.30 | I15: 2496.10 | J15: 2515.60 | K15: 2476.6 | L15: 2421.3
A16: 7 | B16: Nifty Midcap 50 | C16: 4180.15 | D16: 4191.53 | E16: 4147.22 | F16: 4114.28 | G16: 4069.97 | H16: 4224.47 | I16: 4268.78 | J16: 4301.72 | K16: 4235.85 | L16: 4158.6
A17: 8 | B17: ACC | C17: 1294.1 | D17: 1313.67 | E17: 1267.43 | F17: 1240.77 | G17: 1194.53 | H17: 1340.33 | I17: 1386.57 | J17: 1413.23 | K17: 1359.9 | L17: 1287 | M17: 25.24366
A18: 9 | B18: AUBANK | C18: 635.85 | D18: 631.62 | E18: 621.23 | F18: 606.62 | G18: 596.23 | H18: 646.23 | I18: 656.62 | J18: 671.23 | K18: 642 | L18: 617 | M18: 4.60161
A19: 10 | B19: ADANIPORTS | C19: 320.4 | D19: 324.53 | E19: 315.57 | F19: 310.73 | G19: 301.77 | H19: 329.37 | I19: 338.33 | J19: 343.17 | K19: 333.5 | L19: 319.7 | M19: 31.46962
A20: 11 | B20: ADANIPOWER | C20: 35.7 | D20: 35.40 | E20: 34.65 | F20: 33.60 | G20: 32.85 | H20: 36.45 | I20: 37.20 | J20: 38.25 | K20: 36.15 | L20: 34.35 | M20: 61.52177
A21: 12 | B21: ABCAPITAL | C21: 57.95 | D21: 58.52 | E21: 57.03 | F21: 56.12 | G21: 54.63 | H21: 59.43 | I21: 60.92 | J21: 61.83 | K21: 60 | L21: 57.6 | M21: 21.48761
A22: 13 | B22: ABFRL | C22: 118.45 | D22: 118.73 | E22: 116.97 | F22: 115.48 | G22: 113.72 | H22: 120.22 | I22: 121.98 | J22: 123.47 | K22: 120.5 | L22: 117.25 | M22: 9.37758
A23: 14 | B23: AJANTPHARM | C23: 1353.75 | D23: 1360.25 | E23: 1324.50 | F23: 1295.25 | G23: 1259.50 | H23: 1389.50 | I23: 1425.25 | J23: 1454.50 | K23: 1396 | L23: 1331 | M23: 2.59902
A24: 15 | B24: ALKEM | C24: 2474.9 | D24: 2452.38 | E24: 2404.77 | F24: 2334.63 | G24: 2287.02 | H24: 2522.52 | I24: 2570.13 | J24: 2640.27 | K24: 2500 | L24: 2382.25 | M24: 2.20432
A25: 16 | B25: AMARAJABAT | C25: 695.9 | D25: 695.80 | E25: 686.60 | F25: 677.30 | G25: 668.10 | H25: 705.10 | I25: 714.30 | J25: 723.60 | K25: 705 | L25: 686.5 | M25: 10.58592
A26: 17 | B26: AMBUJACEM | C26: 190.5 | D26: 193.23 | E26: 187.27 | F26: 184.03 | G26: 178.07 | H26: 196.47 | I26: 202.43 | J26: 205.67 | K26: 199.2 | L26: 190 | M26: 43.91974
A27: 18 | B27: APOLLOHOSP | C27: 1441.75 | D27: 1438.45 | E27: 1421.90 | F27: 1402.05 | G27: 1385.50 | H27: 1458.30 | I27: 1474.85 | J27: 1494.70 | K27: 1455 | L27: 1418.6 | M27: 8.46731
A28: 19 | B28: APOLLOTYRE | C28: 110.45 | D28: 111.47 | E28: 108.98 | F28: 107.52 | G28: 105.03 | H28: 112.93 | I28: 115.42 | J28: 116.88 | K28: 113.95 | L28: 110 | M28: 42.52913
A29: 20 | B29: ASHOKLEY | C29: 50.4 | D29: 50.00 | E29: 49.10 | F29: 47.80 | G29: 46.90 | H29: 51.30 | I29: 52.20 | J29: 53.50 | K29: 50.9 | L29: 48.7 | M29: 315.59557
A30: 21 | B30: ASIANPAINT | C30: 1688.4 | D30: 1696.17 | E30: 1674.33 | F30: 1660.27 | G30: 1638.43 | H30: 1710.23 | I30: 1732.07 | J30: 1746.13 | K30: 1718 | L30: 1682.1 | M30: 13.4714
A31: 22 | B31: AUROPHARMA | C31: 809.35 | D31: 812.15 | E31: 800.70 | F31: 792.05 | G31: 780.60 | H31: 820.80 | I31: 832.25 | J31: 840.90 | K31: 823.6 | L31: 803.5 | M31: 33.95425
A32: 23 | B32: DMART | C32: 2154.85 | D32: 2174.28 | E32: 2128.57 | F32: 2102.28 | G32: 2056.57 | H32: 2200.57 | I32: 2246.28 | J32: 2272.57 | K32: 2220 | L32: 2148 | M32: 8.41386
A33: 24 | B33: AXISBANK | C33: 417.7 | D33: 422.97 | E33: 410.13 | F33: 402.57 | G33: 389.73 | H33: 430.53 | I33: 443.37 | J33: 450.93 | K33: 435.8 | L33: 415.4 | M33: 256.86686
A34: 25 | B34: BAJAJ-AUTO | C34: 2899.5 | D34: 2885.47 | E34: 2861.03 | F34: 2822.57 | G34: 2798.13 | H34: 2923.93 | I34: 2948.37 | J34: 2986.83 | K34: 2909.9 | L34: 2847 | M34: 6.12986
A35: 26 | B35: BAJFINANCE | C35: 3190.95 | D35: 3177.70 | E35: 3135.60 | F35: 3080.25 | G35: 3038.15 | H35: 3233.05 | I35: 3275.15 | J35: 3330.50 | K35: 3219.8 | L35: 3122.35 | M35: 124.04466
A36: 27 | B36: BAJAJFINSV | C36: 6243.45 | D36: 6304.82 | E36: 6149.63 | F36: 6055.82 | G36: 5900.63 | H36: 6398.63 | I36: 6553.82 | J36: 6647.63 | K36: 6460 | L36: 6211 | M36: 11.28715
A37: 28 | B37: BAJAJHLDNG | C37: 2637.25 | D37: 2654.42 | E37: 2592.83 | F37: 2548.42 | G37: 2486.83 | H37: 2698.83 | I37: 2760.42 | J37: 2804.83 | K37: 2716 | L37: 2610 | M37: 0.58959
A38: 29 | B38: BALKRISIND | C38: 1251.75 | D38: 1254.33 | E38: 1234.42 | F38: 1217.08 | G38: 1197.17 | H38: 1271.67 | I38: 1291.58 | J38: 1308.92 | K38: 1274.25 | L38: 1237 | M38: 6.38868
A39: 30 | B39: BANDHANBNK | C39: 352.4 | D39: 354.20 | E39: 341.90 | F39: 331.40 | G39: 319.10 | H39: 364.70 | I39: 377.00 | J39: 387.50 | K39: 366.5 | L39: 343.7 | M39: 170.20199
A40: 31 | B40: BANKBARODA | C40: 49 | D40: 49.13 | E40: 47.97 | F40: 46.93 | G40: 45.77 | H40: 50.17 | I40: 51.33 | J40: 52.37 | K40: 50.3 | L40: 48.1 | M40: 352.13352
A41: 32 | B41: BANKINDIA | C41: 46.75 | D41: 47.15 | E41: 46.10 | F41: 45.45 | G41: 44.40 | H41: 47.80 | I41: 48.85 | J41: 49.50 | K41: 48.2 | L41: 46.5 | M41: 14.21423
A42: 33 | B42: BATAINDIA | C42: 1282.1 | D42: 1274.10 | E42: 1260.60 | F42: 1239.10 | G42: 1225.60 | H42: 1295.60 | I42: 1309.10 | J42: 1330.60 | K42: 1287.6 | L42: 1252.6 | M42: 16.04304
A43: 34 | B43: BERGEPAINT | C43: 500.45 | D43: 498.63 | E43: 494.72 | F43: 488.98 | G43: 485.07 | H43: 504.37 | I43: 508.28 | J43: 514.02 | K43: 502.55 | L43: 492.9 | M43: 8.95741
A44: 35 | B44: BEL | C44: 97.1 | D44: 97.60 | E44: 95.05 | F44: 93.00 | G44: 90.45 | H44: 99.65 | I44: 102.20 | J44: 104.25 | K44: 100.15 | L44: 95.55 | M44: 191.74007
A45: 36 | B45: BHARATFORG | C45: 366.8 | D45: 368.27 | E45: 361.53 | F45: 356.27 | G45: 349.53 | H45: 373.53 | I45: 380.27 | J45: 385.53 | K45: 375 | L45: 363 | M45: 48.3179
A46: 37 | B46: BHEL | C46: 38.9 | D46: 39.78 | E46: 37.62 | F46: 36.33 | G46: 34.17 | H46: 41.07 | I46: 43.23 | J46: 44.52 | K46: 41.95 | L46: 38.5 | M46: 1267.07194
A47: 38 | B47: BPCL | C47: 373.75 | D47: 377.25 | E47: 368.60 | F47: 363.45 | G47: 354.80 | H47: 382.40 | I47: 391.05 | J47: 396.20 | K47: 385.9 | L47: 372.1 | M47: 47.41344
A48: 39 | B48: BHARTIARTL | C48: 589.35 | D48: 588.23 | E48: 579.67 | F48: 569.98 | G48: 561.42 | H48: 597.92 | I48: 606.48 | J48: 616.17 | K48: 596.8 | L48: 578.55 | M48: 323.29098
A49: 40 | B49: INFRATEL | C49: 208.8 | D49: 210.58 | E49: 205.77 | F49: 202.73 | G49: 197.92 | H49: 213.62 | I49: 218.43 | J49: 221.47 | K49: 215.4 | L49: 207.55 | M49: 136.66354
A50: 41 | B50: BIOCON | C50: 437.6 | D50: 431.95 | E50: 422.65 | F50: 407.70 | G50: 398.40 | H50: 446.90 | I50: 456.20 | J50: 471.15 | K50: 441.25 | L50: 417 | M50: 260.86415
A51: 42 | B51: BBTC | C51: 1170.1 | D51: 1185.02 | E51: 1145.13 | F51: 1120.17 | G51: 1080.28 | H51: 1209.98 | I51: 1249.87 | J51: 1274.83 | K51: 1224.9 | L51: 1160.05 | M51: 2.0215
A52: 43 | B52: BOSCHLTD | C52: 13246.2 | D52: 13404.00 | E52: 12943.20 | F52: 12640.20 | G52: 12179.40 | H52: 13707.00 | I52: 14167.80 | J52: 14470.80 | K52: 13864.8 | L52: 13101 | M52: 0.64206
A53: 44 | B53: BRITANNIA | C53: 3735.25 | D53: 3753.40 | E53: 3710.85 | F53: 3686.45 | G53: 3643.90 | H53: 3777.80 | I53: 3820.35 | J53: 3844.75 | K53: 3795.95 | L53: 3729 | M53: 3.9921
A54: 45 | B54: CESC | C54: 631.05 | D54: 637.52 | E54: 620.53 | F54: 610.02 | G54: 593.03 | H54: 648.03 | I54: 665.02 | J54: 675.53 | K54: 654.5 | L54: 627 | M54: 2.63714
A55: 46 | B55: CADILAHC | C55: 353.8 | D55: 356.18 | E55: 350.37 | F55: 346.93 | G55: 341.12 | H55: 359.62 | I55: 365.43 | J55: 368.87 | K55: 362 | L55: 352.75 | M55: 25.96036
A56: 47 | B56: CANBK | C56: 100.9 | D56: 101.33 | E56: 99.37 | F56: 97.83 | G56: 95.87 | H56: 102.87 | I56: 104.83 | J56: 106.37 | K56: 103.3 | L56: 99.8 | M56: 149.06702
A57: 48 | B57: CASTROLIND | C57: 122.6 | D57: 122.37 | E57: 120.98 | F57: 119.37 | G57: 117.98 | H57: 123.98 | I57: 125.37 | J57: 126.98 | K57: 123.75 | L57: 120.75 | M57: 14.72415
A58: 49 | B58: CHOLAFIN | C58: 199 | D58: 199.43 | E58: 195.37 | F58: 191.73 | G58: 187.67 | H58: 203.07 | I58: 207.13 | J58: 210.77 | K58: 203.5 | L58: 195.8 | M58: 73.88425
A59: 50 | B59: CIPLA | C59: 632.3 | D59: 635.85 | E59: 627.70 | F59: 623.10 | G59: 614.95 | H59: 640.45 | I59: 648.60 | J59: 653.20 | K59: 644 | L59: 631.25 | M59: 54.32821
A60: 51 | B60: CUB | C60: 124.75 | D60: 125.70 | E60: 122.55 | F60: 120.35 | G60: 117.20 | H60: 127.90 | I60: 131.05 | J60: 133.25 | K60: 128.85 | L60: 123.5 | M60: 18.33721
A61: 52 | B61: COALINDIA | C61: 128.25 | D61: 128.88 | E61: 127.37 | F61: 126.48 | G61: 124.97 | H61: 129.77 | I61: 131.28 | J61: 132.17 | K61: 130.4 | L61: 128 | M61: 72.34663
A62: 53 | B62: COLPAL | C62: 1430 | D62: 1431.78 | E62: 1417.22 | F62: 1404.43 | G62: 1389.87 | H62: 1444.57 | I62: 1459.13 | J62: 1471.92 | K62: 1446.35 | L62: 1419 | M62: 14.57855
A63: 54 | B63: CONCOR | C63: 423.3 | D63: 422.93 | E63: 418.87 | F63: 414.43 | G63: 410.37 | H63: 427.37 | I63: 431.43 | J63: 435.87 | K63: 427 | L63: 418.5 | M63: 12.82535
A64: 55 | B64: COROMANDEL | C64: 768.3 | D64: 762.58 | E64: 753.17 | F64: 738.03 | G64: 728.62 | H64: 777.72 | I64: 787.13 | J64: 802.27 | K64: 772 | L64: 747.45 | M64: 3.55668
A65: 56 | B65: CROMPTON | C65: 243.15 | D65: 242.62 | E65: 238.58 | F65: 234.02 | G65: 229.98 | H65: 247.18 | I65: 251.22 | J65: 255.78 | K65: 246.65 | L65: 238.05 | M65: 5.10481
A66: 57 | B66: CUMMINSIND | C66: 386.65 | D66: 384.87 | E66: 379.28 | F66: 371.92 | G66: 366.33 | H66: 392.23 | I66: 397.82 | J66: 405.18 | K66: 390.45 | L66: 377.5 | M66: 11.50765
A67: 58 | B67: DLF | C67: 139.9 | D67: 141.38 | E67: 137.82 | F67: 135.73 | G67: 132.17 | H67: 143.47 | I67: 147.03 | J67: 149.12 | K67: 144.95 | L67: 139.3 | M67: 130.82474
A68: 59 | B68: DABUR | C68: 479.45 | D68: 480.90 | E68: 474.40 | F68: 469.35 | G68: 462.85 | H68: 485.95 | I68: 492.45 | J68: 497.50 | K68: 487.4 | L68: 475.85 | M68: 32.09773
A69: 60 | B69: DALBHARAT | C69: 698.75 | D69: 693.32 | E69: 686.63 | F69: 674.52 | G69: 667.83 | H69: 705.43 | I69: 712.12 | J69: 724.23 | K69: 700 | L69: 681.2 | M69: 0.97204
A70: 61 | B70: DIVISLAB | C70: 2218.15 | D70: 2228.68 | E70: 2200.77 | F70: 2183.38 | G70: 2155.47 | H70: 2246.07 | I70: 2273.98 | J70: 2291.37 | K70: 2256.6 | L70: 2211.3 | M70: 8.11092
A71: 62 | B71: DRREDDY | C71: 3983.15 | D71: 3951.07 | E71: 3906.08 | F71: 3829.02 | G71: 3784.03 | H71: 4028.13 | I71: 4073.12 | J71: 4150.18 | K71: 3996.05 | L71: 3874 | M71: 12.08945
A72: 63 | B72: EDELWEISS | C72: 56.6 | D72: 56.27 | E72: 55.53 | F72: 54.47 | G72: 53.73 | H72: 57.33 | I72: 58.07 | J72: 59.13 | K72: 57 | L72: 55.2 | M72: 11.38872
A73: 64 | B73: EICHERMOT | C73: 18850.15 | D73: 19068.10 | E73: 18476.60 | F73: 18103.05 | G73: 17511.55 | H73: 19441.65 | I73: 20033.15 | J73: 20406.70 | K73: 19659.6 | L73: 18694.55 | M73: 2.47507
A74: 65 | B74: EMAMILTD | C74: 245.9 | D74: 245.02 | E74: 239.58 | F74: 233.27 | G74: 227.83 | H74: 251.33 | I74: 256.77 | J74: 263.08 | K74: 250.45 | L74: 238.7 | M74: 17.7131
A75: 66 | B75: ENDURANCE | C75: 884 | D75: 896.33 | E75: 867.77 | F75: 851.53 | G75: 822.97 | H75: 912.57 | I75: 941.13 | J75: 957.37 | K75: 924.9 | L75: 880.1 | M75: 1.29524
A76: 67 | B76: ENGINERSIN | C76: 70.85 | D76: 71.22 | E76: 69.63 | F76: 68.42 | G76: 66.83 | H76: 72.43 | I76: 74.02 | J76: 75.23 | K76: 72.8 | L76: 70 | M76: 12.58088
A77: 68 | B77: ESCORTS | C77: 1080.05 | D77: 1093.02 | E77: 1061.03 | F77: 1042.02 | G77: 1010.03 | H77: 1112.03 | I77: 1144.02 | J77: 1163.03 | K77: 1125 | L77: 1074 | M77: 14.53376
A78: 69 | B78: EXIDEIND | C78: 153.45 | D78: 154.43 | E78: 151.42 | F78: 149.38 | G78: 146.37 | H78: 156.47 | I78: 159.48 | J78: 161.52 | K78: 157.45 | L78: 152.4 | M78: 19.996
A79: 70 | B79: FEDERALBNK | C79: 51.1 | D79: 51.58 | E79: 50.17 | F79: 49.23 | G79: 47.82 | H79: 52.52 | I79: 53.93 | J79: 54.87 | K79: 53 | L79: 50.65 | M79: 222.11466
A80: 71 | B80: FORTIS | C80: 127.4 | D80: 127.28 | E80: 123.67 | F80: 119.93 | G80: 116.32 | H80: 131.02 | I80: 134.63 | J80: 138.37 | K80: 130.9 | L80: 123.55 | M80: 65.4317
A81: 72 | B81: FCONSUMER | C81: 11.25 | D81: 11.50 | E81: 10.95 | F81: 10.65 | G81: 10.10 | H81: 11.80 | I81: 12.35 | J81: 12.65 | K81: 12.05 | L81: 11.2 | M81: 293.35104
A82: 73 | B82: FRETAIL | C82: 116.6 | D82: 115.50 | E82: 114.40 | F82: 112.20 | G82: 111.10 | H82: 117.70 | I82: 118.80 | J82: 121.00 | K82: 116.6 | L82: 113.3 | M82: 55.22374
A83: 74 | B83: GAIL | C83: 99.05 | D83: 99.85 | E83: 97.50 | F83: 95.95 | G83: 93.60 | H83: 101.40 | I83: 103.75 | J83: 105.30 | K83: 102.2 | L83: 98.3 | M83: 94.25282
A84: 75 | B84: GMRINFRA | C84: 19.9 | D84: 19.80 | E84: 19.35 | F84: 18.80 | G84: 18.35 | H84: 20.35 | I84: 20.80 | J84: 21.35 | K84: 20.25 | L84: 19.25 | M84: 186.88371
A85: 76 | B85: GICRE | C85: 152.5 | D85: 153.30 | E85: 150.80 | F85: 149.10 | G85: 146.60 | H85: 155.00 | I85: 157.50 | J85: 159.20 | K85: 155.8 | L85: 151.6 | M85: 2.50232
A86: 77 | B86: GLENMARK | C86: 407.1 | D86: 410.78 | E86: 401.32 | F86: 395.53 | G86: 386.07 | H86: 416.57 | I86: 426.03 | J86: 431.82 | K86: 420.25 | L86: 405 | M86: 44.63336
A87: 78 | B87: GODREJAGRO | C87: 441.05 | D87: 442.85 | E87: 433.25 | F87: 425.45 | G87: 415.85 | H87: 450.65 | I87: 460.25 | J87: 468.05 | K87: 452.45 | L87: 435.05 | M87: 1.25221
A88: 79 | B88: GODREJCP | C88: 694.6 | D88: 696.23 | E88: 688.97 | F88: 683.33 | G88: 676.07 | H88: 701.87 | I88: 709.13 | J88: 714.77 | K88: 703.5 | L88: 690.6 | M88: 6.634
A89: 80 | B89: GODREJIND | C89: 360.1 | D89: 362.73 | E89: 352.57 | F89: 345.03 | G89: 334.87 | H89: 370.27 | I89: 380.43 | J89: 387.97 | K89: 372.9 | L89: 355.2 | M89: 1.29561
A90: 81 | B90: GODREJPROP | C90: 894.8 | D90: 893.57 | E90: 883.48 | F90: 872.17 | G90: 862.08 | H90: 904.88 | I90: 914.97 | J90: 926.28 | K90: 903.65 | L90: 882.25 | M90: 4.24182
A91: 82 | B91: GRAPHITE | C91: 171.35 | D91: 172.82 | E91: 168.63 | F91: 165.92 | G91: 161.73 | H91: 175.53 | I91: 179.72 | J91: 182.43 | K91: 177 | L91: 170.1 | M91: 4.44369
A92: 83 | B92: GRASIM | C92: 596.7 | D92: 601.47 | E92: 589.08 | F92: 581.47 | G92: 569.08 | H92: 609.08 | I92: 621.47 | J92: 629.08 | K92: 613.85 | L92: 593.85 | M92: 17.51163
A93: 84 | B93: GSPL | C93: 209.1 | D93: 210.35 | E93: 205.80 | F93: 202.50 | G93: 197.95 | H93: 213.65 | I93: 218.20 | J93: 221.50 | K93: 214.9 | L93: 207.05 | M93: 7.45673
A94: 85 | B94: HEG | C94: 746.1 | D94: 754.68 | E94: 734.42 | F94: 722.73 | G94: 702.47 | H94: 766.37 | I94: 786.63 | J94: 798.32 | K94: 774.95 | L94: 743 | M94: 1.8988
A95: 86 | B95: HCLTECH | C95: 591.35 | D95: 597.73 | E95: 581.72 | F95: 572.08 | G95: 556.07 | H95: 607.37 | I95: 623.38 | J95: 633.02 | K95: 613.75 | L95: 588.1 | M95: 62.12718
A96: 87 | B96: HDFCAMC | C96: 2441.3 | D96: 2441.27 | E96: 2420.53 | F96: 2399.77 | G96: 2379.03 | H96: 2462.03 | I96: 2482.77 | J96: 2503.53 | K96: 2462 | L96: 2420.5 | M96: 3.80237
A97: 88 | B97: HDFCBANK | C97: 1058.85 | D97: 1059.25 | E97: 1049.60 | F97: 1040.35 | G97: 1030.70 | H97: 1068.50 | I97: 1078.15 | J97: 1087.40 | K97: 1068.9 | L97: 1050 | M97: 133.06511
A98: 89 | B98: HDFCLIFE | C98: 598.45 | D98: 599.98 | E98: 590.97 | F98: 583.48 | G98: 574.47 | H98: 607.47 | I98: 616.48 | J98: 623.97 | K98: 609 | L98: 592.5 | M98: 36.45884
A99: 90 | B99: HAVELLS | C99: 580.25 | D99: 578.33 | E99: 571.17 | F99: 562.08 | G99: 554.92 | H99: 587.42 | I99: 594.58 | J99: 603.67 | K99: 585.5 | L99: 569.25 | M99: 21.03458
A100: 91 | B100: HEROMOTOCO | C100: 2611.85 | D100: 2632.50 | E100: 2583.35 | F100: 2554.85 | G100: 2505.70 | H100: 2661.00 | I100: 2710.15 | J100: 2738.65 | K100: 2681.65 | L100: 2604 | M100: 9.21721
A101: 92 | B101: HEXAWARE | C101: 353.9 | D101: 352.90 | E101: 347.10 | F101: 340.30 | G101: 334.50 | H101: 359.70 | I101: 365.50 | J101: 372.30 | K101: 358.7 | L101: 346.1 | M101: 13.09572
A102: 93 | B102: HINDALCO | C102: 163.8 | D102: 164.82 | E102: 160.93 | F102: 158.07 | G102: 154.18 | H102: 167.68 | I102: 171.57 | J102: 174.43 | K102: 168.7 | L102: 161.95 | M102: 163.96527
A103: 94 | B103: HINDPETRO | C103: 210.45 | D103: 211.48 | E103: 208.47 | F103: 206.48 | G103: 203.47 | H103: 213.47 | I103: 216.48 | J103: 218.47 | K103: 214.5 | L103: 209.5 | M103: 53.23179
A104: 95 | B104: HINDUNILVR | C104: 2234.75 | D104: 2243.77 | E104: 2217.58 | F104: 2200.42 | G104: 2174.23 | H104: 2260.93 | I104: 2287.12 | J104: 2304.28 | K104: 2269.95 | L104: 2226.6 | M104: 24.03257
A105: 96 | B105: HINDZINC | C105: 191.6 | D105: 192.72 | E105: 189.13 | F105: 186.67 | G105: 183.08 | H105: 195.18 | I105: 198.77 | J105: 201.23 | K105: 196.3 | L105: 190.25 | M105: 7.13941
A106: 97 | B106: HUDCO | C106: 34.95 | D106: 35.27 | E106: 34.38 | F106: 33.82 | G106: 32.93 | H106: 35.83 | I106: 36.72 | J106: 37.28 | K106: 36.15 | L106: 34.7 | M106: 21.77614
A107: 98 | B107: HDFC | C107: 1791.6 | D107: 1795.80 | E107: 1766.30 | F107: 1741.00 | G107: 1711.50 | H107: 1821.10 | I107: 1850.60 | J107: 1875.90 | K107: 1825.3 | L107: 1770.5 | M107: 55.29793
A108: 99 | B108: ICICIBANK | C108: 345.55 | D108: 346.20 | E108: 339.95 | F108: 334.35 | G108: 328.10 | H108: 351.80 | I108: 358.05 | J108: 363.65 | K108: 352.45 | L108: 340.6 | M108: 340.33233
A109: 100 | B109: ICICIGI | C109: 1260.45 | D109: 1258.98 | E109: 1239.47 | F109: 1218.48 | G109: 1198.97 | H109: 1279.97 | I109: 1299.48 | J109: 1320.47 | K109: 1278.5 | L109: 1238 | M109: 4.37687
A110: 101 | B110: ICICIPRULI | C110: 422.05 | D110: 426.10 | E110: 415.30 | F110: 408.55 | G110: 397.75 | H110: 432.85 | I110: 443.65 | J110: 450.40 | K110: 436.9 | L110: 419.35 | M110: 38.68335
A111: 102 | B111: IDBI | C111: 39.5 | D111: 39.50 | E111: 39.50 | F111: 39.50 | G111: 39.50 | H111: 39.50 | I111: 39.50 | J111: 39.50 | K111: 39.5 | L111: 39.5 | M111: 2.96715
A112: 103 | B112: IDFCFIRSTB | C112: 25.9 | D112: 26.05 | E112: 25.45 | F112: 25.00 | G112: 24.40 | H112: 26.50 | I112: 27.10 | J112: 27.55 | K112: 26.65 | L112: 25.6 | M112: 387.28636
A113: 104 | B113: ITC | C113: 195.9 | D113: 196.05 | E113: 192.60 | F113: 189.30 | G113: 185.85 | H113: 199.35 | I113: 202.80 | J113: 206.10 | K113: 199.5 | L113: 192.75 | M113: 184.76313
A114: 105 | B114: IBULHSGFIN | C114: 223.45 | D114: 226.65 | E114: 217.35 | F114: 211.25 | G114: 201.95 | H114: 232.75 | I114: 242.05 | J114: 248.15 | K114: 235.95 | L114: 220.55 | M114: 259.52834
A115: 106 | B115: IBVENTURES | C115: 121.8 | D115: 123.87 | E115: 119.73 | F115: 117.67 | G115: 113.53 | H115: 125.93 | I115: 130.07 | J115: 132.13 | K115: 128 | L115: 121.8 | M115: 9.57948
A116: 107 | B116: INDIANB | C116: 61 | D116: 61.20 | E116: 60.00 | F116: 59.00 | G116: 57.80 | H116: 62.20 | I116: 63.40 | J116: 64.40 | K116: 62.4 | L116: 60.2 | M116: 23.31846
A117: 108 | B117: INDHOTEL | C117: 79.7 | D117: 79.87 | E117: 77.83 | F117: 75.97 | G117: 73.93 | H117: 81.73 | I117: 83.77 | J117: 85.63 | K117: 81.9 | L117: 78 | M117: 14.31749
A118: 109 | B118: IOC | C118: 86.4 | D118: 86.70 | E118: 85.60 | F118: 84.80 | G118: 83.70 | H118: 87.50 | I118: 88.60 | J118: 89.40 | K118: 87.8 | L118: 85.9 | M118: 153.45709
A119: 110 | B119: IGL | C119: 414.75 | D119: 412.62 | E119: 407.23 | F119: 399.72 | G119: 394.33 | H119: 420.13 | I119: 425.52 | J119: 433.03 | K119: 418 | L119: 405.1 | M119: 68.09127
A120: 111 | B120: INDUSINDBK | C120: 510.8 | D120: 516.95 | E120: 498.90 | F120: 487.00 | G120: 468.95 | H120: 528.85 | I120: 546.90 | J120: 558.80 | K120: 535 | L120: 505.05 | M120: 222.2159
A121: 112 | B121: NAUKRI | C121: 2895.7 | D121: 2872.48 | E121: 2838.17 | F121: 2780.63 | G121: 2746.32 | H121: 2930.02 | I121: 2964.33 | J121: 3021.87 | K121: 2906.8 | L121: 2814.95 | M121: 2.26203
A122: 113 | B122: INFY | C122: 783.25 | D122: 790.33 | E122: 774.27 | F122: 765.28 | G122: 749.22 | H122: 799.32 | I122: 815.38 | J122: 824.37 | K122: 806.4 | L122: 781.35 | M122: 89.61822
A123: 114 | B123: INDIGO | C123: 955.3 | D123: 965.18 | E123: 931.37 | F123: 907.43 | G123: 873.62 | H123: 989.12 | I123: 1022.93 | J123: 1046.87 | K123: 999 | L123: 941.25 | M123: 32.9879
A124: 115 | B124: IPCALAB | C124: 1657.5 | D124: 1653.85 | E124: 1643.75 | F124: 1630.00 | G124: 1619.90 | H124: 1667.60 | I124: 1677.70 | J124: 1691.45 | K124: 1663.95 | L124: 1640.1 | M124: 1.6632
A125: 116 | B125: JSWENERGY | C125: 44.5 | D125: 44.68 | E125: 43.87 | F125: 43.23 | G125: 42.42 | H125: 45.32 | I125: 46.13 | J125: 46.77 | K125: 45.5 | L125: 44.05 | M125: 8.1929
A126: 117 | B126: JSWSTEEL | C126: 194.05 | D126: 194.70 | E126: 191.00 | F126: 187.95 | G126: 184.25 | H126: 197.75 | I126: 201.45 | J126: 204.50 | K126: 198.4 | L126: 191.65 | M126: 72.33291
A127: 118 | B127: JINDALSTEL | C127: 165.7 | D127: 166.30 | E127: 163.70 | F127: 161.70 | G127: 159.10 | H127: 168.30 | I127: 170.90 | J127: 172.90 | K127: 168.9 | L127: 164.3 | M127: 99.31783
A128: 119 | B128: JUBLFOOD | C128: 1652.3 | D128: 1645.50 | E128: 1625.45 | F128: 1598.60 | G128: 1578.55 | H128: 1672.35 | I128: 1692.40 | J128: 1719.25 | K128: 1665.55 | L128: 1618.65 | M128: 9.43682
A129: 120 | B129: JUBILANT | C129: 688.95 | D129: 693.65 | E129: 676.30 | F129: 663.65 | G129: 646.30 | H129: 706.30 | I129: 723.65 | J129: 736.30 | K129: 711 | L129: 681 | M129: 3.69311
A130: 121 | B130: KOTAKBANK | C130: 1298.3 | D130: 1307.67 | E130: 1283.93 | F130: 1269.57 | G130: 1245.83 | H130: 1322.03 | I130: 1345.77 | J130: 1360.13 | K130: 1331.4 | L130: 1293.3 | M130: 29.15153
A131: 122 | B131: L&TFH | C131: 64.25 | D131: 65.25 | E131: 62.50 | F131: 60.75 | G131: 58.00 | H131: 67.00 | I131: 69.75 | J131: 71.50 | K131: 68 | L131: 63.5 | M131: 293.99717
A132: 123 | B132: LTTS | C132: 1439.25 | D132: 1443.92 | E132: 1420.33 | F132: 1401.42 | G132: 1377.83 | H132: 1462.83 | I132: 1486.42 | J132: 1505.33 | K132: 1467.5 | L132: 1425 | M132: 1.77879
A133: 124 | B133: LICHSGFIN | C133: 263.6 | D133: 266.45 | E133: 259.40 | F133: 255.20 | G133: 248.15 | H133: 270.65 | I133: 277.70 | J133: 281.90 | K133: 273.5 | L133: 262.25 | M133: 49.21204
A134: 125 | B134: LTI | C134: 2240.6 | D134: 2221.38 | E134: 2189.22 | F134: 2137.83 | G134: 2105.67 | H134: 2272.77 | I134: 2304.93 | J134: 2356.32 | K134: 2253.55 | L134: 2170 | M134: 2.66991
A135: 126 | B135: LT | C135: 912.9 | D135: 917.90 | E135: 900.85 | F135: 888.80 | G135: 871.75 | H135: 929.95 | I135: 947.00 | J135: 959.05 | K135: 934.95 | L135: 905.85 | M135: 36.46381
A136: 127 | B136: LUPIN | C136: 873 | D136: 874.95 | E136: 866.60 | F136: 860.20 | G136: 851.85 | H136: 881.35 | I136: 889.70 | J136: 896.10 | K136: 883.3 | L136: 868.55 | M136: 25.42417
A137: 128 | B137: MRF | C137: 64396 | D137: 64298.72 | E137: 63707.43 | F137: 63018.87 | G137: 62427.58 | H137: 64987.28 | I137: 65578.57 | J137: 66267.13 | K137: 64890 | L137: 63610.15 | M137: 0.10422
A138: 129 | B138: MGL | C138: 989.5 | D138: 982.87 | E138: 973.73 | F138: 957.97 | G138: 948.83 | H138: 998.63 | I138: 1007.77 | J138: 1023.53 | K138: 992 | L138: 967.1 | M138: 14.31269
A139: 130 | B139: M&MFIN | C139: 195.1 | D139: 196.28 | E139: 189.82 | F139: 184.53 | G139: 178.07 | H139: 201.57 | I139: 208.03 | J139: 213.32 | K139: 202.75 | L139: 191 | M139: 131.21179
A140: 131 | B140: M&M | C140: 545.2 | D140: 545.72 | E140: 537.48 | F140: 529.77 | G140: 521.53 | H140: 553.43 | I140: 561.67 | J140: 569.38 | K140: 553.95 | L140: 538 | M140: 30.9732
A141: 132 | B141: MANAPPURAM | C141: 157 | D141: 156.73 | E141: 155.07 | F141: 153.13 | G141: 151.47 | H141: 158.67 | I141: 160.33 | J141: 162.27 | K141: 158.4 | L141: 154.8 | M141: 39.99765
A142: 133 | B142: MRPL | C142: 34.85 | D142: 35.08 | E142: 34.32 | F142: 33.78 | G142: 33.02 | H142: 35.62 | I142: 36.38 | J142: 36.92 | K142: 35.85 | L142: 34.55 | M142: 5.2451
A143: 134 | B143: MARICO | C143: 348.65 | D143: 348.27 | E143: 345.78 | F143: 342.92 | G143: 340.43 | H143: 351.13 | I143: 353.62 | J143: 356.48 | K143: 350.75 | L143: 345.4 | M143: 15.63592
A144: 135 | B144: MARUTI | C144: 5771.75 | D144: 5826.83 | E144: 5694.92 | F144: 5618.08 | G144: 5486.17 | H144: 5903.67 | I144: 6035.58 | J144: 6112.42 | K144: 5958.75 | L144: 5750 | M144: 16.02939
A145: 136 | B145: MFSL | C145: 553.9 | D145: 553.12 | E145: 546.53 | F145: 539.17 | G145: 532.58 | H145: 560.48 | I145: 567.07 | J145: 574.43 | K145: 559.7 | L145: 545.75 | M145: 5.4293
A146: 137 | B146: MINDTREE | C146: 978.15 | D146: 988.92 | E146: 954.68 | F146: 931.22 | G146: 896.98 | H146: 1012.38 | I146: 1046.62 | J146: 1070.08 | K146: 1023.15 | L146: 965.45 | M146: 32.69077
A147: 138 | B147: MOTHERSUMI | C147: 93.9 | D147: 93.87 | E147: 92.48 | F147: 91.07 | G147: 89.68 | H147: 95.28 | I147: 96.67 | J147: 98.08 | K147: 95.25 | L147: 92.45 | M147: 86.72853
A148: 139 | B148: MPHASIS | C148: 933.55 | D148: 932.05 | E148: 917.65 | F148: 901.75 | G148: 887.35 | H148: 947.95 | I148: 962.35 | J148: 978.25 | K148: 946.45 | L148: 916.15 | M148: 2.13723
A149: 140 | B149: MUTHOOTFIN | C149: 1082.05 | D149: 1088.03 | E149: 1064.02 | F149: 1045.98 | G149: 1021.97 | H149: 1106.07 | I149: 1130.08 | J149: 1148.12 | K149: 1112.05 | L149: 1070 | M149: 11.35947
A150: 141 | B150: NATCOPHARM | C150: 673.35 | D150: 674.17 | E150: 664.33 | F150: 655.32 | G150: 645.48 | H150: 683.18 | I150: 693.02 | J150: 702.03 | K150: 684 | L150: 665.15 | M150: 1.24126
A151: 142 | B151: NBCC | C151: 24.2 | D151: 24.37 | E151: 23.83 | F151: 23.47 | G151: 22.93 | H151: 24.73 | I151: 25.27 | J151: 25.63 | K151: 24.9 | L151: 24 | M151: 91.74812
A152: 143 | B152: NHPC | C152: 20.05 | D152: 20.13 | E152: 19.92 | F152: 19.78 | G152: 19.57 | H152: 20.27 | I152: 20.48 | J152: 20.62 | K152: 20.35 | L152: 20 | M152: 38.33137
A153: 144 | B153: NMDC | C153: 82.55 | D153: 83.48 | E153: 81.47 | F153: 80.38 | G153: 78.37 | H153: 84.57 | I153: 86.58 | J153: 87.67 | K153: 85.5 | L153: 82.4 | M153: 44.99119
A154: 145 | B154: NTPC | C154: 87.65 | D154: 88.32 | E154: 86.73 | F154: 85.82 | G154: 84.23 | H154: 89.23 | I154: 90.82 | J154: 91.73 | K154: 89.9 | L154: 87.4 | M154: 142.42251
A155: 146 | B155: NATIONALUM | C155: 34 | D155: 34.50 | E155: 33.30 | F155: 32.60 | G155: 31.40 | H155: 35.20 | I155: 36.40 | J155: 37.10 | K155: 35.7 | L155: 33.8 | M155: 139.95246
A156: 147 | B156: NESTLEIND | C156: 16895.8 | D156: 16954.32 | E156: 16793.48 | F156: 16691.17 | G156: 16530.33 | H156: 17056.63 | I156: 17217.47 | J156: 17319.78 | K156: 17115.15 | L156: 16852 | M156: 0.75853
A157: 148 | B157: NAM-INDIA | C157: 288.35 | D157: 288.62 | E157: 280.73 | F157: 273.12 | G157: 265.23 | H157: 296.23 | I157: 304.12 | J157: 311.73 | K157: 296.5 | L157: 281 | M157: 11.49586
A158: 149 | B158: OBEROIRLTY | C158: 368.55 | D158: 369.18 | E158: 365.37 | F158: 362.18 | G158: 358.37 | H158: 372.37 | I158: 376.18 | J158: 379.37 | K158: 373 | L158: 366 | M158: 1.16722
A159: 150 | B159: ONGC | C159: 77.35 | D159: 77.82 | E159: 76.68 | F159: 76.02 | G159: 74.88 | H159: 78.48 | I159: 79.62 | J159: 80.28 | K159: 78.95 | L159: 77.15 | M159: 93.03884
A160: 151 | B160: OIL | C160: 95.15 | D160: 96.13 | E160: 94.02 | F160: 92.88 | G160: 90.77 | H160: 97.27 | I160: 99.38 | J160: 100.52 | K160: 98.25 | L160: 95 | M160: 6.89456
A161: 152 | B161: OFSS | C161: 2903.2 | D161: 2869.40 | E161: 2818.80 | F161: 2734.40 | G161: 2683.80 | H161: 2953.80 | I161: 3004.40 | J161: 3088.80 | K161: 2920 | L161: 2785 | M161: 0.63779
A162: 153 | B162: PIIND | C162: 1728.65 | D162: 1715.83 | E162: 1684.82 | F162: 1640.98 | G162: 1609.97 | H162: 1759.67 | I162: 1790.68 | J162: 1834.52 | K162: 1746.85 | L162: 1672 | M162: 2.57717
A163: 154 | B163: PNBHOUSING | C163: 203.1 | D163: 204.55 | E163: 200.10 | F163: 197.10 | G163: 192.65 | H163: 207.55 | I163: 212.00 | J163: 215.00 | K163: 209 | L163: 201.55 | M163: 2.85155
A164: 155 | B164: PAGEIND | C164: 19502.1 | D164: 19574.33 | E164: 19198.77 | F164: 18895.43 | G164: 18519.87 | H164: 19877.67 | I164: 20253.23 | J164: 20556.57 | K164: 19949.9 | L164: 19271 | M164: 0.38362
A165: 156 | B165: PETRONET | C165: 266 | D165: 266.52 | E165: 262.68 | F165: 259.37 | G165: 255.53 | H165: 269.83 | I165: 273.67 | J165: 276.98 | K165: 270.35 | L165: 263.2 | M165: 31.92812
A166: 157 | B166: PFIZER | C166: 4179.9 | D166: 4195.65 | E166: 4155.30 | F166: 4130.70 | G166: 4090.35 | H166: 4220.25 | I166: 4260.60 | J166: 4285.20 | K166: 4236 | L166: 4171.05 | M166: 1.26941
A167: 158 | B167: PIDILITIND | C167: 1380.6 | D167: 1384.40 | E167: 1373.85 | F167: 1367.10 | G167: 1356.55 | H167: 1391.15 | I167: 1401.70 | J167: 1408.45 | K167: 1394.95 | L167: 1377.65 | M167: 4.41847
A168: 159 | B168: PEL | C168: 1390.2 | D168: 1397.85 | E168: 1359.00 | F168: 1327.80 | G168: 1288.95 | H168: 1429.05 | I168: 1467.90 | J168: 1499.10 | K168: 1436.7 | L168: 1366.65 | M168: 15.0805
A169: 160 | B169: PFC | C169: 80.55 | D169: 81.58 | E169: 79.22 | F169: 77.88 | G169: 75.52 | H169: 82.92 | I169: 85.28 | J169: 86.62 | K169: 83.95 | L169: 80.25 | M169: 98.74811
A170: 161 | B170: POWERGRID | C170: 163.35 | D170: 165.05 | E170: 161.30 | F170: 159.25 | G170: 155.50 | H170: 167.10 | I170: 170.85 | J170: 172.90 | K170: 168.8 | L170: 163 | M170: 91.62722
A171: 162 | B171: PRESTIGE | C171: 185.5 | D171: 186.20 | E171: 180.80 | F171: 176.10 | G171: 170.70 | H171: 190.90 | I171: 196.30 | J171: 201.00 | K171: 191.6 | L171: 181.5 | M171: 5.15765
A172: 163 | B172: PGHH | C172: 10150.8 | D172: 10258.60 | E172: 9992.20 | F172: 9833.60 | G172: 9567.20 | H172: 10417.20 | I172: 10683.60 | J172: 10842.20 | K172: 10525 | L172: 10100 | M172: 0.06797
A173: 164 | B173: PNB | C173: 33.55 | D173: 33.80 | E173: 33.15 | F173: 32.75 | G173: 32.10 | H173: 34.20 | I173: 34.85 | J173: 35.25 | K173: 34.45 | L173: 33.4 | M173: 220.89308
A174: 165 | B174: QUESS | C174: 318.4 | D174: 322.10 | E174: 312.70 | F174: 307.00 | G174: 297.60 | H174: 327.80 | I174: 337.20 | J174: 342.90 | K174: 331.5 | L174: 316.4 | M174: 2.42022
A175: 166 | B175: RBLBANK | C175: 165 | D175: 167.20 | E175: 160.40 | F175: 155.80 | G175: 149.00 | H175: 171.80 | I175: 178.60 | J175: 183.20 | K175: 174 | L175: 162.6 | M175: 428.30161
A176: 167 | B176: RECLTD | C176: 103.3 | D176: 103.47 | E176: 102.13 | F176: 100.97 | G176: 99.63 | H176: 104.63 | I176: 105.97 | J176: 107.13 | K176: 104.8 | L176: 102.3 | M176: 46.86997
A177: 168 | B177: RAJESHEXPO | C177: 467.4 | D177: 469.08 | E177: 464.32 | F177: 461.23 | G177: 456.47 | H177: 472.17 | I177: 476.93 | J177: 480.02 | K177: 473.85 | L177: 466 | M177: 0.81478
A178: 169 | B178: RELIANCE | C178: 1917 | D178: 1915.33 | E178: 1888.97 | F178: 1860.93 | G178: 1834.57 | H178: 1943.37 | I178: 1969.73 | J178: 1997.77 | K178: 1941.7 | L178: 1887.3 | M178: 310.73591
A179: 170 | B179: SBILIFE | C179: 859.75 | D179: 867.45 | E179: 848.40 | F179: 837.05 | G179: 818.00 | H179: 878.80 | I179: 897.85 | J179: 909.20 | K179: 886.5 | L179: 856.1 | M179: 15.35948
A180: 171 | B180: SRF | C180: 3804.05 | D180: 3829.33 | E180: 3764.72 | F180: 3725.38 | G180: 3660.77 | H180: 3868.67 | I180: 3933.28 | J180: 3972.62 | K180: 3893.95 | L180: 3790 | M180: 2.08161
A181: 172 | B181: SHREECEM | C181: 22085.75 | D181: 22063.67 | E181: 21732.53 | F181: 21379.32 | G181: 21048.18 | H181: 22416.88 | I181: 22748.02 | J181: 23101.23 | K181: 22394.8 | L181: 21710.45 | M181: 0.61251
A182: 173 | B182: SRTRANSFIN | C182: 674.95 | D182: 676.77 | E182: 655.68 | F182: 636.42 | G182: 615.33 | H182: 696.03 | I182: 717.12 | J182: 736.38 | K182: 697.85 | L182: 657.5 | M182: 45.80156
A183: 174 | B183: SIEMENS | C183: 1130.8 | D183: 1140.27 | E183: 1115.53 | F183: 1100.27 | G183: 1075.53 | H183: 1155.53 | I183: 1180.27 | J183: 1195.53 | K183: 1165 | L183: 1125 | M183: 8.18153
A184: 175 | B184: SBIN | C184: 186.05 | D184: 187.65 | E184: 183.00 | F184: 179.95 | G184: 175.30 | H184: 190.70 | I184: 195.35 | J184: 198.40 | K184: 192.3 | L184: 184.6 | M184: 622.43325
A185: 176 | B185: SAIL | C185: 34.2 | D185: 34.62 | E185: 33.63 | F185: 33.07 | G185: 32.08 | H185: 35.18 | I185: 36.17 | J185: 36.73 | K185: 35.6 | L185: 34.05 | M185: 305.97467
A186: 177 | B186: STRTECH | C186: 134.6 | D186: 134.60 | E186: 131.80 | F186: 129.00 | G186: 126.20 | H186: 137.40 | I186: 140.20 | J186: 143.00 | K186: 137.4 | L186: 131.8 | M186: 12.31663
A187: 178 | B187: SUNPHARMA | C187: 492.1 | D187: 495.37 | E187: 486.83 | F187: 481.57 | G187: 473.03 | H187: 500.63 | I187: 509.17 | J187: 514.43 | K187: 503.9 | L187: 490.1 | M187: 69.97303
A188: 179 | B188: SUNTV | C188: 391 | D188: 392.03 | E188: 386.07 | F188: 381.13 | G188: 375.17 | H188: 396.97 | I188: 402.93 | J188: 407.87 | K188: 398 | L188: 387.1 | M188: 30.95986
A189: 180 | B189: SYNGENE | C189: 422.15 | D189: 425.68 | E189: 413.77 | F189: 405.38 | G189: 393.47 | H189: 434.07 | I189: 445.98 | J189: 454.37 | K189: 437.6 | L189: 417.3 | M189: 7.72255
A190: 181 | B190: TVSMOTOR | C190: 382.5 | D190: 382.88 | E190: 376.62 | F190: 370.73 | G190: 364.47 | H190: 388.77 | I190: 395.03 | J190: 400.92 | K190: 389.15 | L190: 377 | M190: 18.59411
A191: 182 | B191: TCS | C191: 2171.95 | D191: 2191.98 | E191: 2144.97 | F191: 2117.98 | G191: 2070.97 | H191: 2218.97 | I191: 2265.98 | J191: 2292.97 | K191: 2239 | L191: 2165 | M191: 29.76749
A192: 183 | B192: TATACONSUM | C192: 419.35 | D192: 421.10 | E192: 415.75 | F192: 412.15 | G192: 406.80 | H192: 424.70 | I192: 430.05 | J192: 433.65 | K192: 426.45 | L192: 417.5 | M192: 32.32206
A193: 184 | B193: TATAMTRDVR | C193: 41 | D193: 41.25 | E193: 40.30 | F193: 39.60 | G193: 38.65 | H193: 41.95 | I193: 42.90 | J193: 43.60 | K193: 42.2 | L193: 40.55 | M193: 35.42427
A194: 185 | B194: TATAMOTORS | C194: 105.15 | D194: 105.60 | E194: 103.65 | F194: 102.15 | G194: 100.20 | H194: 107.10 | I194: 109.05 | J194: 110.55 | K194: 107.55 | L194: 104.1 | M194: 469.26242
A195: 186 | B195: TATAPOWER | C195: 48.15 | D195: 48.05 | E195: 47.00 | F195: 45.85 | G195: 44.80 | H195: 49.20 | I195: 50.25 | J195: 51.40 | K195: 49.1 | L195: 46.9 | M195: 290.76742
A196: 187 | B196: TATASTEEL | C196: 336.65 | D196: 336.08 | E196: 333.17 | F196: 329.68 | G196: 326.77 | H196: 339.57 | I196: 342.48 | J196: 345.97 | K196: 339 | L196: 332.6 | M196: 83.07089
A197: 188 | B197: TECHM | C197: 598.3 | D197: 598.22 | E197: 592.63 | F197: 586.97 | G197: 581.38 | H197: 603.88 | I197: 609.47 | J197: 615.13 | K197: 603.8 | L197: 592.55 | M197: 55.25648
A198: 189 | B198: NIACL | C198: 111.95 | D198: 112.92 | E198: 110.33 | F198: 108.72 | G198: 106.13 | H198: 114.53 | I198: 117.12 | J198: 118.73 | K198: 115.5 | L198: 111.3 | M198: 2.5239
A199: 190 | B199: RAMCOCEM | C199: 659.3 | D199: 663.62 | E199: 650.73 | F199: 642.17 | G199: 629.28 | H199: 672.18 | I199: 685.07 | J199: 693.63 | K199: 676.5 | L199: 655.05 | M199: 15.18115
A200: 191 | B200: TITAN | C200: 973.8 | D200: 968.90 | E200: 959.90 | F200: 946.00 | G200: 937.00 | H200: 982.80 | I200: 991.80 | J200: 1005.70 | K200: 977.9 | L200: 955 | M200: 36.42982
A201: 192 | B201: TORNTPHARM | C201: 2421.3 | D201: 2401.08 | E201: 2372.22 | F201: 2323.13 | G201: 2294.27 | H201: 2450.17 | I201: 2479.03 | J201: 2528.12 | K201: 2429.95 | L201: 2352 | M201: 5.68166
A202: 193 | B202: TORNTPOWER | C202: 324.75 | D202: 327.05 | E202: 321.70 | F202: 318.65 | G202: 313.30 | H202: 330.10 | I202: 335.45 | J202: 338.50 | K202: 332.4 | L202: 324 | M202: 3.8712
A203: 194 | B203: UPL | C203: 437.5 | D203: 437.03 | E203: 429.57 | F203: 421.63 | G203: 414.17 | H203: 444.97 | I203: 452.43 | J203: 460.37 | K203: 444.5 | L203: 429.1 | M203: 42.14243
A204: 195 | B204: ULTRACEMCO | C204: 3770.9 | D204: 3778.57 | E204: 3736.33 | F204: 3701.77 | G204: 3659.53 | H204: 3813.13 | I204: 3855.37 | J204: 3889.93 | K204: 3820.8 | L204: 3744 | M204: 3.5172
A205: 196 | B205: UNIONBANK | C205: 30.45 | D205: 30.70 | E205: 30.00 | F205: 29.55 | G205: 28.85 | H205: 31.15 | I205: 31.85 | J205: 32.30 | K205: 31.4 | L205: 30.25 | M205: 32.46712
... 30 more rows

Sheet MidCap Intra
L5: Back To Main Page
A6: FOR INTRA DAY TRADING | K6: =Main!B10 -> 2020-07-15
A9: Sr.no | B9: Scrip | C9: CLOSE RATE | D9: Pivot Point | E9: Supports | H9: Resistances
C10: Point | E10: S1 | F10: S2 | G10: S3 | H10: R1 | I10: R2 | J10: R3 | K10: HIGH | L10: LOW | M10: Total Trade Quanity in Lakhs
A11: 1 | B11: 3MINDIA | C11: 20099.35 | D11: 20051.45 | E11: 19702.90 | F11: 19306.45 | G11: 18957.90 | H11: 20447.90 | I11: 20796.45 | J11: 21192.90 | K11: 20400 | L11: 19655 | M11: 0.0635
A12: 2 | B12: AARTIIND | C12: 917.4 | D12: 920.55 | E12: 906.85 | F12: 896.30 | G12: 882.60 | H12: 931.10 | I12: 944.80 | J12: 955.35 | K12: 934.25 | L12: 910 | M12: 2.19238
A13: 3 | B13: AAVAS | C13: 1268.55 | D13: 1273.83 | E13: 1256.72 | F13: 1244.88 | G13: 1227.77 | H13: 1285.67 | I13: 1302.78 | J13: 1314.62 | K13: 1290.95 | L13: 1262 | M13: 0.14871
A14: 4 | B14: ABBOTINDIA | C14: 15248.35 | D14: 15336.45 | E14: 15112.90 | F14: 14977.45 | G14: 14753.90 | H14: 15471.90 | I14: 15695.45 | J14: 15830.90 | K14: 15560 | L14: 15201 | M14: 0.12806
A15: 5 | B15: ABCAPITAL | C15: 57.95 | D15: 58.52 | E15: 57.03 | F15: 56.12 | G15: 54.63 | H15: 59.43 | I15: 60.92 | J15: 61.83 | K15: 60 | L15: 57.6 | M15: 21.48761
A16: 6 | B16: ABFRL | C16: 118.45 | D16: 118.73 | E16: 116.97 | F16: 115.48 | G16: 113.72 | H16: 120.22 | I16: 121.98 | J16: 123.47 | K16: 120.5 | L16: 117.25 | M16: 9.37758
A17: 7 | B17: ACC | C17: 1294.1 | D17: 1313.67 | E17: 1267.43 | F17: 1240.77 | G17: 1194.53 | H17: 1340.33 | I17: 1386.57 | J17: 1413.23 | K17: 1359.9 | L17: 1287 | M17: 25.24366
A18: 8 | B18: ADANIGAS | C18: 148.95 | D18: 150.27 | E18: 146.68 | F18: 144.42 | G18: 140.83 | H18: 152.53 | I18: 156.12 | J18: 158.38 | K18: 153.85 | L18: 148 | M18: 12.0795
A19: 9 | B19: ADANIGREEN | C19: 348.1 | D19: 353.20 | E19: 341.65 | F19: 335.20 | G19: 323.65 | H19: 359.65 | I19: 371.20 | J19: 377.65 | K19: 364.75 | L19: 346.75 | M19: 8.92125
A20: 10 | B20: ADANIPORTS | C20: 320.4 | D20: 324.53 | E20: 315.57 | F20: 310.73 | G20: 301.77 | H20: 329.37 | I20: 338.33 | J20: 343.17 | K20: 333.5 | L20: 319.7 | M20: 31.46962
A21: 11 | B21: ADANIPOWER | C21: 35.7 | D21: 35.40 | E21: 34.65 | F21: 33.60 | G21: 32.85 | H21: 36.45 | I21: 37.20 | J21: 38.25 | K21: 36.15 | L21: 34.35 | M21: 61.52177
A22: 12 | B22: ADANITRANS | C22: 247.1 | D22: 249.33 | E22: 243.77 | F22: 240.43 | G22: 234.87 | H22: 252.67 | I22: 258.23 | J22: 261.57 | K22: 254.9 | L22: 246 | M22: 2.30717
A23: 13 | B23: ADVENZYMES | C23: 167.1 | D23: 166.88 | E23: 163.27 | F23: 159.43 | G23: 155.82 | H23: 170.72 | I23: 174.33 | J23: 178.17 | K23: 170.5 | L23: 163.05 | M23: 2.07108
A24: 14 | B24: AEGISCHEM | C24: 181.2 | D24: 183.17 | E24: 175.88 | F24: 170.57 | G24: 163.28 | H24: 188.48 | I24: 195.77 | J24: 201.08 | K24: 190.45 | L24: 177.85 | M24: 3.63089
A25: 15 | B25: AFFLE | C25: 1683.3 | D25: 1701.10 | E25: 1627.20 | F25: 1571.10 | G25: 1497.20 | H25: 1757.20 | I25: 1831.10 | J25: 1887.20 | K25: 1775 | L25: 1645 | M25: 0.7937
A26: 16 | B26: AIAENG | C26: 1649.6 | D26: 1639.28 | E26: 1623.07 | F26: 1596.53 | G26: 1580.32 | H26: 1665.82 | I26: 1682.03 | J26: 1708.57 | K26: 1655.5 | L26: 1612.75 | M26: 0.21739
A27: 17 | B27: AJANTPHARM | C27: 1353.75 | D27: 1360.25 | E27: 1324.50 | F27: 1295.25 | G27: 1259.50 | H27: 1389.50 | I27: 1425.25 | J27: 1454.50 | K27: 1396 | L27: 1331 | M27: 2.59902
A28: 18 | B28: AKZOINDIA | C28: 1853.3 | D28: 1850.27 | E28: 1833.53 | F28: 1813.77 | G28: 1797.03 | H28: 1870.03 | I28: 1886.77 | J28: 1906.53 | K28: 1867 | L28: 1830.5 | M28: 0.15066
A29: 19 | B29: ALKEM | C29: 2474.9 | D29: 2452.38 | E29: 2404.77 | F29: 2334.63 | G29: 2287.02 | H29: 2522.52 | I29: 2570.13 | J29: 2640.27 | K29: 2500 | L29: 2382.25 | M29: 2.20432
A30: 20 | B30: ALLCARGO | C30: 93.1 | D30: 93.17 | E30: 91.33 | F30: 89.57 | G30: 87.73 | H30: 94.93 | I30: 96.77 | J30: 98.53 | K30: 95 | L30: 91.4 | M30: 1.4115
A31: 21 | B31: AMARAJABAT | C31: 695.9 | D31: 695.80 | E31: 686.60 | F31: 677.30 | G31: 668.10 | H31: 705.10 | I31: 714.30 | J31: 723.60 | K31: 705 | L31: 686.5 | M31: 10.58592
A32: 22 | B32: AMBER | C32: 1493.95 | D32: 1507.97 | E32: 1471.93 | F32: 1449.92 | G32: 1413.88 | H32: 1529.98 | I32: 1566.02 | J32: 1588.03 | K32: 1544 | L32: 1485.95 | M32: 0.55029
A33: 23 | B33: AMBUJACEM | C33: 190.5 | D33: 193.23 | E33: 187.27 | F33: 184.03 | G33: 178.07 | H33: 196.47 | I33: 202.43 | J33: 205.67 | K33: 199.2 | L33: 190 | M33: 43.91974
A34: 24 | B34: APLAPOLLO | C34: 1733.4 | D34: 1737.45 | E34: 1694.90 | F34: 1656.40 | G34: 1613.85 | H34: 1775.95 | I34: 1818.50 | J34: 1857.00 | K34: 1780 | L34: 1698.95 | M34: 0.37677
A35: 25 | B35: APLLTD | C35: 949.5 | D35: 953.85 | E35: 937.75 | F35: 926.00 | G35: 909.90 | H35: 965.60 | I35: 981.70 | J35: 993.45 | K35: 969.95 | L35: 942.1 | M35: 2.62735
A36: 26 | B36: APOLLOHOSP | C36: 1441.75 | D36: 1438.45 | E36: 1421.90 | F36: 1402.05 | G36: 1385.50 | H36: 1458.30 | I36: 1474.85 | J36: 1494.70 | K36: 1455 | L36: 1418.6 | M36: 8.46731
A37: 27 | B37: APOLLOTYRE | C37: 110.45 | D37: 111.47 | E37: 108.98 | F37: 107.52 | G37: 105.03 | H37: 112.93 | I37: 115.42 | J37: 116.88 | K37: 113.95 | L37: 110 | M37: 42.52913
A38: 28 | B38: ARVINDFASN | C38: 149.2 | D38: 149.20 | E38: 149.20 | F38: 149.20 | G38: 149.20 | H38: 149.20 | I38: 149.20 | J38: 149.20 | K38: 149.2 | L38: 149.2 | M38: 0.41829
A39: 29 | B39: ASAHIINDIA | C39: 168.1 | D39: 169.05 | E39: 165.10 | F39: 162.10 | G39: 158.15 | H39: 172.05 | I39: 176.00 | J39: 179.00 | K39: 173 | L39: 166.05 | M39: 0.40625
A40: 30 | B40: ASHOKA | C40: 61.35 | D40: 61.75 | E40: 60.55 | F40: 59.75 | G40: 58.55 | H40: 62.55 | I40: 63.75 | J40: 64.55 | K40: 62.95 | L40: 60.95 | M40: 17.75906
A41: 31 | B41: ASHOKLEY | C41: 50.4 | D41: 50.00 | E41: 49.10 | F41: 47.80 | G41: 46.90 | H41: 51.30 | I41: 52.20 | J41: 53.50 | K41: 50.9 | L41: 48.7 | M41: 315.59557
A42: 32 | B42: ASIANPAINT | C42: 1688.4 | D42: 1696.17 | E42: 1674.33 | F42: 1660.27 | G42: 1638.43 | H42: 1710.23 | I42: 1732.07 | J42: 1746.13 | K42: 1718 | L42: 1682.1 | M42: 13.4714
A43: 33 | B43: ASTERDM | C43: 121.15 | D43: 121.37 | E43: 118.83 | F43: 116.52 | G43: 113.98 | H43: 123.68 | I43: 126.22 | J43: 128.53 | K43: 123.9 | L43: 119.05 | M43: 0.94225
A44: 34 | B44: ASTRAL | C44: 914.45 | D44: 920.12 | E44: 903.38 | F44: 892.32 | G44: 875.58 | H44: 931.18 | I44: 947.92 | J44: 958.98 | K44: 936.85 | L44: 909.05 | M44: 0.61099
A45: 35 | B45: ASTRAZEN | C45: 3314.35 | D45: 3341.95 | E45: 3275.40 | F45: 3236.45 | G45: 3169.90 | H45: 3380.90 | I45: 3447.45 | J45: 3486.40 | K45: 3408.5 | L45: 3303 | M45: 0.36248
A46: 36 | B46: ATUL | C46: 4615.6 | D46: 4622.72 | E46: 4575.43 | F46: 4535.27 | G46: 4487.98 | H46: 4662.88 | I46: 4710.17 | J46: 4750.33 | K46: 4670 | L46: 4582.55 | M46: 0.11706
A47: 37 | B47: AUBANK | C47: 635.85 | D47: 631.62 | E47: 621.23 | F47: 606.62 | G47: 596.23 | H47: 646.23 | I47: 656.62 | J47: 671.23 | K47: 642 | L47: 617 | M47: 4.60161
A48: 38 | B48: AUROPHARMA | C48: 809.35 | D48: 812.15 | E48: 800.70 | F48: 792.05 | G48: 780.60 | H48: 820.80 | I48: 832.25 | J48: 840.90 | K48: 823.6 | L48: 803.5 | M48: 33.95425
A49: 39 | B49: AVANTIFEED | C49: 456.4 | D49: 459.32 | E49: 449.78 | F49: 443.17 | G49: 433.63 | H49: 465.93 | I49: 475.47 | J49: 482.08 | K49: 468.85 | L49: 452.7 | M49: 3.38593
A50: 40 | B50: AXISBANK | C50: 417.7 | D50: 422.97 | E50: 410.13 | F50: 402.57 | G50: 389.73 | H50: 430.53 | I50: 443.37 | J50: 450.93 | K50: 435.8 | L50: 415.4 | M50: 256.86686
A51: 41 | B51: BAJAJ-AUTO | C51: 2899.5 | D51: 2885.47 | E51: 2861.03 | F51: 2822.57 | G51: 2798.13 | H51: 2923.93 | I51: 2948.37 | J51: 2986.83 | K51: 2909.9 | L51: 2847 | M51: 6.12986
A52: 42 | B52: BAJAJCON | C52: 155.5 | D52: 157.00 | E52: 152.10 | F52: 148.70 | G52: 143.80 | H52: 160.40 | I52: 165.30 | J52: 168.70 | K52: 161.9 | L52: 153.6 | M52: 39.03518
A53: 43 | B53: BAJAJELEC | C53: 382.75 | D53: 385.35 | E53: 375.90 | F53: 369.05 | G53: 359.60 | H53: 392.20 | I53: 401.65 | J53: 408.50 | K53: 394.8 | L53: 378.5 | M53: 3.57516
A54: 44 | B54: BAJAJFINSV | C54: 6243.45 | D54: 6304.82 | E54: 6149.63 | F54: 6055.82 | G54: 5900.63 | H54: 6398.63 | I54: 6553.82 | J54: 6647.63 | K54: 6460 | L54: 6211 | M54: 11.28715
A55: 45 | B55: BAJAJHLDNG | C55: 2637.25 | D55: 2654.42 | E55: 2592.83 | F55: 2548.42 | G55: 2486.83 | H55: 2698.83 | I55: 2760.42 | J55: 2804.83 | K55: 2716 | L55: 2610 | M55: 0.58959
A56: 46 | B56: BAJFINANCE | C56: 3190.95 | D56: 3177.70 | E56: 3135.60 | F56: 3080.25 | G56: 3038.15 | H56: 3233.05 | I56: 3275.15 | J56: 3330.50 | K56: 3219.8 | L56: 3122.35 | M56: 124.04466
A57: 47 | B57: BALKRISIND | C57: 1251.75 | D57: 1254.33 | E57: 1234.42 | F57: 1217.08 | G57: 1197.17 | H57: 1271.67 | I57: 1291.58 | J57: 1308.92 | K57: 1274.25 | L57: 1237 | M57: 6.38868
A58: 48 | B58: BALMLAWRIE | C58: 107 | D58: 107.85 | E58: 105.70 | F58: 104.40 | G58: 102.25 | H58: 109.15 | I58: 111.30 | J58: 112.60 | K58: 110 | L58: 106.55 | M58: 1.8542
A59: 49 | B59: BALRAMCHIN | C59: 129.6 | D59: 127.87 | E59: 124.73 | F59: 119.87 | G59: 116.73 | H59: 132.73 | I59: 135.87 | J59: 140.73 | K59: 131 | L59: 123 | M59: 37.10971
A60: 50 | B60: BANDHANBNK | C60: 352.4 | D60: 354.20 | E60: 341.90 | F60: 331.40 | G60: 319.10 | H60: 364.70 | I60: 377.00 | J60: 387.50 | K60: 366.5 | L60: 343.7 | M60: 170.20199
A61: 51 | B61: BANKBARODA | C61: 49 | D61: 49.13 | E61: 47.97 | F61: 46.93 | G61: 45.77 | H61: 50.17 | I61: 51.33 | J61: 52.37 | K61: 50.3 | L61: 48.1 | M61: 352.13352
A62: 52 | B62: BANKINDIA | C62: 46.75 | D62: 47.15 | E62: 46.10 | F62: 45.45 | G62: 44.40 | H62: 47.80 | I62: 48.85 | J62: 49.50 | K62: 48.2 | L62: 46.5 | M62: 14.21423
A63: 53 | B63: BASF | C63: 1346.95 | D63: 1365.47 | E63: 1312.48 | F63: 1278.02 | G63: 1225.03 | H63: 1399.93 | I63: 1452.92 | J63: 1487.38 | K63: 1418.45 | L63: 1331 | M63: 6.8394
A64: 54 | B64: BATAINDIA | C64: 1282.1 | D64: 1274.10 | E64: 1260.60 | F64: 1239.10 | G64: 1225.60 | H64: 1295.60 | I64: 1309.10 | J64: 1330.60 | K64: 1287.6 | L64: 1252.6 | M64: 16.04304
A65: 55 | B65: BAYERCROP | C65: 5583.5 | D65: 5633.60 | E65: 5500.20 | F65: 5416.90 | G65: 5283.50 | H65: 5716.90 | I65: 5850.30 | J65: 5933.60 | K65: 5767 | L65: 5550.3 | M65: 0.22573
A66: 56 | B66: BBTC | C66: 1170.1 | D66: 1185.02 | E66: 1145.13 | F66: 1120.17 | G66: 1080.28 | H66: 1209.98 | I66: 1249.87 | J66: 1274.83 | K66: 1224.9 | L66: 1160.05 | M66: 2.0215
A67: 57 | B67: BDL | C67: 388.6 | D67: 395.13 | E67: 380.57 | F67: 372.53 | G67: 357.97 | H67: 403.17 | I67: 417.73 | J67: 425.77 | K67: 409.7 | L67: 387.1 | M67: 13.54537
A68: 58 | B68: BEL | C68: 97.1 | D68: 97.60 | E68: 95.05 | F68: 93.00 | G68: 90.45 | H68: 99.65 | I68: 102.20 | J68: 104.25 | K68: 100.15 | L68: 95.55 | M68: 191.74007
A69: 59 | B69: BEML | C69: 628.6 | D69: 633.18 | E69: 621.57 | F69: 614.53 | G69: 602.92 | H69: 640.22 | I69: 651.83 | J69: 658.87 | K69: 644.8 | L69: 626.15 | M69: 3.10986
A70: 60 | B70: BERGEPAINT | C70: 500.45 | D70: 498.63 | E70: 494.72 | F70: 488.98 | G70: 485.07 | H70: 504.37 | I70: 508.28 | J70: 514.02 | K70: 502.55 | L70: 492.9 | M70: 8.95741
A71: 61 | B71: BHARATFORG | C71: 366.8 | D71: 368.27 | E71: 361.53 | F71: 356.27 | G71: 349.53 | H71: 373.53 | I71: 380.27 | J71: 385.53 | K71: 375 | L71: 363 | M71: 48.3179
A72: 62 | B72: BHARTIARTL | C72: 589.35 | D72: 588.23 | E72: 579.67 | F72: 569.98 | G72: 561.42 | H72: 597.92 | I72: 606.48 | J72: 616.17 | K72: 596.8 | L72: 578.55 | M72: 323.29098
A73: 63 | B73: BHEL | C73: 38.9 | D73: 39.78 | E73: 37.62 | F73: 36.33 | G73: 34.17 | H73: 41.07 | I73: 43.23 | J73: 44.52 | K73: 41.95 | L73: 38.5 | M73: 1267.07194
A74: 64 | B74: BIOCON | C74: 437.6 | D74: 431.95 | E74: 422.65 | F74: 407.70 | G74: 398.40 | H74: 446.90 | I74: 456.20 | J74: 471.15 | K74: 441.25 | L74: 417 | M74: 260.86415
A75: 65 | B75: BIRLACORPN | C75: 579.85 | D75: 582.45 | E75: 572.95 | F75: 566.05 | G75: 556.55 | H75: 589.35 | I75: 598.85 | J75: 605.75 | K75: 591.95 | L75: 575.55 | M75: 1.04153
A76: 66 | B76: BLISSGVS | C76: 105.75 | D76: 105.55 | E76: 104.20 | F76: 102.65 | G76: 101.30 | H76: 107.10 | I76: 108.45 | J76: 110.00 | K76: 106.9 | L76: 104 | M76: 6.18174
A77: 67 | B77: BLUEDART | C77: 1983.7 | D77: 1989.85 | E77: 1969.95 | F77: 1956.20 | G77: 1936.30 | H77: 2003.60 | I77: 2023.50 | J77: 2037.25 | K77: 2009.75 | L77: 1976.1 | M77: 0.16722
A78: 68 | B78: BLUESTARCO | C78: 468.65 | D78: 471.87 | E78: 461.78 | F78: 454.92 | G78: 444.83 | H78: 478.73 | I78: 488.82 | J78: 495.68 | K78: 481.95 | L78: 465 | M78: 4.488
A79: 69 | B79: BOMDYEING | C79: 72.85 | D79: 73.52 | E79: 71.83 | F79: 70.82 | G79: 69.13 | H79: 74.53 | I79: 76.22 | J79: 77.23 | K79: 75.2 | L79: 72.5 | M79: 14.42613
A80: 70 | B80: BOSCHLTD | C80: 13246.2 | D80: 13404.00 | E80: 12943.20 | F80: 12640.20 | G80: 12179.40 | H80: 13707.00 | I80: 14167.80 | J80: 14470.80 | K80: 13864.8 | L80: 13101 | M80: 0.64206
A81: 71 | B81: BPCL | C81: 373.75 | D81: 377.25 | E81: 368.60 | F81: 363.45 | G81: 354.80 | H81: 382.40 | I81: 391.05 | J81: 396.20 | K81: 385.9 | L81: 372.1 | M81: 47.41344
A82: 72 | B82: BRIGADE | C82: 138 | D82: 137.73 | E82: 134.77 | F82: 131.53 | G82: 128.57 | H82: 140.97 | I82: 143.93 | J82: 147.17 | K82: 140.7 | L82: 134.5 | M82: 1.52197
A83: 73 | B83: BRITANNIA | C83: 3735.25 | D83: 3753.40 | E83: 3710.85 | F83: 3686.45 | G83: 3643.90 | H83: 3777.80 | I83: 3820.35 | J83: 3844.75 | K83: 3795.95 | L83: 3729 | M83: 3.9921
A84: 74 | B84: BSE | C84: 491.7 | D84: 494.23 | E84: 484.47 | F84: 477.23 | G84: 467.47 | H84: 501.47 | I84: 511.23 | J84: 518.47 | K84: 504 | L84: 487 | M84: 1.98237
A85: 75 | B85: BSOFT | C85: 100.8 | D85: 101.93 | E85: 98.37 | F85: 95.93 | G85: 92.37 | H85: 104.37 | I85: 107.93 | J85: 110.37 | K85: 105.5 | L85: 99.5 | M85: 20.90858
A86: 76 | B86: CADILAHC | C86: 353.8 | D86: 356.18 | E86: 350.37 | F86: 346.93 | G86: 341.12 | H86: 359.62 | I86: 365.43 | J86: 368.87 | K86: 362 | L86: 352.75 | M86: 25.96036
A87: 77 | B87: CANBK | C87: 100.9 | D87: 101.33 | E87: 99.37 | F87: 97.83 | G87: 95.87 | H87: 102.87 | I87: 104.83 | J87: 106.37 | K87: 103.3 | L87: 99.8 | M87: 149.06702
A88: 78 | B88: CANFINHOME | C88: 349.35 | D88: 352.78 | E88: 344.57 | F88: 339.78 | G88: 331.57 | H88: 357.57 | I88: 365.78 | J88: 370.57 | K88: 361 | L88: 348 | M88: 1.88057
A89: 79 | B89: CAPLIPOINT | C89: 381.25 | D89: 359.08 | E89: 327.27 | F89: 273.28 | G89: 241.47 | H89: 413.07 | I89: 444.88 | J89: 498.87 | K89: 390.9 | L89: 305.1 | M89: 14.89002
A90: 80 | B90: CARBORUNIV | C90: 243.65 | D90: 245.02 | E90: 241.08 | F90: 238.52 | G90: 234.58 | H90: 247.58 | I90: 251.52 | J90: 254.08 | K90: 248.95 | L90: 242.45 | M90: 2.51086
A91: 81 | B91: CARERATING | C91: 416.45 | D91: 421.63 | E91: 409.82 | F91: 403.18 | G91: 391.37 | H91: 428.27 | I91: 440.08 | J91: 446.72 | K91: 433.45 | L91: 415 | M91: 0.73797
A92: 82 | B92: CASTROLIND | C92: 122.6 | D92: 122.37 | E92: 120.98 | F92: 119.37 | G92: 117.98 | H92: 123.98 | I92: 125.37 | J92: 126.98 | K92: 123.75 | L92: 120.75 | M92: 14.72415
A93: 83 | B93: CCL | C93: 242.2 | D93: 241.62 | E93: 238.23 | F93: 234.27 | G93: 230.88 | H93: 245.58 | I93: 248.97 | J93: 252.93 | K93: 245 | L93: 237.65 | M93: 1.25932
A94: 84 | B94: CDSL | C94: 297.4 | D94: 293.77 | E94: 286.63 | F94: 275.87 | G94: 268.73 | H94: 304.53 | I94: 311.67 | J94: 322.43 | K94: 300.9 | L94: 283 | M94: 10.20987
A95: 85 | B95: CEATLTD | C95: 878.1 | D95: 882.85 | E95: 867.80 | F95: 857.50 | G95: 842.45 | H95: 893.15 | I95: 908.20 | J95: 918.50 | K95: 897.9 | L95: 872.55 | M95: 1.30536
A96: 86 | B96: CENTRALBK | C96: 16.65 | D96: 16.75 | E96: 16.25 | F96: 15.85 | G96: 15.35 | H96: 17.15 | I96: 17.65 | J96: 18.05 | K96: 17.25 | L96: 16.35 | M96: 11.59766
A97: 87 | B97: CENTURYPLY | C97: 133.15 | D97: 133.58 | E97: 130.27 | F97: 127.38 | G97: 124.07 | H97: 136.47 | I97: 139.78 | J97: 142.67 | K97: 136.9 | L97: 130.7 | M97: 7.78054
A98: 88 | B98: CERA | C98: 2210.85 | D98: 2204.72 | E98: 2186.18 | F98: 2161.52 | G98: 2142.98 | H98: 2229.38 | I98: 2247.92 | J98: 2272.58 | K98: 2223.25 | L98: 2180.05 | M98: 0.02374
A99: 89 | B99: CESC | C99: 631.05 | D99: 637.52 | E99: 620.53 | F99: 610.02 | G99: 593.03 | H99: 648.03 | I99: 665.02 | J99: 675.53 | K99: 654.5 | L99: 627 | M99: 2.63714
A100: 90 | B100: CGCL | C100: 169.35 | D100: 170.55 | E100: 166.80 | F100: 164.25 | G100: 160.50 | H100: 173.10 | I100: 176.85 | J100: 179.40 | K100: 174.3 | L100: 168 | M100: 1.042
A101: 91 | B101: CHALET | C101: 132.4 | D101: 132.55 | E101: 130.35 | F101: 128.30 | G101: 126.10 | H101: 134.60 | I101: 136.80 | J101: 138.85 | K101: 134.75 | L101: 130.5 | M101: 0.92059
A102: 92 | B102: CHAMBLFERT | C102: 151.35 | D102: 151.85 | E102: 149.55 | F102: 147.75 | G102: 145.45 | H102: 153.65 | I102: 155.95 | J102: 157.75 | K102: 154.15 | L102: 150.05 | M102: 7.16312
A103: 93 | B103: CHENNPETRO | C103: 78.4 | D103: 78.77 | E103: 77.63 | F103: 76.87 | G103: 75.73 | H103: 79.53 | I103: 80.67 | J103: 81.43 | K103: 79.9 | L103: 78 | M103: 5.14799
A104: 94 | B104: CHOLAFIN | C104: 199 | D104: 199.43 | E104: 195.37 | F104: 191.73 | G104: 187.67 | H104: 203.07 | I104: 207.13 | J104: 210.77 | K104: 203.5 | L104: 195.8 | M104: 73.88425
A105: 95 | B105: CHOLAHLDNG | C105: 321.15 | D105: 323.70 | E105: 317.45 | F105: 313.75 | G105: 307.50 | H105: 327.40 | I105: 333.65 | J105: 337.35 | K105: 329.95 | L105: 320 | M105: 0.14207
A106: 96 | B106: CIPLA | C106: 632.3 | D106: 635.85 | E106: 627.70 | F106: 623.10 | G106: 614.95 | H106: 640.45 | I106: 648.60 | J106: 653.20 | K106: 644 | L106: 631.25 | M106: 54.32821
A107: 97 | B107: COALINDIA | C107: 128.25 | D107: 128.88 | E107: 127.37 | F107: 126.48 | G107: 124.97 | H107: 129.77 | I107: 131.28 | J107: 132.17 | K107: 130.4 | L107: 128 | M107: 72.34663
A108: 98 | B108: COCHINSHIP | C108: 324.65 | D108: 324.37 | E108: 320.48 | F108: 316.32 | G108: 312.43 | H108: 328.53 | I108: 332.42 | J108: 336.58 | K108: 328.25 | L108: 320.2 | M108: 5.70541
A109: 99 | B109: COLPAL | C109: 1430 | D109: 1431.78 | E109: 1417.22 | F109: 1404.43 | G109: 1389.87 | H109: 1444.57 | I109: 1459.13 | J109: 1471.92 | K109: 1446.35 | L109: 1419 | M109: 14.57855
A110: 100 | B110: CONCOR | C110: 423.3 | D110: 422.93 | E110: 418.87 | F110: 414.43 | G110: 410.37 | H110: 427.37 | I110: 431.43 | J110: 435.87 | K110: 427 | L110: 418.5 | M110: 12.82535
A111: 101 | B111: COROMANDEL | C111: 768.3 | D111: 762.58 | E111: 753.17 | F111: 738.03 | G111: 728.62 | H111: 777.72 | I111: 787.13 | J111: 802.27 | K111: 772 | L111: 747.45 | M111: 3.55668
A112: 102 | B112: CREDITACC | C112: 548.8 | D112: 554.23 | E112: 535.47 | F112: 522.13 | G112: 503.37 | H112: 567.57 | I112: 586.33 | J112: 599.67 | K112: 573 | L112: 540.9 | M112: 0.61701
A113: 103 | B113: CRISIL | C113: 1725.85 | D113: 1741.18 | E113: 1696.67 | F113: 1667.48 | G113: 1622.97 | H113: 1770.37 | I113: 1814.88 | J113: 1844.07 | K113: 1785.7 | L113: 1712 | M113: 0.114
A114: 104 | B114: CROMPTON | C114: 243.15 | D114: 242.62 | E114: 238.58 | F114: 234.02 | G114: 229.98 | H114: 247.18 | I114: 251.22 | J114: 255.78 | K114: 246.65 | L114: 238.05 | M114: 5.10481
A115: 105 | B115: CUB | C115: 124.75 | D115: 125.70 | E115: 122.55 | F115: 120.35 | G115: 117.20 | H115: 127.90 | I115: 131.05 | J115: 133.25 | K115: 128.85 | L115: 123.5 | M115: 18.33721
A116: 106 | B116: CUMMINSIND | C116: 386.65 | D116: 384.87 | E116: 379.28 | F116: 371.92 | G116: 366.33 | H116: 392.23 | I116: 397.82 | J116: 405.18 | K116: 390.45 | L116: 377.5 | M116: 11.50765
A117: 107 | B117: CYIENT | C117: 268.3 | D117: 268.75 | E117: 260.75 | F117: 253.20 | G117: 245.20 | H117: 276.30 | I117: 284.30 | J117: 291.85 | K117: 276.75 | L117: 261.2 | M117: 12.32616
A118: 108 | B118: DABUR | C118: 479.45 | D118: 480.90 | E118: 474.40 | F118: 469.35 | G118: 462.85 | H118: 485.95 | I118: 492.45 | J118: 497.50 | K118: 487.4 | L118: 475.85 | M118: 32.09773
A119: 109 | B119: DALBHARAT | C119: 698.75 | D119: 693.32 | E119: 686.63 | F119: 674.52 | G119: 667.83 | H119: 705.43 | I119: 712.12 | J119: 724.23 | K119: 700 | L119: 681.2 | M119: 0.97204
A120: 110 | B120: DBCORP | C120: 79.3 | D120: 80.47 | E120: 77.43 | F120: 75.57 | G120: 72.53 | H120: 82.33 | I120: 85.37 | J120: 87.23 | K120: 83.5 | L120: 78.6 | M120: 5.67548
A121: 111 | B121: DBL | C121: 283.25 | D121: 282.75 | E121: 277.50 | F121: 271.75 | G121: 266.50 | H121: 288.50 | I121: 293.75 | J121: 299.50 | K121: 288 | L121: 277 | M121: 4.43034
A122: 112 | B122: DCAL | C122: 155.05 | D122: 154.75 | E122: 151.90 | F122: 148.75 | G122: 145.90 | H122: 157.90 | I122: 160.75 | J122: 163.90 | K122: 157.6 | L122: 151.6 | M122: 7.74157
A123: 113 | B123: DCBBANK | C123: 79.9 | D123: 80.55 | E123: 78.40 | F123: 76.90 | G123: 74.75 | H123: 82.05 | I123: 84.20 | J123: 85.70 | K123: 82.7 | L123: 79.05 | M123: 17.93396
A124: 114 | B124: DCMSHRIRAM | C124: 324.7 | D124: 318.80 | E124: 309.20 | F124: 293.70 | G124: 284.10 | H124: 334.30 | I124: 343.90 | J124: 359.40 | K124: 328.4 | L124: 303.3 | M124: 3.02785
A125: 115 | B125: DEEPAKNTR | C125: 548.8 | D125: 551.23 | E125: 537.67 | F125: 526.53 | G125: 512.97 | H125: 562.37 | I125: 575.93 | J125: 587.07 | K125: 564.8 | L125: 540.1 | M125: 16.70005
A126: 116 | B126: DELTACORP | C126: 89.4 | D126: 89.88 | E126: 87.52 | F126: 85.63 | G126: 83.27 | H126: 91.77 | I126: 94.13 | J126: 96.02 | K126: 92.25 | L126: 88 | M126: 8.91011
A127: 117 | B127: DHFL | C127: 13.75 | D127: 13.88 | E127: 13.52 | F127: 13.28 | G127: 12.92 | H127: 14.12 | I127: 14.48 | J127: 14.72 | K127: 14.25 | L127: 13.65 | M127: 10.79644
A128: 118 | B128: DISHTV | C128: 7.45 | D128: 7.53 | E128: 7.32 | F128: 7.18 | G128: 6.97 | H128: 7.67 | I128: 7.88 | J128: 8.02 | K128: 7.75 | L128: 7.4 | M128: 30.5645
A129: 119 | B129: DIVISLAB | C129: 2218.15 | D129: 2228.68 | E129: 2200.77 | F129: 2183.38 | G129: 2155.47 | H129: 2246.07 | I129: 2273.98 | J129: 2291.37 | K129: 2256.6 | L129: 2211.3 | M129: 8.11092
A130: 120 | B130: DIXON | C130: 6362 | D130: 6423.33 | E130: 6180.67 | F130: 5999.33 | G130: 5756.67 | H130: 6604.67 | I130: 6847.33 | J130: 7028.67 | K130: 6666 | L130: 6242 | M130: 0.6066
A131: 121 | B131: DLF | C131: 139.9 | D131: 141.38 | E131: 137.82 | F131: 135.73 | G131: 132.17 | H131: 143.47 | I131: 147.03 | J131: 149.12 | K131: 144.95 | L131: 139.3 | M131: 130.82474
A132: 122 | B132: DMART | C132: 2154.85 | D132: 2174.28 | E132: 2128.57 | F132: 2102.28 | G132: 2056.57 | H132: 2200.57 | I132: 2246.28 | J132: 2272.57 | K132: 2220 | L132: 2148 | M132: 8.41386
A133: 123 | B133: DRREDDY | C133: 3983.15 | D133: 3951.07 | E133: 3906.08 | F133: 3829.02 | G133: 3784.03 | H133: 4028.13 | I133: 4073.12 | J133: 4150.18 | K133: 3996.05 | L133: 3874 | M133: 12.08945
A134: 124 | B134: ECLERX | C134: 484.95 | D134: 483.17 | E134: 477.33 | F134: 469.72 | G134: 463.88 | H134: 490.78 | I134: 496.62 | J134: 504.23 | K134: 489 | L134: 475.55 | M134: 1.32733
A135: 125 | B135: EDELWEISS | C135: 56.6 | D135: 56.27 | E135: 55.53 | F135: 54.47 | G135: 53.73 | H135: 57.33 | I135: 58.07 | J135: 59.13 | K135: 57 | L135: 55.2 | M135: 11.38872
A136: 126 | B136: EICHERMOT | C136: 18850.15 | D136: 19068.10 | E136: 18476.60 | F136: 18103.05 | G136: 17511.55 | H136: 19441.65 | I136: 20033.15 | J136: 20406.70 | K136: 19659.6 | L136: 18694.55 | M136: 2.47507
A137: 127 | B137: EIDPARRY | C137: 280.7 | D137: 274.92 | E137: 266.13 | F137: 251.57 | G137: 242.78 | H137: 289.48 | I137: 298.27 | J137: 312.83 | K137: 283.7 | L137: 260.35 | M137: 17.69318
A138: 128 | B138: EIHOTEL | C138: 63.1 | D138: 63.80 | E138: 62.30 | F138: 61.50 | G138: 60.00 | H138: 64.60 | I138: 66.10 | J138: 66.90 | K138: 65.3 | L138: 63 | M138: 4.48635
A139: 129 | B139: ELGIEQUIP | C139: 154.15 | D139: 155.55 | E139: 150.15 | F139: 146.15 | G139: 140.75 | H139: 159.55 | I139: 164.95 | J139: 168.95 | K139: 160.95 | L139: 151.55 | M139: 1.26452
A140: 130 | B140: EMAMILTD | C140: 245.9 | D140: 245.02 | E140: 239.58 | F140: 233.27 | G140: 227.83 | H140: 251.33 | I140: 256.77 | J140: 263.08 | K140: 250.45 | L140: 238.7 | M140: 17.7131
A141: 131 | B141: ENDURANCE | C141: 884 | D141: 896.33 | E141: 867.77 | F141: 851.53 | G141: 822.97 | H141: 912.57 | I141: 941.13 | J141: 957.37 | K141: 924.9 | L141: 880.1 | M141: 1.29524
A142: 132 | B142: ENGINERSIN | C142: 70.85 | D142: 71.22 | E142: 69.63 | F142: 68.42 | G142: 66.83 | H142: 72.43 | I142: 74.02 | J142: 75.23 | K142: 72.8 | L142: 70 | M142: 12.58088
A143: 133 | B143: EQUITAS | C143: 56.95 | D143: 56.82 | E143: 55.63 | F143: 54.32 | G143: 53.13 | H143: 58.13 | I143: 59.32 | J143: 60.63 | K143: 58 | L143: 55.5 | M143: 147.68399
A144: 134 | B144: ERIS | C144: 456.95 | D144: 455.18 | E144: 445.37 | F144: 433.78 | G144: 423.97 | H144: 466.77 | I144: 476.58 | J144: 488.17 | K144: 465 | L144: 443.6 | M144: 1.16138
A145: 135 | B145: ESCORTS | C145: 1080.05 | D145: 1093.02 | E145: 1061.03 | F145: 1042.02 | G145: 1010.03 | H145: 1112.03 | I145: 1144.02 | J145: 1163.03 | K145: 1125 | L145: 1074 | M145: 14.53376
A146: 136 | B146: ESSELPACK | C146: 185.65 | D146: 187.33 | E146: 183.22 | F146: 180.78 | G146: 176.67 | H146: 189.77 | I146: 193.88 | J146: 196.32 | K146: 191.45 | L146: 184.9 | M146: 0.779
A147: 137 | B147: EXIDEIND | C147: 153.45 | D147: 154.43 | E147: 151.42 | F147: 149.38 | G147: 146.37 | H147: 156.47 | I147: 159.48 | J147: 161.52 | K147: 157.45 | L147: 152.4 | M147: 19.996
A148: 138 | B148: FCONSUMER | C148: 11.25 | D148: 11.50 | E148: 10.95 | F148: 10.65 | G148: 10.10 | H148: 11.80 | I148: 12.35 | J148: 12.65 | K148: 12.05 | L148: 11.2 | M148: 293.35104
A149: 139 | B149: FDC | C149: 259.45 | D149: 254.95 | E149: 244.50 | F149: 229.55 | G149: 219.10 | H149: 269.90 | I149: 280.35 | J149: 295.30 | K149: 265.4 | L149: 240 | M149: 25.61061
A150: 140 | B150: FEDERALBNK | C150: 51.1 | D150: 51.58 | E150: 50.17 | F150: 49.23 | G150: 47.82 | H150: 52.52 | I150: 53.93 | J150: 54.87 | K150: 53 | L150: 50.65 | M150: 222.11466
A151: 141 | B151: FINCABLES | C151: 279.75 | D151: 282.08 | E151: 274.92 | F151: 270.08 | G151: 262.92 | H151: 286.92 | I151: 294.08 | J151: 298.92 | K151: 289.25 | L151: 277.25 | M151: 0.66555
A152: 142 | B152: FINEORG | C152: 2133.9 | D152: 2096.62 | E152: 2033.43 | F152: 1932.97 | G152: 1869.78 | H152: 2197.08 | I152: 2260.27 | J152: 2360.73 | K152: 2159.8 | L152: 1996.15 | M152: 1.49843
A153: 143 | B153: FINPIPE | C153: 469 | D153: 469.67 | E153: 465.33 | F153: 461.67 | G153: 457.33 | H153: 473.33 | I153: 477.67 | J153: 481.33 | K153: 474 | L153: 466 | M153: 0.20417
A154: 144 | B154: FLFL | C154: 122.95 | D154: 124.40 | E154: 120.05 | F154: 117.15 | G154: 112.80 | H154: 127.30 | I154: 131.65 | J154: 134.55 | K154: 128.75 | L154: 121.5 | M154: 5.67461
A155: 145 | B155: FMGOETZE | C155: 368.45 | D155: 370.15 | E155: 361.30 | F155: 354.15 | G155: 345.30 | H155: 377.30 | I155: 386.15 | J155: 393.30 | K155: 379 | L155: 363 | M155: 0.00727
A156: 146 | B156: FORTIS | C156: 127.4 | D156: 127.28 | E156: 123.67 | F156: 119.93 | G156: 116.32 | H156: 131.02 | I156: 134.63 | J156: 138.37 | K156: 130.9 | L156: 123.55 | M156: 65.4317
A157: 147 | B157: FRETAIL | C157: 116.6 | D157: 115.50 | E157: 114.40 | F157: 112.20 | G157: 111.10 | H157: 117.70 | I157: 118.80 | J157: 121.00 | K157: 116.6 | L157: 113.3 | M157: 55.22374
A158: 148 | B158: FSL | C158: 40.9 | D158: 41.28 | E158: 40.12 | F158: 39.33 | G158: 38.17 | H158: 42.07 | I158: 43.23 | J158: 44.02 | K158: 42.45 | L158: 40.5 | M158: 35.67891
A159: 149 | B159: GAIL | C159: 99.05 | D159: 99.85 | E159: 97.50 | F159: 95.95 | G159: 93.60 | H159: 101.40 | I159: 103.75 | J159: 105.30 | K159: 102.2 | L159: 98.3 | M159: 94.25282
A160: 150 | B160: GALAXYSURF | C160: 1578.45 | D160: 1587.75 | E160: 1550.70 | F160: 1522.95 | G160: 1485.90 | H160: 1615.50 | I160: 1652.55 | J160: 1680.30 | K160: 1624.8 | L160: 1560 | M160: 0.33544
A161: 151 | B161: GARFIBRES | C161: 1516.9 | D161: 1513.00 | E161: 1486.10 | F161: 1455.30 | G161: 1428.40 | H161: 1543.80 | I161: 1570.70 | J161: 1601.50 | K161: 1539.9 | L161: 1482.2 | M161: 0.08761
A162: 152 | B162: GAYAPROJ | C162: 16.35 | D162: 16.03 | E162: 15.52 | F162: 14.68 | G162: 14.17 | H162: 16.87 | I162: 17.38 | J162: 18.22 | K162: 16.55 | L162: 15.2 | M162: 3.97098
A163: 153 | B163: GEPIL | C163: 497 | D163: 502.05 | E163: 489.40 | F163: 481.80 | G163: 469.15 | H163: 509.65 | I163: 522.30 | J163: 529.90 | K163: 514.7 | L163: 494.45 | M163: 0.39953
A164: 154 | B164: GESHIP | C164: 218 | D164: 217.68 | E164: 213.47 | F164: 208.93 | G164: 204.72 | H164: 222.22 | I164: 226.43 | J164: 230.97 | K164: 221.9 | L164: 213.15 | M164: 2.45508
A165: 155 | B165: GET&D | C165: 79.05 | D165: 79.35 | E165: 77.70 | F165: 76.35 | G165: 74.70 | H165: 80.70 | I165: 82.35 | J165: 83.70 | K165: 81 | L165: 78 | M165: 31.82213
A166: 156 | B166: GHCL | C166: 151.8 | D166: 151.95 | E166: 148.95 | F166: 146.10 | G166: 143.10 | H166: 154.80 | I166: 157.80 | J166: 160.65 | K166: 154.95 | L166: 149.1 | M166: 2.46121
A167: 157 | B167: GICRE | C167: 152.5 | D167: 153.30 | E167: 150.80 | F167: 149.10 | G167: 146.60 | H167: 155.00 | I167: 157.50 | J167: 159.20 | K167: 155.8 | L167: 151.6 | M167: 2.50232
A168: 158 | B168: GILLETTE | C168: 5000.95 | D168: 5000.32 | E168: 4940.63 | F168: 4880.32 | G168: 4820.63 | H168: 5060.63 | I168: 5120.32 | J168: 5180.63 | K168: 5060 | L168: 4940 | M168: 0.22271
A169: 159 | B169: GLAXO | C169: 1502.75 | D169: 1502.13 | E169: 1490.87 | F169: 1478.98 | G169: 1467.72 | H169: 1514.02 | I169: 1525.28 | J169: 1537.17 | K169: 1513.4 | L169: 1490.25 | M169: 0.22676
A170: 160 | B170: GLENMARK | C170: 407.1 | D170: 410.78 | E170: 401.32 | F170: 395.53 | G170: 386.07 | H170: 416.57 | I170: 426.03 | J170: 431.82 | K170: 420.25 | L170: 405 | M170: 44.63336
A171: 161 | B171: GMDCLTD | C171: 41.45 | D171: 41.83 | E171: 40.77 | F171: 40.08 | G171: 39.02 | H171: 42.52 | I171: 43.58 | J171: 44.27 | K171: 42.9 | L171: 41.15 | M171: 10.79689
A172: 162 | B172: GMRINFRA | C172: 19.9 | D172: 19.80 | E172: 19.35 | F172: 18.80 | G172: 18.35 | H172: 20.35 | I172: 20.80 | J172: 21.35 | K172: 20.25 | L172: 19.25 | M172: 186.88371
A173: 163 | B173: GNFC | C173: 164.1 | D173: 165.78 | E173: 160.82 | F173: 157.53 | G173: 152.57 | H173: 169.07 | I173: 174.03 | J173: 177.32 | K173: 170.75 | L173: 162.5 | M173: 7.99071
A174: 164 | B174: GODFRYPHLP | C174: 950.1 | D174: 955.93 | E174: 940.17 | F174: 930.23 | G174: 914.47 | H174: 965.87 | I174: 981.63 | J174: 991.57 | K174: 971.7 | L174: 946 | M174: 0.37919
A175: 165 | B175: GODREJAGRO | C175: 441.05 | D175: 442.85 | E175: 433.25 | F175: 425.45 | G175: 415.85 | H175: 450.65 | I175: 460.25 | J175: 468.05 | K175: 452.45 | L175: 435.05 | M175: 1.25221
A176: 166 | B176: GODREJCP | C176: 694.6 | D176: 696.23 | E176: 688.97 | F176: 683.33 | G176: 676.07 | H176: 701.87 | I176: 709.13 | J176: 714.77 | K176: 703.5 | L176: 690.6 | M176: 6.634
A177: 167 | B177: GODREJIND | C177: 360.1 | D177: 362.73 | E177: 352.57 | F177: 345.03 | G177: 334.87 | H177: 370.27 | I177: 380.43 | J177: 387.97 | K177: 372.9 | L177: 355.2 | M177: 1.29561
A178: 168 | B178: GODREJPROP | C178: 894.8 | D178: 893.57 | E178: 883.48 | F178: 872.17 | G178: 862.08 | H178: 904.88 | I178: 914.97 | J178: 926.28 | K178: 903.65 | L178: 882.25 | M178: 4.24182
A179: 169 | B179: GPPL | C179: 81.35 | D179: 81.68 | E179: 80.57 | F179: 79.78 | G179: 78.67 | H179: 82.47 | I179: 83.58 | J179: 84.37 | K179: 82.8 | L179: 80.9 | M179: 3.62132
A180: 170 | B180: GRANULES | C180: 235.2 | D180: 237.12 | E180: 229.78 | F180: 224.37 | G180: 217.03 | H180: 242.53 | I180: 249.87 | J180: 255.28 | K180: 244.45 | L180: 231.7 | M180: 26.74461
A181: 171 | B181: GRAPHITE | C181: 171.35 | D181: 172.82 | E181: 168.63 | F181: 165.92 | G181: 161.73 | H181: 175.53 | I181: 179.72 | J181: 182.43 | K181: 177 | L181: 170.1 | M181: 4.44369
A182: 172 | B182: GRASIM | C182: 596.7 | D182: 601.47 | E182: 589.08 | F182: 581.47 | G182: 569.08 | H182: 609.08 | I182: 621.47 | J182: 629.08 | K182: 613.85 | L182: 593.85 | M182: 17.51163
A183: 173 | B183: GREAVESCOT | C183: 83.85 | D183: 84.40 | E183: 82.95 | F183: 82.05 | G183: 80.60 | H183: 85.30 | I183: 86.75 | J183: 87.65 | K183: 85.85 | L183: 83.5 | M183: 2.50404
A184: 174 | B184: GRINDWELL | C184: 514.8 | D184: 517.28 | E184: 509.57 | F184: 504.33 | G184: 496.62 | H184: 522.52 | I184: 530.23 | J184: 535.47 | K184: 525 | L184: 512.05 | M184: 0.28354
A185: 175 | B185: GSFC | C185: 58.55 | D185: 59.28 | E185: 57.27 | F185: 55.98 | G185: 53.97 | H185: 60.57 | I185: 62.58 | J185: 63.87 | K185: 61.3 | L185: 58 | M185: 13.38166
A186: 176 | B186: GSPL | C186: 209.1 | D186: 210.35 | E186: 205.80 | F186: 202.50 | G186: 197.95 | H186: 213.65 | I186: 218.20 | J186: 221.50 | K186: 214.9 | L186: 207.05 | M186: 7.45673
A187: 177 | B187: GUJALKALI | C187: 333.55 | D187: 335.10 | E187: 330.45 | F187: 327.35 | G187: 322.70 | H187: 338.20 | I187: 342.85 | J187: 345.95 | K187: 339.75 | L187: 332 | M187: 0.377
A188: 178 | B188: GUJGASLTD | C188: 299.4 | D188: 302.80 | E188: 293.85 | F188: 288.30 | G188: 279.35 | H188: 308.35 | I188: 317.30 | J188: 322.85 | K188: 311.75 | L188: 297.25 | M188: 6.35979
A189: 179 | B189: GULFOILLUB | C189: 592.7 | D189: 592.87 | E189: 589.83 | F189: 586.97 | G189: 583.93 | H189: 595.73 | I189: 598.77 | J189: 601.63 | K189: 595.9 | L189: 590 | M189: 0.07378
A190: 180 | B190: HAL | C190: 904.85 | D190: 917.93 | E190: 886.92 | F190: 868.98 | G190: 837.97 | H190: 935.87 | I190: 966.88 | J190: 984.82 | K190: 948.95 | L190: 900 | M190: 3.98611
A191: 181 | B191: HATSUN | C191: 652.95 | D191: 662.22 | E191: 640.73 | F191: 628.52 | G191: 607.03 | H191: 674.43 | I191: 695.92 | J191: 708.13 | K191: 683.7 | L191: 650 | M191: 0.10865
A192: 182 | B192: HAVELLS | C192: 580.25 | D192: 578.33 | E192: 571.17 | F192: 562.08 | G192: 554.92 | H192: 587.42 | I192: 594.58 | J192: 603.67 | K192: 585.5 | L192: 569.25 | M192: 21.03458
A193: 183 | B193: HCLTECH | C193: 591.35 | D193: 597.73 | E193: 581.72 | F193: 572.08 | G193: 556.07 | H193: 607.37 | I193: 623.38 | J193: 633.02 | K193: 613.75 | L193: 588.1 | M193: 62.12718
A194: 184 | B194: HDFC | C194: 1791.6 | D194: 1795.80 | E194: 1766.30 | F194: 1741.00 | G194: 1711.50 | H194: 1821.10 | I194: 1850.60 | J194: 1875.90 | K194: 1825.3 | L194: 1770.5 | M194: 55.29793
A195: 185 | B195: HDFCAMC | C195: 2441.3 | D195: 2441.27 | E195: 2420.53 | F195: 2399.77 | G195: 2379.03 | H195: 2462.03 | I195: 2482.77 | J195: 2503.53 | K195: 2462 | L195: 2420.5 | M195: 3.80237
A196: 186 | B196: HDFCBANK | C196: 1058.85 | D196: 1059.25 | E196: 1049.60 | F196: 1040.35 | G196: 1030.70 | H196: 1068.50 | I196: 1078.15 | J196: 1087.40 | K196: 1068.9 | L196: 1050 | M196: 133.06511
A197: 187 | B197: HDFCLIFE | C197: 598.45 | D197: 599.98 | E197: 590.97 | F197: 583.48 | G197: 574.47 | H197: 607.47 | I197: 616.48 | J197: 623.97 | K197: 609 | L197: 592.5 | M197: 36.45884
A198: 188 | B198: HEG | C198: 746.1 | D198: 754.68 | E198: 734.42 | F198: 722.73 | G198: 702.47 | H198: 766.37 | I198: 786.63 | J198: 798.32 | K198: 774.95 | L198: 743 | M198: 1.8988
A199: 189 | B199: HEIDELBERG | C199: 174.4 | D199: 175.67 | E199: 171.98 | F199: 169.57 | G199: 165.88 | H199: 178.08 | I199: 181.77 | J199: 184.18 | K199: 179.35 | L199: 173.25 | M199: 3.2934
A200: 190 | B200: HERITGFOOD | C200: 249.8 | D200: 250.88 | E200: 246.92 | F200: 244.03 | G200: 240.07 | H200: 253.77 | I200: 257.73 | J200: 260.62 | K200: 254.85 | L200: 248 | M200: 0.13172
A201: 191 | B201: HEROMOTOCO | C201: 2611.85 | D201: 2632.50 | E201: 2583.35 | F201: 2554.85 | G201: 2505.70 | H201: 2661.00 | I201: 2710.15 | J201: 2738.65 | K201: 2681.65 | L201: 2604 | M201: 9.21721
A202: 192 | B202: HEXAWARE | C202: 353.9 | D202: 352.90 | E202: 347.10 | F202: 340.30 | G202: 334.50 | H202: 359.70 | I202: 365.50 | J202: 372.30 | K202: 358.7 | L202: 346.1 | M202: 13.09572
A203: 193 | B203: HFCL | C203: 12.85 | D203: 13.05 | E203: 12.65 | F203: 12.45 | G203: 12.05 | H203: 13.25 | I203: 13.65 | J203: 13.85 | K203: 13.45 | L203: 12.85 | M203: 18.09294
A204: 194 | B204: HIMATSEIDE | C204: 57.95 | D204: 58.13 | E204: 57.52 | F204: 57.08 | G204: 56.47 | H204: 58.57 | I204: 59.18 | J204: 59.62 | K204: 58.75 | L204: 57.7 | M204: 1.84123
A205: 195 | B205: HINDALCO | C205: 163.8 | D205: 164.82 | E205: 160.93 | F205: 158.07 | G205: 154.18 | H205: 167.68 | I205: 171.57 | J205: 174.43 | K205: 168.7 | L205: 161.95 | M205: 163.96527
A206: 196 | B206: HINDCOPPER | C206: 36.9 | D206: 37.62 | E206: 35.98 | F206: 35.07 | G206: 33.43 | H206: 38.53 | I206: 40.17 | J206: 41.08 | K206: 39.25 | L206: 36.7 | M206: 16.18042
... 321 more rows

Sheet Bulk Deals
E6: Back To Main Page
A7: Subject : | B7: BULK DEAL | D7: =Main!B10 -> 2020-07-15
A9: Date | B9: Scrip code | C9: Scrip Name | D9: Client Name | E9: Buy / Sell | F9: Quantity Traded | G9: Trade Price / Wt.Avg.trade price | H9: Exchange
A10: 2020-07-14 | B10: 539177 | C10: AIIL | D10: JAMISH INVESTMENT PVT. LTD. | E10: BUY | F10: 348,996 | G10: 100 | H10: BSE
A11: 2020-07-14 | B11: 539177 | C11: AIIL | D11: KHAZANA TRADELINKS PVT LTD | E11: SELL | F11: 150,000 | G11: 100 | H11: BSE
A12: 2020-07-14 | B12: 539177 | C12: AIIL | D12: RAKESH S KATHOTIA HUF | E12: SELL | F12: 155,000 | G12: 100 | H12: BSE
A13: 2020-07-14 | B13: 540697 | C13: AMFL | D13: BALWANTSINGH UJAGARSINGH PANNU | E13: BUY | F13: 5,892 | G13: 4.99 | H13: BSE
A14: 2020-07-14 | B14: 540697 | C14: AMFL | D14: BALWANTSINGH UJAGARSINGH PANNU | E14: SELL | F14: 100,590 | G14: 5.07 | H14: BSE
A15: 2020-07-14 | B15: 540697 | C15: AMFL | D15: DEVABHAI NAGJIBHAI DESAI | E15: SELL | F15: 171,799 | G15: 5 | H15: BSE
A16: 2020-07-14 | B16: 540697 | C16: AMFL | D16: NAVEEN GUPTA | E16: BUY | F16: 79,474 | G16: 4.96 | H16: BSE
A17: 2020-07-14 | B17: 540697 | C17: AMFL | D17: NAVEEN GUPTA | E17: SELL | F17: 79,474 | G17: 5.08 | H17: BSE
A18: 2020-07-14 | B18: 540697 | C18: AMFL | D18: CONSORTIUM CAPITAL PRIVATE LIMITED | E18: BUY | F18: 147,497 | G18: 5.02 | H18: BSE
A19: 2020-07-14 | B19: 540697 | C19: AMFL | D19: CONSORTIUM CAPITAL PRIVATE LIMITED | E19: SELL | F19: 136,688 | G19: 5 | H19: BSE
A20: 2020-07-14 | B20: 540697 | C20: AMFL | D20: SAHADEVSINGHROWA | E20: BUY | F20: 76,000 | G20: 5.02 | H20: BSE
A21: 2020-07-14 | B21: 543209 | C21: BILLWIN | D21: SHERWOOD SECURITIES PVT LTD | E21: BUY | F21: 18,000 | G21: 49.24 | H21: BSE
A22: 2020-07-14 | B22: 543209 | C22: BILLWIN | D22: SHERWOOD SECURITIES PVT LTD | E22: SELL | F22: 12,000 | G22: 49.56 | H22: BSE
A23: 2020-07-14 | B23: 543209 | C23: BILLWIN | D23: SANJAY PUNJABHAI PARMAR | E23: BUY | F23: 12,000 | G23: 48.78 | H23: BSE
A24: 2020-07-14 | B24: 543209 | C24: BILLWIN | D24: SANJAY PUNJABHAI PARMAR | E24: SELL | F24: 12,000 | G24: 51.5 | H24: BSE
A25: 2020-07-14 | B25: 542934 | C25: CBPL | D25: ABHISHEK PREMNARAYAN PARWAL HUF | E25: BUY | F25: 44,000 | G25: 45.25 | H25: BSE
A26: 2020-07-14 | B26: 542934 | C26: CBPL | D26: BEELINE BROKING LIMITED | E26: SELL | F26: 44,000 | G26: 45.25 | H26: BSE
A27: 2020-07-14 | B27: 531508 | C27: EVEREADY | D27: M.B. FINMART PRIVATE LIMITED | E27: BUY | F27: 1,019,280 | G27: 81.8 | H27: BSE
A28: 2020-07-14 | B28: 531508 | C28: EVEREADY | D28: VISTRA ITCL INDIA LIMITED | E28: SELL | F28: 1,219,000 | G28: 81.85 | H28: BSE
A29: 2020-07-14 | B29: 540134 | C29: IISL | D29: KESAR TRACOM INDIA LLP | E29: SELL | F29: 53,309 | G29: 12.41 | H29: BSE
A30: 2020-07-14 | B30: 538668 | C30: NAYSAA | D30: REKHA BOKHA | E30: SELL | F30: 24,000 | G30: 39.75 | H30: BSE
A31: 2020-07-14 | B31: 538668 | C31: NAYSAA | D31: VISHNU SHANTIBHAI PARMAR | E31: BUY | F31: 24,000 | G31: 39.75 | H31: BSE
A32: 2020-07-14 | B32: 540175 | C32: REGENCY | D32: RAJESH KUMAR | E32: BUY | F32: 18,962 | G32: 22.12 | H32: BSE
A33: 2020-07-14 | B33: 540175 | C33: REGENCY | D33: RAJESH KUMAR | E33: SELL | F33: 16,317 | G33: 19.31 | H33: BSE
A34: 2020-07-14 | B34: 512529 | C34: SEQUENT | D34: AGNUS HOLDINGS PRIVATE LIMITED | E34: BUY | F34: 5,481,750 | G34: 100 | H34: BSE
A35: 2020-07-14 | B35: 512529 | C35: SEQUENT | D35: AGNUS CAPITAL LLP | E35: SELL | F35: 5,481,750 | G35: 100 | H35: BSE
A36: 2020-07-14 | B36: 539520 | C36: SHAILJA | D36: PURAN CHAND CHOUDHARY | E36: BUY | F36: 50,000 | G36: 7.56 | H36: BSE
A37: 2020-07-14 | B37: 539520 | C37: SHAILJA | D37: MUKTI M SANCHETI | E37: SELL | F37: 50,000 | G37: 7.56 | H37: BSE
A38: 2020-07-14 | B38: 539310 | C38: THINKINK | D38: PARAG BABULAL KHALASI | E38: SELL | F38: 220,000 | G38: 32.5 | H38: BSE
A39: 2020-07-14 | B39: 539310 | C39: THINKINK | D39: BHAVIKA PRAKASH RATHOD | E39: BUY | F39: 152,618 | G39: 32.76 | H39: BSE
A40: 2020-07-14 | B40: 539310 | C40: THINKINK | D40: BHAVIKA PRAKASH RATHOD | E40: SELL | F40: 6,280 | G40: 32.59 | H40: BSE
A41: 2020-07-14 | B41: APOLLO | C41: Apollo Micro Systems Ltd | D41: A K G SECURITIES AND CONSULTANCY LTD. | E41: BUY | F41: 112,667 | G41: 133.1 | H41: NSE
A42: 2020-07-14 | B42: APOLLO | C42: Apollo Micro Systems Ltd | D42: N.K.SECURITIES | E42: BUY | F42: 440,844 | G42: 131.5 | H42: NSE
A43: 2020-07-14 | B43: APOLLO | C43: Apollo Micro Systems Ltd | D43: MUDUPULAVEMULA SURENDRANADHA REDDY | E43: BUY | F43: 115,268 | G43: 130.16 | H43: NSE
A44: 2020-07-14 | B44: APOLLO | C44: Apollo Micro Systems Ltd | D44: GRAVITON RESEARCH CAPITAL LLP | E44: BUY | F44: 248,690 | G44: 130.53 | H44: NSE
A45: 2020-07-14 | B45: APOLLO | C45: Apollo Micro Systems Ltd | D45: SMC REAL ESTATE ADVISORS PRIVATE LIMITED | E45: BUY | F45: 139,198 | G45: 129.52 | H45: NSE
A46: 2020-07-14 | B46: APOLLO | C46: Apollo Micro Systems Ltd | D46: VINODBHAI MANJIBHAI CHAUHAN | E46: BUY | F46: 175,144 | G46: 134.6 | H46: NSE
A47: 2020-07-14 | B47: APOLLO | C47: Apollo Micro Systems Ltd | D47: INDUS PORTFOLIO PVT. LTD. | E47: BUY | F47: 121,599 | G47: 131.72 | H47: NSE
A48: 2020-07-14 | B48: BODALCHEM | C48: Bodal Chemicals Ltd | D48: HRTI PRIVATE LIMITED | E48: BUY | F48: 768,873 | G48: 77.43 | H48: NSE
A49: 2020-07-14 | B49: CLNINDIA | C49: Clariant Chemicals (I)Ltd | D49: CENTILLION RESEARCH INDIA LLP | E49: BUY | F49: 146,677 | G49: 593.69 | H49: NSE
A50: 2020-07-14 | B50: COSMOFILMS | C50: Cosmo Films Ltd | D50: ANVIL WEALTH MANAGEMENT PRIVATE LIMITED | E50: BUY | F50: 100,285 | G50: 372.81 | H50: NSE
A51: 2020-07-14 | B51: EQUITAS | C51: Equitas Holdings Limited | D51: HRTI PRIVATE LIMITED | E51: BUY | F51: 2,708,424 | G51: 56.69 | H51: NSE
A52: 2020-07-14 | B52: EVEREADY | C52: Eveready Industries India | D52: PURAN ASSOCIATES PVT LTD | E52: BUY | F52: 1,963,006 | G52: 81.8 | H52: NSE
A53: 2020-07-14 | B53: EVEREADY | C53: Eveready Industries India | D53: VIC ENTERPRISES PRIVATE LIMITED | E53: BUY | F53: 1,963,006 | G53: 81.8 | H53: NSE
A54: 2020-07-14 | B54: EVEREADY | C54: Eveready Industries India | D54: M B FINMART PRIVATE LIMITED | E54: BUY | F54: 1,222,494 | G54: 81.8 | H54: NSE
A55: 2020-07-14 | B55: GAYAHWS | C55: Gayatri Highways Limited | D55: ALPANA MUNDRA | E55: BUY | F55: 5,860,000 | G55: 0.3 | H55: NSE
A56: 2020-07-14 | B56: GICHSGFIN | C56: Gic Housing Finance Ltd | D56: HRTI PRIVATE LIMITED | E56: BUY | F56: 453,556 | G56: 93.5 | H56: NSE
A57: 2020-07-14 | B57: GICHSGFIN | C57: Gic Housing Finance Ltd | D57: ADROIT FINANCIAL SERVICES PVT LTD | E57: BUY | F57: 480,070 | G57: 93.24 | H57: NSE
A58: 2020-07-14 | B58: IBULHSGFIN | C58: Indiabulls Hsg Fin Ltd | D58: TOWER RESEARCH CAPITAL MARKETS INDIA PRIVATE LIMITED | E58: BUY | F58: 2,297,068 | G58: 227.42 | H58: NSE
A59: 2020-07-14 | B59: IOLCP | C59: IOL Chem and Pharma Ltd | D59: CENTILLION RESEARCH INDIA LLP | E59: BUY | F59: 320,491 | G59: 752.53 | H59: NSE
A60: 2020-07-14 | B60: RIIL | C60: Reliance Indl Infra Ltd | D60: GRAVITON RESEARCH CAPITAL LLP | E60: BUY | F60: 79,919 | G60: 456.45 | H60: NSE
A61: 2020-07-14 | B61: TNPL | C61: Tamil Nadu Newsprint | D61: HRTI PRIVATE LIMITED | E61: BUY | F61: 346,771 | G61: 113.35 | H61: NSE
A62: 2020-07-14 | B62: UNITEDPOLY | C62: United Polyfab Guj. Ltd. | D62: VISHWAKARMA TRADING HOUSE | E62: BUY | F62: 90,000 | G62: 10.65 | H62: NSE
A63: 2020-07-14 | B63: AKSHARCHEM | C63: AksharChem India Limited | D63: UBS PRINCIPAL CAPITAL ASIA LIMITED | E63: SELL | F63: 58,868 | G63: 229.73 | H63: NSE
A64: 2020-07-14 | B64: APOLLO | C64: Apollo Micro Systems Ltd | D64: OHM EDUBRIDGE PRIVATE LIMITED | E64: SELL | F64: 123,000 | G64: 135.49 | H64: NSE
A65: 2020-07-14 | B65: APOLLO | C65: Apollo Micro Systems Ltd | D65: N.K.SECURITIES | E65: SELL | F65: 440,844 | G65: 131.62 | H65: NSE
A66: 2020-07-14 | B66: APOLLO | C66: Apollo Micro Systems Ltd | D66: A K G SECURITIES AND CONSULTANCY LTD. | E66: SELL | F66: 112,667 | G66: 133.18 | H66: NSE
A67: 2020-07-14 | B67: APOLLO | C67: Apollo Micro Systems Ltd | D67: INDUS PORTFOLIO PVT. LTD. | E67: SELL | F67: 121,599 | G67: 131.82 | H67: NSE
A68: 2020-07-14 | B68: APOLLO | C68: Apollo Micro Systems Ltd | D68: GRAVITON RESEARCH CAPITAL LLP | E68: SELL | F68: 248,690 | G68: 131.01 | H68: NSE
A69: 2020-07-14 | B69: APOLLO | C69: Apollo Micro Systems Ltd | D69: OHM CORE INVESTMENT CORP | E69: SELL | F69: 775,000 | G69: 130.89 | H69: NSE
A70: 2020-07-14 | B70: APOLLO | C70: Apollo Micro Systems Ltd | D70: SMC REAL ESTATE ADVISORS PRIVATE LIMITED | E70: SELL | F70: 118,703 | G70: 129.01 | H70: NSE
A71: 2020-07-14 | B71: APOLLO | C71: Apollo Micro Systems Ltd | D71: MUDUPULAVEMULA SURENDRANADHA REDDY | E71: SELL | F71: 115,268 | G71: 131.19 | H71: NSE
A72: 2020-07-14 | B72: APOLLO | C72: Apollo Micro Systems Ltd | D72: VINODBHAI MANJIBHAI CHAUHAN | E72: SELL | F72: 175,144 | G72: 129.74 | H72: NSE
A73: 2020-07-14 | B73: BODALCHEM | C73: Bodal Chemicals Ltd | D73: HRTI PRIVATE LIMITED | E73: SELL | F73: 768,873 | G73: 77.4 | H73: NSE
A74: 2020-07-14 | B74: CLNINDIA | C74: Clariant Chemicals (I)Ltd | D74: CENTILLION RESEARCH INDIA LLP | E74: SELL | F74: 146,677 | G74: 594.09 | H74: NSE
A75: 2020-07-14 | B75: EQUITAS | C75: Equitas Holdings Limited | D75: HRTI PRIVATE LIMITED | E75: SELL | F75: 2,708,424 | G75: 56.66 | H75: NSE
A76: 2020-07-14 | B76: EVEREADY | C76: Eveready Industries India | D76: IL AND FS FINANCIAL SERVICES LTD | E76: SELL | F76: 5,148,506 | G76: 81.8 | H76: NSE
A77: 2020-07-14 | B77: GAYAHWS | C77: Gayatri Highways Limited | D77: GRANTHAM AC GMO EMERGING MARKET F | E77: SELL | F77: 6,907,682 | G77: 0.3 | H77: NSE
A78: 2020-07-14 | B78: GAYAHWS | C78: Gayatri Highways Limited | D78: GMO EMERGING DOM OPPORTUNITIES FD | E78: SELL | F78: 3,123,667 | G78: 0.3 | H78: NSE
A79: 2020-07-14 | B79: GICHSGFIN | C79: Gic Housing Finance Ltd | D79: ADROIT FINANCIAL SERVICES PVT LTD | E79: SELL | F79: 479,570 | G79: 93.5 | H79: NSE
A80: 2020-07-14 | B80: GICHSGFIN | C80: Gic Housing Finance Ltd | D80: HRTI PRIVATE LIMITED | E80: SELL | F80: 453,556 | G80: 93.31 | H80: NSE
A81: 2020-07-14 | B81: IBULHSGFIN | C81: Indiabulls Hsg Fin Ltd | D81: TOWER RESEARCH CAPITAL MARKETS INDIA PRIVATE LIMITED | E81: SELL | F81: 2,113,307 | G81: 227.95 | H81: NSE
A82: 2020-07-14 | B82: IOLCP | C82: IOL Chem and Pharma Ltd | D82: CENTILLION RESEARCH INDIA LLP | E82: SELL | F82: 320,491 | G82: 752.91 | H82: NSE
A83: 2020-07-14 | B83: RIIL | C83: Reliance Indl Infra Ltd | D83: GRAVITON RESEARCH CAPITAL LLP | E83: SELL | F83: 79,919 | G83: 455.97 | H83: NSE
A84: 2020-07-14 | B84: TNPL | C84: Tamil Nadu Newsprint | D84: HRTI PRIVATE LIMITED | E84: SELL | F84: 346,771 | G84: 113.02 | H84: NSE

Sheet Call Tracker (Equity & F&O)
M5: Back To Main Page
A6: Retail Research Technical Calls & Fundamental Performance Report for the month of July-2020
M7: =Main!B10 -> 2020-07-15
B8: Positional Call
A9: Sr.no | B9: Date | D9: Company | E9: Rec | F9: Rec Price | G9: Stop Loss*** | H9: Call Closed At | I9: Target | J9: Remark | K9: Profit / Loss per Share | L9: All charges | M9: Net Gain / Loss % | N9: Status | O9: Closed Date
A10: 1 | B10: 2020-05-29 | D10: PGHH | E10: Buy | F10: 9,900.00 | G10: 9400 | H10: 10,440.00 | I10: 10700-10800 | J10: Profit of Rs.540/- | K10: =H10-F10 -> 540 | L10: =(F10*-0.8)/100 -> -79 | M10: =(K10+L10)/F10 -> 4.65% | N10: Successful | O10: 2020-07-08 | R10: H
A11: 2 | B11: 2020-06-08 | D11: CROMPTON | E11: Buy | F11: 229.00 | G11: 217 | H11: 241.50 | I11: 250-255 | J11: Profit of Rs.12.5/- | K11: 12.5 | L11: =(F11*-0.8)/100 -> -2 | M11: =(K11+L11)/F11 -> 4.66% | N11: Successful | O11: 2020-07-03 | R11: N
A12: 3 | B12: 2020-06-19 | D12: EXIDEIND | E12: Buy | F12: 150 | G12: 140.00 | H12: 159.00 | I12: 165-170 | J12: Profit of Rs.9/- | K12: =H12-F12 -> 9 | L12: -1 | M12: 5.20% | N12: Successful | O12: 2020-07-07 | R12: N
A13: 4 | B13: 2020-06-22 | D13: CADILAHC | E13: Buy | F13: 358.50 | G13: 335 | H13: 378.50 | I13: 400-410 | J13: Profit of Rs.20/- | K13: =H13-F13 -> 20 | L13: -3 | M13: 4.78% | N13: Successful | O13: 2020-07-03 | R13: N
A14: 5 | B14: 2020-06-25 | D14: DIVISLAB | E14: Buy | F14: 2,340.00 | G14: 2200 | H14: 2,195.00 | I14: 2500-2550 | J14: Loss of Rs.145/- | K14: =H14-F14 -> -145 | L14: -19 | M14: -7.00% | N14: Unsuccessful | O14: 2020-07-02 | R14: N
A15: 6 | B15: 2020-06-25 | D15: ADANIPORTS | E15: Buy | F15: 342.50 | G15: 322 | H15: 365.00 | I15: 380 | J15: Profit of Rs.22.5/- | K15: 22.5 | L15: -3 | M15: 5.77% | N15: Successful | O15: 2020-07-03 | R15: N
A16: 7 | B16: 2020-06-26 | D16: BALKRISIND | E16: Sell | F16: 1,245.00 | G16: 1310 | H16: 1,310.00 | I16: 1160-1140 | J16: Loss of Rs.65/- | K16: =F16-H16 -> -65 | L16: -10 | M16: -6.02% | N16: Unsuccessful | O16: 2020-07-03 | R16: H
A17: 8 | B17: 2020-06-26 | D17: CDSL | E17: Buy | F17: 277 | G17: 261.00 | H17: 296.00 | I17: 310-315 | J17: Profit of Rs.19/- | K17: =H17-F17 -> 19 | L17: -2 | M17: 6.06% | N17: Successful | O17: 2020-07-07 | R17: N
A18: 9 | B18: 2020-06-26 | D18: GODREJPROP | E18: Buy | F18: 863.00 | G18: 815 | H18: 898.50 | I18: 930-950 | J18: Profit of Rs.35.5/- | K18: =H18-F18 -> 35.5 | L18: -7 | M18: 3.31% | N18: Successful | O18: 2020-07-08 | R18: H
A19: 10 | B19: 2020-06-29 | D19: BATAINDIA | E19: Buy | F19: 1300 | G19: 1,235.00 | H19: 1,346.00 | I19: 1400-1450 | J19: Part Profit of Rs.46/- | K19: =H19-F19 -> 46 | L19: -10.4 | M19: 2.74% | N19: Successful | O19: 2020-07-06 | R19: H
A20: 11 | B20: 2020-06-30 | D20: UPL | E20: Buy | F20: 426.5 | G20: 400.00 | H20: 452.5 | I20: 470-480 | J20: Profit of Rs.26/- | K20: =H20-F20 -> 26 | L20: -3 | M20: 5.30% | N20: Successful | O20: 2020-07-03 | R20: N
A21: 12 | B21: 2020-07-02 | D21: LT | E21: Buy | F21: 935-945 | G21: 874 | I21: 1030-1070 | J21: Open | R21: H
A22: 13 | B22: 2020-07-03 | D22: NESTLEIND | E22: Buy | F22: 16770-16800 | G22: 15900 | I22: 18000-18500 | J22: Open | R22: N
A23: 14 | B23: 2020-07-06 | D23: CADILAHC | E23: Buy | F23: 365-368 | G23: 344 | I23: 400-410 | J23: Open | R23: N
A24: 15 | B24: 2020-07-06 | D24: AKZOINDIA | E24: Buy | F24: 1810 | G24: 1,670.00 | H24: 1,875.00 | I24: 2000-2100 | J24: Part Profit of Rs.65/- | K24: =H24-F24 -> 65 | L24: -14.48 | M24: 2.79% | N24: Successful | O24: 2020-07-07 | R24: H
A25: 16 | B25: 2020-07-06 | D25: VINATIORGA | E25: Buy | F25: 1000 | G25: 935.00 | H25: 1,040.00 | I25: 1080-1120 | J25: Part Profit of Rs.40/- | K25: =H25-F25 -> 40 | L25: -8 | M25: 3.20% | N25: Successful | O25: 2020-07-08 | R25: N
A26: 17 | B26: 2020-07-06 | D26: TORNTPHARM | E26: Buy | F26: 2340-2350 | G26: 2210 | I26: 2550-2600 | J26: Open | R26: H
A27: 18 | B27: 2020-07-08 | D27: AARTIIND | E27: Buy | F27: 935-943 | G27: 880 | I27: 1020-1050 | J27: Open | R27: H
A28: 19 | B28: 2020-07-08 | D28: IRCON | E28: Buy | F28: 99.00 | G28: 92 | H28: 92.00 | I28: 112-115 | J28: Loss of Rs.7/- | K28: =H28-F28 -> -7 | L28: =(F28*-0.8)/100 -> -1 | M28: =(K28+L28)/F28 -> -7.87% | N28: Unsuccessful | O28: 2020-07-14 | R28: H
A29: 20 | B29: 2020-07-08 | D29: MARUTI | E29: Sell | F29: 6175 | G29: 6,550.00 | H29: 5870 | I29: 5700-5500 | J29: Profit of Rs.305/- | K29: =F29-H29 -> 305 | L29: -49.4 | M29: 4.14% | N29: Successful | O29: 2020-07-14 | R29: H
A30: 21 | B30: 2020-07-08 | D30: CROMPTON | E30: Buy | F30: 237 | G30: 222.00 | H30: 250 | I30: 260-265 | J30: Profit of Rs.13/- | K30: =H30-F30 -> 13 | L30: -1.9 | M30: 4.69% | N30: Successful | O30: 2020-07-09 | R30: N
A31: 22 | B31: 2020-07-08 | D31: SUPREMEIND | E31: Buy | F31: 1130-1140 | G31: 1065 | I31: 1250-1270 | J31: Open | R31: N
A32: 23 | B32: 2020-07-09 | D32: EICHERMOT | E32: Sell | F32: 19400-19600 | G32: 20650 | I32: 18000-17500 | J32: Open | R32: H
A33: 24 | B33: 2020-07-10 | D33: CUMMINSIND | E33: Buy | F33: 394-398 | G33: 370 | I33: 440-450 | J33: Open | R33: N
A34: 25 | B34: 2020-07-13 | D34: TATACHEM | E34: Sell | F34: 300-304 | G34: 323 | I34: 265 | J34: Open | R34: N
A35: 26 | B35: 2020-07-14 | D35: ENGINERSIN | E35: Buy | F35: 70-71 | G35: 64.5 | I35: 80-84 | J35: Open | R35: H
A39: CLBS = Closing Basis ***
A40: Dividend adjusted <> | F40: Reinitiated $
A41: Part book {} | F41: Revised stoploss #
B43: Momentum Call
A44: Sr.no | B44: Date | D44: Company | E44: Rec | F44: Rec Price | G44: Stop Loss | H44: Call Closed At | I44: Target | J44: Remark | K44: Profit / Loss per Share/Lot | L44: All charges | M44: Net Gain / Loss % | N44: Status | O44: Closed Date
A45: 1 | B45: 2020-06-24 | D45: CIPLA | E45: Buy | F45: 646 | G45: 629 | H45: 625.5 | I45: 680-690 | J45: Loss of Rs.20.5/- | K45: =H45-F45 -> -20.5 | L45: =(F45*-0.8)/100 -> -5 | M45: =(K45+L45)/F45 -> -3.97% | N45: Unsuccessful | O45: 2020-07-01 | R45: H
A46: 2 | B46: 2020-06-24 | D46: LT | E46: Buy | F46: 957 | G46: 925 | H46: 925.5 | I46: 1025 | J46: Loss of Rs.31.5/- | K46: -31.5 | L46: =(F46*-0.8)/100 -> -8 | M46: =(K46+L46)/F46 -> -4.09% | N46: Unsuccessful | O46: 2020-07-01 | R46: N
A47: 3 | B47: 2020-06-26 | D47: AUROPHARMA | E47: Buy | F47: 782 | G47: 758 | H47: 803 | I47: 825 | J47: Profit of Rs.21/- | K47: 21 | L47: -6 | M47: 1.89% | N47: Successful | O47: 2020-07-08 | R47: N
A48: 4 | B48: 2020-06-29 | D48: EXIDEIND | E48: Buy | F48: 147 | G48: 142.5 | H48: 151 | I48: 156-158 | J48: Profit of Rs.4/- | K48: =H48-F48 -> 4 | L48: -1 | M48: 1.92% | N48: Successful | O48: 2020-07-02 | R48: H
A49: 5 | B49: 2020-06-30 | D49: INFY | E49: Buy | F49: 726.5 | G49: 714 | H49: 744.5 | I49: 750-760 | J49: Profit of Rs.18/- | K49: 18 | L49: -6 | M49: 1.68% | N49: Successful | O49: 2020-07-02 | R49: H
A50: 6 | B50: 2020-07-01 | D50: DIVISLAB | E50: Buy | F50: 2255 | G50: 2200 | H50: 2195 | I50: 2350 | J50: Loss of Rs.60/- | K50: =H50-F50 -> -60 | L50: =(F50*-0.8)/100 -> -18 | M50: =(K50+L50)/F50 -> -3.46% | N50: Unsuccessful | O50: 2020-07-02 | R50: H
A51: 7 | B51: 2020-07-02 | D51: AMBUJACEM | E51: Sell | F51: 194 | G51: 200 | H51: 194 | I51: 185-182 | J51: Neutral | K51: 0 | L51: =(F51*-0.8)/100 -> -2 | M51: =(K51+L51)/F51 -> -0.80% | N51: Unsuccessful | O51: 2020-07-03 | R51: H
A52: 8 | B52: 2020-07-03 | D52: CIPLA | E52: Buy | F52: 640-643 | G52: 615 | I52: 670-680 | J52: Open | R52: H
A53: 9 | B53: 2020-07-08 | D53: BHARTIARTL | E53: Buy | F53: 567 | G53: 549 | H53: 585 | I53: 600-610 | J53: Profit of Rs.18/- | K53: =H53-F53 -> 18 | L53: =(F53*-0.8)/100 -> -5 | M53: =(K53+L53)/F53 -> 2.37% | N53: Successful | O53: 2020-07-13 | R53: H
A54: 10 | B54: 2020-07-09 | D54: HCLTECH | E54: Sell | F54: 577.5 | G54: 596 | H54: 596 | I54: 550-540 | J54: Loss of Rs.18.5/- | K54: =F54-H54 -> -18.5 | L54: =(F54*-0.8)/100 -> -5 | M54: =(K54+L54)/F54 -> -4.00% | N54: Unsuccessful | O54: 2020-07-13 | R54: H
A55: 11 | B55: 2020-07-10 | D55: ACC | E55: Sell | F55: 1310 | G55: 1352 | H55: 1344 | I55: 1260-1240 | J55: Loss of Rs.34/- | K55: =F55-H55 -> -34 | L55: =(F55*-0.8)/100 -> -10 | M55: =(K55+L55)/F55 -> -3.40% | N55: Unsuccessful | O55: 2020-07-13 | R55: H
A56: 12 | B56: 2020-07-13 | D56: SIEMENS | E56: Buy | F56: 1130 | G56: 1093 | H56: 1145 | I56: 1180-1200 | J56: Profit of Rs.15/- | K56: =H56-F56 -> 15 | L56: =(F56*-0.07)/100 -> -1 | M56: =(K56+L56)/F56 -> 1.26% | N56: Successful | O56: 2020-07-13 | R56: H
A57: 13 | B57: 2020-07-14 | D57: DLF | E57: Sell | F57: 144 | G57: 149 | H57: 141.75 | I57: 137-135 | J57: Profit of Rs.2.25/- | K57: =F57-H57 -> 2.25 | L57: =(F57*-0.07)/100 -> -0 | M57: =(K57+L57)/F57 -> 1.49% | N57: Successful | O57: 2020-07-14 | R57: H
A58: 14 | B58: 2020-07-14 | D58: SONATSOFTW | E58: Buy | F58: 231.5-232.5 | G58: 227 | I58: 240-242 | J58: Open | R58: N
A59: 15 | B59: 2020-07-14 | D59: SIEMENS | E59: Buy | F59: 1127-1133 | G59: 1093 | I59: 1180-1200 | J59: Open | R59: H
A63: CLBS = Closing Basis ***
A64: Dividend adjusted <> | F64: Reinitiated $
F65: Revised stoploss #
A67: Master Trade High Risk
A68: Sr.no | B68: Date | D68: Company | E68: Rec | F68: Rec Price | G68: Stop Loss | H68: Call Closed At | I68: Target | J68: Remark | K68: Profit / Loss per share | L68: All charges | M68: Gain / Loss per Lot | N68: Lot | O68: Status | P68: Closed Date
A69: 1 | B69: 2020-07-01 | D69: NIFTY JUL FUT | E69: Sell | F69: 10395 | G69: 10555 | H69: 10555 | I69: 10200 | J69: Loss of Rs.108/- | K69: -160 | L69: =(((F69*-0.06)/100)*N69)-100 -> -567.775 | M69: =-8100-568 -> -8668 | N69: 75 | O69: Unsuccessful | P69: 2020-07-02 | R69: H
D70: NIFTY 9-JUL 10200 PE | E70: Sell | F70: 88 | H70: 36 | K70: 52
A71: 2 | B71: 2020-07-09 | D71: NIFTY JUL FUT | E71: Sell | F71: 10765 | G71: 11010 | H71: 10690 | I71: 10500-10400 | J71: Profit of Rs.95/- | K71: 75 | L71: =((F71*75)*-0.06%)-100 -> -584.425 | M71: 6541 | N71: 75 | O71: Successful | P71: 2020-07-14 | R71: H
D72: NIFTY 23-JUL 10200 PE | E72: Sell | F72: 96 | H72: 76 | K72: 20
A73: 3 | B73: 2020-07-13 | D73: BANKNIFTY JULY FUT | E73: Sell | F73: 22530 | G73: 23100 | H73: 22145 | I73: 21800 | J73: Profit of Rs.237.5/- | K73: 385 | L73: =(((-(F73*N73)*0.06))/100)-100 -> -370.36 | M73: 4380 | N73: 20 | O73: Successful | P73: 2020-07-13 | R73: H
D74: BANKNIFTY 23-JUL 22000 PE | E74: Sell | F74: 365 | H74: 512.5 | K74: -147.5
A80: Master Trade Medium Risk
A81: Sr.no | B81: Date | D81: Company | E81: Rec | F81: Rec Price | G81: Stop Loss | H81: Call Closed At | I81: Target | J81: Remark | K81: Profit/ Loss per lot | L81: All charges | M81: Gain / Loss per Lot | N81: Lot | O81: Status | P81: Closed Date
A82: 1 | B82: 2020-07-06 | D82: NIFTY 10600 PE 09-JUL | E82: Buy | F82: 58 | G82: 18 | H82: 18 | I82: 100-120 | J82: Loss of Rs.40/- | K82: =H82-F82 -> -40 | L82: -100 | M82: =(K82*N82)-L82 -> -2900 | N82: 75 | O82: Unsuccessful | P82: 2020-07-08 | R82: H
A83: 2 | B83: 2020-07-06 | D83: HINDUNILVR JULY 2180 CE | E83: Buy | F83: 56 | H83: 101 | J83: Profit of Rs. 8.5/- | K83: 45 | L83: -200 | M83: =8.5*300 -> 2550 | N83: 300 | O83: Successful | P83: 2020-07-13 | R83: H
D84: HINDUNILVR JULY 2220 CE | E84: Sell | F84: 41 | H84: 77.5 | K84: -36.5
A85: 3 | B85: 2020-07-07 | D85: BANKNIFTY 21500 PE 16-JUL | E85: Buy | F85: 300 | G85: 60 | H85: 70 | I85: 600-700 | J85: Loss of Rs.230/- | K85: =H85-F85 -> -230 | L85: -100 | M85: =(K85*N85)-L85 -> -4500 | N85: 20 | O85: Unsuccessful | P85: 2020-07-09 | R85: H
A88: Techno -Funda (positional)
A89: Sr.no | B89: Date | D89: Company | E89: Rec | F89: Rec Price | G89: Stop Loss*** | H89: Call Closed At | I89: Target | J89: Remark | K89: Profit / Loss per Share | L89: Gain / Loss % | M89: Status | N89: Closed Date | O89: NSE Closed Price
A91: CLBS = Closing Basis *** | F91: Reinitiated $
A92: Dividend adjusted <> | F92: Revised stoploss #
B97: Investment Idea
A98: Sr.no | B98: Date | D98: Company | E98: Rec | F98: Rec Price | G98: Point of Review | H98: Close Rate | I98: Target | J98: Remark | K98: Profit / Loss per Share | L98: Gain / Loss % | M98: Status | N98: Closed Date
A99: 1 | B99: 2013-11-01 | D99: L&T Finance Holding | E99: Accu | F99: 82.00 | G99: - | H99: 100 | I99: 100.00 | J99: Target Achieved | K99: =H99-F99 -> 18.00 | L99: =K99/F99 -> 21.95% | M99: Successful | N99: 2016-10-14
A100: 2 | B100: 2014-06-04 | D100: Finolex Inds | E100: Buy | F100: 257.00 | G100: - | H100: 300 | I100: 300.00 | J100: Target Achieved | K100: 43.00 | L100: 16.73% | M100: Successful | N100: 2014-07-02
A101: 3 | B101: 2014-07-08 | D101: JK Cement | E101: Buy | F101: 393.00 | G101: - | H101: 468 | I101: 468.00 | J101: Target Achieved | K101: 75.00 | L101: 19.08% | M101: Successful | N101: 2014-08-12
A102: 4 | B102: 2014-08-06 | D102: Finolex Cables | E102: Buy | F102: 205.00 | G102: - | H102: 275 | I102: 250.00 | J102: Target Achieved | K102: 70.00 | L102: 34.15% | M102: Successful | N102: 2014-11-19
A103: 5 | B103: 2014-09-04 | D103: Exide Inds | E103: Buy | F103: 162.00 | G103: - | H103: 190 | I103: 190.00 | J103: Target Achieved | K103: 28.00 | L103: 17.28% | M103: Successful | N103: 2015-01-02
A104: 6 | B104: 2014-09-04 | D104: Deepak Nitrite | E104: Buy | F104: 75.00 | G104: - | H104: 91.5 | I104: 95-100 | J104: Profit of Rs.16.50/- | K104: 16.50 | L104: 22.00% | M104: Successful | N104: 2014-11-11
A105: 7 | B105: 2014-10-01 | D105: Mercks | E105: Buy | F105: 850.00 | G105: - | H105: 982.5 | I105: 1050.00 | J105: Profit of Rs.132.50/- | K105: 132.50 | L105: 15.59% | M105: Successful | N105: 2015-02-04
A106: 8 | B106: 2014-10-01 | D106: Grindwell Norton | E106: Buy | F106: 475.00 | G106: - | H106: 515 | I106: 600.00 | J106: Profit of Rs.40/- | K106: 40.00 | L106: 8.42% | M106: Successful | N106: 2014-10-27
A107: 9 | B107: 2014-10-01 | D107: Snowman Logistics | E107: Buy | F107: 86.00 | G107: - | H107: 99 | I107: 140.00 | J107: Profit of Rs.13.00/- | K107: 13.00 | L107: 15.12% | M107: Successful | N107: 2014-10-27
A108: 10 | B108: 2014-10-14 | D108: Birla Corp | E108: Buy | F108: 496.60 | G108: - | H108: 621 | I108: 580.00 | J108: Target Achieved | K108: 124.40 | L108: 25.05% | M108: Successful | N108: 2016-08-23
A109: 11 | B109: 2014-10-14 | D109: Ultratech Cem | E109: Buy | F109: 2481.90 | G109: - | H109: 2840 | I109: 2870.00 | J109: Profit of Rs.358.10/- | K109: 358.10 | L109: 14.43% | M109: Successful | N109: 2015-01-13
A110: 12 | B110: 2014-10-16 | D110: Sintex Inds | E110: Buy | F110: 84.50 | G110: - | H110: 93 | I110: 110.00 | J110: Profit of Rs.8.50/- | K110: 8.50 | L110: 10.06% | M110: Successful | N110: 2014-10-27
A111: 13 | B111: 2014-10-16 | D111: HSIL | E111: Buy | F111: 401.00 | G111: - | H111: 428 | I111: 450.00 | J111: Profit of Rs.27.00/- | K111: 27.00 | L111: 6.73% | M111: Successful | N111: 2015-01-16
A112: 14 | B112: 2014-10-16 | D112: Eveready Inds | E112: Buy | F112: 101.00 | G112: - | H112: 112 | I112: 120.00 | J112: Profit of Rs.11.00/- | K112: 11.00 | L112: 10.89% | M112: Successful | N112: 2014-10-27
A113: 15 | B113: 2014-11-11 | D113: Pennar Inds | E113: Buy | F113: 59.00 | G113: - | H113: 76 | I113: 76.00 | J113: Target Achieved | K113: 17.00 | L113: 28.81% | M113: Successful | N113: 2017-10-24
A114: 16 | B114: 2014-11-11 | D114: Snowman Logistics | E114: Buy | F114: 99.00 | G114: - | H114: 120 | I114: 120.00 | J114: Profit of Rs.21/- | K114: 21.00 | L114: 21.21% | M114: Successful | N114: 2014-11-17
A115: 17 | B115: 2014-11-13 | D115: Dharamsi Morarji Chem | E115: Buy | F115: 22.00 | G115: - | H115: 33.55 | I115: 32.00 | J115: Profit of Rs 11.55/- | K115: 11.55 | L115: 52.50% | M115: Successful | N115: 2015-07-03
A116: 18 | B116: 2014-12-03 | D116: Tatachem | E116: Buy | F116: 440.00 | G116: - | H116: 520 | I116: 520.00 | J116: Profit of Rs 80.00/- | K116: 80.00 | L116: 18.18% | M116: Successful | N116: 2015-07-23
A117: 19 | B117: 2014-12-03 | D117: Advanta | E117: Buy | F117: 360.00 | G117: - | H117: 427 | I117: 425.00 | J117: Profit of Rs.67.00/- | K117: 67.00 | L117: 18.61% | M117: Successful | N117: 2015-02-23
A118: 20 | B118: 2015-01-08 | D118: GDL | E118: Buy | F118: 360.00 | G118: - | H118: 455 | I118: 420.00 | J118: Profit of Rs.95.00/- | K118: 95.00 | L118: 26.39% | M118: Successful | N118: 2015-01-20
A119: 21 | B119: 2015-01-08 | D119: NRB Bearing | E119: Buy | F119: 130.00 | H119: 175.5 | I119: 165.00 | J119: Profit of Rs 45.50/- | K119: 45.50 | L119: 35.00% | M119: Successful | N119: 2017-12-19
A120: 22 | B120: 2015-02-05 | D120: GSFC | E120: Accu | F120: 98.00 | H120: 120 | I120: 120.00 | J120: Target Achieved | K120: 22.00 | L120: 22.45% | M120: Successful | N120: 2017-01-18
A121: 23 | B121: 2015-02-05 | D121: Sundrmfast | E121: Accu | F121: 196.00 | H121: 262 | I121: 255.00 | J121: Target Achieved | K121: 66.00 | L121: 33.67% | M121: Successful | N121: 2016-08-17
A122: 24 | B122: 2015-03-04 | D122: GPPL | E122: Accu | F122: 235 | H122: 77.00 | I122: 280-285 | J122: Loss of Rs.158/- | K122: -158.00 | L122: -67.23% | M122: Unsuccessful | N122: 2019-02-26
A123: 25 | B123: 2015-03-04 | D123: ORIENTCEM | E123: Accu | F123: 185.00 | H123: 224 | I123: 220-225 | J123: Target Achieved | K123: 39.00 | L123: 21.08% | M123: Successful | N123: 2016-10-04
A124: 26 | B124: 2015-03-27 | D124: PFS | E124: Accu | F124: 49.5 | H124: 15.85 | I124: 67.00 | J124: Loss of Rs.33.65/- | K124: -33.65 | L124: -68% | M124: Unsuccessful | N124: 2019-06-11
A125: 27 | B125: 2015-03-30 | D125: Walchandnagar Ind Ltd | E125: Accu | F125: 183.50 | H125: 219 | I125: 218.00 | J125: Profit of Rs.35.50/- | K125: 35.50 | L125: 19.35% | M125: Successful | N125: 2015-04-09
A126: 28 | B126: 2015-04-20 | D126: Kalpataru Power Transmission Ltd | E126: Accu | F126: =(227+237)/2 -> 232.00 | H126: 298 | I126: 298.00 | J126: Target Achieved | K126: 66.00 | L126: 28.45% | M126: Successful | N126: 2017-03-29
A127: 29 | B127: 2015-05-04 | D127: Mastek Ltd | E127: Buy | F127: 385.00 | H127: =212.5+331 -> 543.5 | I127: 510.00 | J127: Profit of Rs 158.50/- | K127: 158.50 | L127: 41.17% | M127: Successful | N127: 2015-08-19
A128: 30 | B128: 2015-05-04 | D128: Suprajit Eng | E128: Buy | F128: 115.50 | H128: 146 | I128: 142.00 | J128: Profit of Rs 30.50/- | K128: 30.50 | L128: 26.41% | M128: Successful | N128: 2015-07-17
A129: 31 | B129: 2015-05-27 | D129: TCI | E129: Buy | F129: 237.50 | H129: 279.5 | I129: 278.00 | J129: Target Achieved | K129: 42.00 | L129: 17.68% | M129: Successful | N129: 2015-08-06
A130: 32 | B130: 2015-06-19 | D130: HSIL | E130: Accu | F130: 340.00 | H130: 448 | I130: 448.00 | J130: Target Achieved | K130: 108.00 | L130: 31.76% | M130: Successful | N130: 2017-10-10
A131: 33 | B131: 2015-07-06 | D131: Capital First | E131: Accu | F131: 390.00 | H131: 460 | I131: 460.00 | J131: Target Achieved | K131: =H131-F131 -> 70.00 | L131: =K131/F131 -> 17.95% | M131: Successful | N131: 2016-04-18
A132: 34 | B132: 2015-07-10 | D132: Dolphin OffShore | E132: Accu | F132: 122.5 | H132: 61.00 | I132: 172.00 | J132: Loss of Rs.61.50/- | K132: -61.50 | L132: -50.20% | M132: Unsuccessful | N132: 2018-08-21
A133: 35 | B133: 2015-08-03 | D133: Allcargo logistics | E133: Accu | F133: 297.50 | H133: 350 | I133: 360.00 | J133: Profit of Rs 52.50/- | K133: 52.50 | L133: 17.65% | M133: Successful | N133: 2015-08-16
A134: 36 | B134: 2015-08-03 | D134: Camline Fine | E134: Accu | F134: 115.50 | H134: 149 | I134: 140.00 | J134: Profit of Rs 33.50/- | K134: 33.50 | L134: 29.00% | M134: Successful | N134: 2017-01-05
A135: 37 | B135: 2015-09-04 | D135: TCI | E135: Accu | F135: 226.00 | H135: 292 | I135: 292.00 | J135: Target Achieved | K135: 66.00 | L135: 29.20% | M135: Successful | N135: 2015-10-09
A136: 38 | B136: 2015-09-07 | D136: Kalpataru Power Transmission Ltd | E136: Accu | F136: 232.50 | H136: 312.5 | I136: 310.00 | J136: Target Achieved | K136: 80.00 | L136: 34.41% | M136: Successful | N136: 2017-03-29
A137: 39 | B137: 2015-09-21 | D137: LLOYD ELECTRIC & ENG LTD | E137: Accu | F137: 196.50 | H137: 238 | I137: 238.00 | J137: Target Achieved | K137: 41.50 | L137: 21.12% | M137: Successful | N137: 2015-10-14
A138: 40 | B138: 2015-09-24 | D138: L&T Finance Holding | E138: Accu | F138: 65.00 | H138: 82 | I138: 82.00 | J138: Target Achieved | K138: 17.00 | L138: 26.15% | M138: Successful | N138: 2016-07-27
A139: 41 | B139: 2015-10-14 | D139: KEC International ltd | E139: Accu | F139: 144.00 | H139: 182.5 | I139: 181.00 | J139: Target Achieved | K139: 38.50 | L139: 26.74% | M139: Successful | N139: 2017-03-23
A140: 42 | B140: 2015-10-14 | D140: Gruh Finance | E140: Accu | F140: 264.00 | H140: 311 | I140: 311.00 | J140: Target Achieved | K140: 47.00 | L140: 17.80% | M140: Successful | N140: 2016-08-22
A141: 43 | B141: 2015-11-10 | D141: Pidilitind | E141: Buy | F141: 549.50 | H141: 630 | I141: 630.00 | J141: Target Achieved | K141: 80.50 | L141: 14.65% | M141: Successful | N141: 2016-02-19
A142: 44 | B142: 2015-12-04 | D142: Zensar Technology | E142: Accu | F142: 1027.50 | H142: 1315 | I142: 1250.00 | J142: Target Achieved | K142: 287.50 | L142: 27.98% | M142: Successful | N142: 2018-05-24
A143: 45 | B143: 2015-12-29 | D143: Vinati Organics Ltd | E143: Accu | F143: 465.00 | H143: 540 | I143: 540.00 | J143: Target Achieved | K143: 75.00 | L143: 16.13% | M143: Successful | N143: 2016-06-09
A144: 46 | B144: 2016-01-11 | D144: GSFC | E144: Buy | F144: 81.00 | H144: 110 | I144: 110.00 | J144: Target Achieved | K144: 29.00 | L144: 35.80% | M144: Successful | N144: 2017-01-10
A145: 47 | B145: 2016-01-13 | D145: SSWL | E145: Buy | F145: 417.50 | H145: 547 | I145: 535.00 | J145: Target Achieved | K145: 129.50 | L145: 31.02% | M145: Successful | N145: 2016-07-27
A146: 48 | B146: 2016-02-08 | D146: Persistent System Ltd | E146: Accu | F146: 650.00 | H146: 800 | I146: 800.00 | J146: Target Achieved | K146: 150.00 | L146: 23.08% | M146: Successful | N146: 2018-02-23
A147: 49 | B147: 2016-03-04 | D147: UPL | E147: Accu | F147: 437.50 | H147: 504.5 | I147: 522.00 | J147: Profit of Rs.67/- | K147: 67.00 | L147: 15.31% | M147: Successful | N147: 2016-04-20
A148: 50 | B148: 2016-03-09 | D148: Ashoka Buildcon Ltd | E148: Accu | F148: 189.50 | H148: 218 | I148: 218.00 | J148: Target Achieved | K148: 28.50 | L148: 15.04% | M148: Successful | N148: 2017-10-26
A149: 51 | B149: 2016-04-11 | D149: PTC INDIA FIN SERV LTD | E149: Accu | F149: 36.5 | H149: 15.85 | I149: 60.00 | J149: Loss of Rs.20.65/- | K149: -20.65 | L149: -56.58% | M149: Unsuccessful | N149: 2019-06-11
A150: 52 | B150: 2016-04-12 | D150: CAMLINFINE $ | E150: Accu | F150: 93.00 | H150: 149 | I150: 140.00 | J150: Profit of Rs 56/- | K150: 56.00 | L150: 60.22% | M150: Successful | N150: 2017-01-05
A151: 53 | B151: 2016-04-12 | D151: Greaves Cotton Ltd. | E151: Accu | F151: 130.00 | H151: 150 | I151: 150-155 | J151: Target Achieved | K151: 20.00 | L151: 15.38% | M151: Successful | N151: 2016-07-13
A152: 54 | B152: 2016-04-13 | D152: DHFL | E152: Accu | F152: 196.00 | H152: 299 | I152: 299.00 | J152: Target Achieved | K152: 103.00 | L152: 52.55% | M152: Successful | N152: 2016-09-07
A153: 55 | B153: 2016-04-13 | D153: Magma | E153: Accu | F153: 88.00 | H153: 103 | I153: 103.00 | J153: Target Achieved | K153: 15.00 | L153: 17.05% | M153: Successful | N153: 2016-06-09
A154: 56 | B154: 2016-05-02 | D154: KEC International ltd $ | E154: Accu | F154: 127.50 | H154: 148 | I154: 148-150 | J154: Target Achieved | K154: =H154-F154 -> 20.50 | L154: =K154/F154 -> 16.08% | M154: Successful | N154: 2016-07-13
A155: 57 | B155: 2016-05-03 | D155: Mindtree | E155: Accu | F155: 675.00 | H155: 815 | I155: 790-800 | J155: Target Achieved | K155: =H155-F155 -> 140.00 | L155: =K155/F155 -> 20.74% | M155: Successful | N155: 2018-02-23
A156: 58 | B156: 2016-06-01 | D156: Atulauto | E156: Accu | F156: 500 | H156: 232.50 | I156: 565-570 | J156: Loss of Rs.267.50 /- | K156: =H156-F156 -> -267.50 | L156: =K156/F156 -> -53.50% | M156: Unsuccessful | N156: 2019-09-27
A157: 59 | B157: 2016-06-06 | D157: TRITURBINE | E157: Accu | F157: 110.00 | H157: 126.5 | I157: 125.00 | J157: Profit of Rs.16.50/- | K157: =H157-F157 -> 16.50 | L157: =K157/F157 -> 15.00% | M157: Successful | N157: 2016-07-01
A158: 60 | B158: 2016-06-17 | D158: Pennar Industries Ltd | E158: Accu | F158: 44.00 | H158: 69.5 | I158: 69.50 | J158: Profit of Rs.25.50/- | K158: =H158-F158 -> 25.50 | L158: =K158/F158 -> 57.95% | M158: Successful | N158: 2017-08-30
A159: 61 | B159: 2016-06-28 | D159: EVEREADY | E159: Accu | F159: 262.50 | H159: 340 | I159: 333.00 | J159: Profit of Rs.77.50/- | K159: 77.50 | L159: 29.52% | M159: Successful | N159: 2017-10-09
A160: 62 | B160: 2016-06-28 | D160: FIEMIND | E160: Accu | F160: 840.00 | H160: 1230 | I160: 1230.00 | J160: Target Achieved | K160: 390.00 | L160: 46.43% | M160: Successful | N160: 2016-10-06
A161: 63 | B161: 2016-07-05 | D161: Bajaj Corp Ltd | E161: Accu | F161: 395 | H161: =(468.5+342.5)/2 -> 405.50 | I161: 510.00 | J161: Profit of Rs.10.50/- | K161: =H161-F161 -> 10.50 | L161: =K161/F161 -> 3% | M161: Neutral | N161: 2019-05-21
A162: 64 | B162: 2016-08-02 | D162: GPPL $ | E162: Buy | F162: =169.5-12.8 -> 156.7 | H162: 77.00 | I162: 198-200 | J162: Loss of Rs.79.7/- | K162: -79.70 | L162: -50.86% | M162: Unsuccessful | N162: 2019-02-26
A163: 65 | B163: 2016-08-04 | D163: WONDERLA HOLIDAYS LTD | E163: Accu | F163: 400 | H163: 305.00 | I163: 475.00 | J163: Loss of Rs.95/- | K163: -95.00 | L163: -23.75% | M163: Unsuccessful | N163: 2019-05-21
A164: 66 | B164: 2016-08-11 | D164: CAMLINFINE | E164: Accu | F164: 86.50 | H164: 130 | I164: 130.00 | J164: Profit of Rs.43.50/- | K164: 43.50 | L164: 50.29% | M164: Successful | N164: 2017-12-22
A165: 67 | B165: 2016-08-18 | D165: GRANULES | E165: Accu | F165: 133.5 | H165: 126.50 | I165: 178.00 | J165: Exit | K165: -7.00 | L165: -5.24% | M165: Unsuccessful | N165: 2016-09-02
A166: 68 | B166: 2016-08-31 | D166: VA TECH WABAG | E166: Accu | F166: 560.00 | H166: 725 | I166: 725.00 | J166: Target Achieved | K166: 165.00 | L166: 29.46% | M166: Successful | N166: 2016-03-27
A167: 69 | B167: 2016-09-01 | D167: SKIPPER LIMITED | E167: Accu | F167: 160.50 | H167: 210 | I167: 210.00 | J167: Target Achieved | K167: 49.50 | L167: 30.84% | M167: Successful | N167: 2017-05-16
A168: 70 | B168: 2016-10-03 | D168: IFBIND | E168: Accu | F168: 430.00 | H168: 596 | I168: 575.00 | J168: Profit of Rs.166/- | K168: 166.00 | L168: 38.60% | M168: Successful | N168: 2017-02-03
A169: 71 | B169: 2016-10-14 | D169: ASIANTILES | E169: Accu | F169: 280.00 | H169: 345 | I169: 345.00 | J169: Target Achieved | K169: =H169-F169 -> 65.00 | L169: =K169/F169 -> 23.21% | M169: Successful | N169: 2017-03-20
A170: 72 | B170: 2016-10-14 | D170: DEEPIND | E170: Accu | F170: 245.00 | H170: 325.5 | I170: 330.00 | J170: Profit of Rs.80.5/- | K170: 80.50 | L170: =K170/F170 -> 32.86% | M170: Successful | N170: 2017-02-03
A171: 73 | B171: 2016-10-17 | D171: DCBBANK | E171: Accu | F171: 125.00 | H171: 160 | I171: 160.00 | J171: Target Achieved | K171: 35.00 | L171: 28.00% | M171: Successful | N171: 2017-03-09
A172: 74 | B172: 2016-10-17 | D172: ORIENTREF | E172: Accu | F172: 114.00 | H172: 145 | I172: 145.00 | J172: Target Achieved | K172: 31.00 | L172: =K172/F172 -> 27.19% | M172: Successful | N172: 2017-05-04
A173: 75 | B173: 2016-10-17 | D173: GANECOS | E173: Accu | F173: 212.00 | H173: 280 | I173: 276.00 | J173: Profit of Rs.68/- | K173: 68.00 | L173: =K173/F173 -> 32.08% | M173: Successful | N173: 2017-05-03
A174: 76 | B174: 2016-11-04 | D174: NBCC | E174: Accu | F174: 155.00 | H174: 210 | I174: 210.00 | J174: Profit of Rs.55/- | K174: 55.00 | L174: =K174/F174 -> 35.48% | M174: Successful | N174: 2017-07-28
A175: 77 | B175: 2016-12-06 | D175: PRECAM | E175: Accu | F175: 150.5 | H175: 72.50 | I175: 174.00 | J175: Loss of Rs.78/- | K175: -78.00 | L175: -51.83% | M175: Unsuccessful | N175: 2018-08-21
A176: 78 | B176: 2016-12-08 | D176: INFRATEL | E176: Accu | F176: 380.00 | H176: 478 | I176: 468.00 | J176: Target Achieved | K176: =H176-F176 -> 98.00 | L176: =K176/F176 -> 25.79% | M176: Successful | N176: 2017-10-17
A177: 79 | B177: 2016-12-30 | D177: GODREJPROP | E177: Accu | F177: 305.00 | H177: 375 | I177: 375.00 | J177: Target Achieved | K177: =H177-F177 -> 70.00 | L177: =K177/F177 -> 22.95% | M177: Successful | N177: 2017-02-02
A178: 80 | B178: 2017-01-04 | D178: DEEPAKNTR | E178: Accu | F178: 99.50 | H178: 158 | I178: 158.00 | J178: Target Achieved | K178: =H178-F178 -> 58.50 | L178: =K178/F178 -> 58.79% | M178: Successful | N178: 2017-06-12
A179: 81 | B179: 2017-01-04 | D179: DEEPAKNTR | E179: Accu | F179: 99.50 | H179: 158 | I179: 158.00 | J179: Target Achieved | K179: 58.50 | L179: 58.79% | M179: Successful | N179: 2017-06-12
A180: 82 | B180: 2017-02-20 | D180: RECLTD | E180: Accu | F180: 140.50 | H180: 220 | I180: 220.00 | J180: Target Achieved | K180: =H180-F180 -> 79.50 | L180: =K180/F180 -> 56.58% | M180: Successful | N180: 2017-05-09
A181: 83 | B181: 2017-02-20 | D181: SUBROS | E181: Accu | F181: 202.50 | H181: 234 | I181: 234.00 | J181: Target Achieved | K181: 31.50 | L181: 15.56% | M181: Successful | N181: 2017-04-11
A182: 84 | B182: 2017-03-24 | D182: VRLLOG | E182: Accu | F182: 300.50 | H182: 417.5 | I182: 420.00 | J182: Profit of Rs.117/- | K182: =H182-F182 -> 117.00 | L182: =K182/F182 -> 38.94% | M182: Successful | N182: 2017-12-01
A183: 85 | B183: 2017-03-24 | D183: FIEMIND | E183: Accu | F183: 850.00 | H183: 1042.5 | I183: 1023.00 | J183: Profit of Rs 192.50/- | K183: 192.50 | L183: 22.65% | M183: Successful | N183: 2017-04-05
A184: 86 | B184: 2017-04-05 | D184: RATNAMANI | E184: Accu | F184: 785.00 | H184: 930 | I184: 920.00 | J184: Profit of Rs.145/- | K184: =H184-F184 -> 145.00 | L184: =K184/F184 -> 18.47% | M184: Successful | N184: 2017-08-29
A185: 87 | B185: 2017-04-06 | D185: ZEEMEDIA | E185: Accu | F185: 40 | H185: 13.10 | I185: 60.00 | J185: Loss of Rs.26.9/- | K185: -26.90 | L185: -67.25% | M185: Unsuccessful | N185: 2018-02-07
A186: 88 | B186: 2017-04-12 | D186: DABUR | E186: Accu | F186: 289.50 | H186: 354 | I186: 360.00 | J186: Profit of Rs.64.5/- | K186: =H186-F186 -> 64.50 | L186: =K186/F186 -> 22.28% | M186: Successful | N186: 2017-11-01
A187: 89 | B187: 2017-04-20 | D187: KPRMILL | E187: Accu | F187: 700.00 | H187: 840 | I187: 840.00 | J187: Profit of Rs.140/- | K187: 140.00 | L187: 20.00% | M187: Successful | N187: 2017-06-07
A188: 90 | B188: 2017-06-01 | D188: ESSELPACK | E188: Accu | F188: 130.00 | H188: 144.25 | I188: 170.00 | J188: Profit of Rs.14.25/- | K188: 14.25 | L188: 10.96% | M188: Successful | N188: 2019-07-29
A189: 91 | B189: 2017-06-15 | D189: KEI | E189: Accu | F189: 214.50 | H189: 262 | I189: 262.00 | J189: Profit of Rs.47.5/- | K189: 47.50 | L189: 22.14% | M189: Successful | N189: 2017-08-30
A190: 92 | B190: 2017-07-17 | D190: MAYURUNIQ | E190: Accu | F190: 370.00 | H190: 447.5 | I190: 450.00 | J190: Target Achieved | K190: 77.50 | L190: 20.95% | M190: Successful | N190: 2017-10-27
A191: 93 | B191: 2017-07-27 | D191: RAMCOCEM | E191: Accu | F191: 657.50 | H191: 825 | I191: 820.00 | J191: Target Achieved | K191: 167.50 | L191: 25.48% | M191: Successful | N191: 2017-12-21
A192: 94 | B192: 2017-08-17 | D192: FINPIPE | E192: Accu | F192: 605.00 | H192: 750 | I192: 750.00 | J192: Profit of Rs.145/- | K192: 145.00 | L192: 23.97% | M192: Successful | N192: 2017-10-19
A193: 95 | B193: 2017-09-01 | D193: SHK | E193: Accu | F193: 255 | H193: 217.25 | I193: 320.00 | J193: Loss of Rs.37.75/- | K193: -37.75 | L193: -15% | M193: Unsuccessful | N193: 2019-07-15
A194: 96 | B194: 2017-09-19 | D194: SKIPPER | E194: Accu | F194: 215.00 | H194: 258 | I194: 258.00 | J194: Target Achieved | K194: 43.00 | L194: 20.00% | M194: Successful | N194: 2017-11-01
A195: 97 | B195: 2017-09-19 | D195: SKIPPER | E195: Accu | F195: 215.00 | H195: 258 | I195: 258.00 | J195: Target Achieved | K195: 43.00 | L195: 20.00% | M195: Successful | N195: 2017-11-01
A196: 98 | B196: 2017-09-20 | D196: CAMLINFINE$ | E196: Accu | F196: 75.00 | H196: 90 | I196: 90.00 | J196: Profit of Rs.15.00/- | K196: =H196-F196 -> 15.00 | L196: =K196/F196 -> 20.00% | M196: Successful | N196: 2017-10-11
A197: 99 | B197: 2017-10-03 | D197: GNA | E197: Accu | F197: 315.00 | H197: 392 | I197: 384.00 | J197: Profit of Rs.77/- | K197: 77.00 | L197: 24.44% | M197: Successful | N197: 2017-10-09
A198: 100 | B198: 2017-10-05 | D198: NOCIL | E198: Accu | F198: 145.00 | H198: 179 | I198: 180.00 | J198: Profit of Rs.34/- | K198: 34.00 | L198: 23.45% | M198: Successful | N198: 2017-10-17
A199: 101 | B199: 2017-10-06 | D199: CENTURYPLY | E199: Accu | F199: 256.00 | H199: 323 | I199: 320.00 | J199: Target Achieved | K199: 67.00 | L199: 26.17% | M199: Successful | N199: 2017-11-28
A200: 102 | B200: 2017-10-09 | D200: EIHOTEL | E200: Accu | F200: 137.50 | H200: 184 | I200: 183.00 | J200: Profit of Rs.46.5/- | K200: 46.50 | L200: 33.82% | M200: Successful | N200: 2018-01-08
A201: 103 | B201: 2017-10-10 | D201: NRBBEARING | E201: Accu | F201: 125.50 | H201: 158 | I201: 155.00 | J201: Profit of Rs.32.5/- | K201: 32.50 | L201: 25.90% | M201: Successful | N201: 2017-11-28
A202: 104 | B202: 2017-10-10 | D202: BOROSIL | E202: Accu | F202: 895.00 | H202: 1122.5 | I202: 1078.00 | J202: Profit of Rs.227.5/- | K202: 227.50 | L202: 25.42% | M202: Successful | N202: 2018-01-17
A203: 105 | B203: 2017-10-12 | D203: CYIENT | E203: Accu | F203: 525.00 | H203: 629 | I203: 629.00 | J203: Target Achieved | K203: 104.00 | L203: 19.81% | M203: Successful | N203: 2018-01-19
A204: 106 | B204: 2017-11-07 | D204: HATSUN | E204: Accu | F204: 740.00 | H204: 892.5 | I204: 900.00 | J204: Profit of Rs.152.5/- | K204: =H204-F204 -> 152.50 | L204: =K204/F204 -> 20.61% | M204: Successful | N204: 2017-11-13
A205: 107 | B205: 2017-12-04 | D205: SANGHIIND | E205: Accu | F205: 118.50 | H205: 143.5 | I205: 145.00 | J205: Profit of Rs.25/- | K205: =H205-F205 -> 25.00 | L205: =K205/F205 -> 21.10% | M205: Successful | N205: 2017-12-28
A206: 108 | B206: 2017-12-21 | D206: KAJARIACER | E206: Accu | F206: 715 | H206: 500.00 | I206: 872.00 | J206: Loss of Rs.215/- | K206: =H206-F206 -> -215.00 | L206: =K206/F206 -> -30.07% | M206: Unsuccessful | N206: 2019-07-24
A207: 109 | B207: 2017-12-29 | D207: GNA | E207: Accu | F207: 435.00 | H207: 542.5 | I207: 539.00 | J207: Target Achieved | K207: 107.50 | L207: 24.71% | M207: Successful | N207: 2018-04-16
A208: 110 | B208: 2017-12-29 | D208: ZENSARTECH | E208: Accu | F208: 885.00 | H208: 1090 | I208: 1084.00 | J208: Target Achieved | K208: 205.00 | L208: 23.16% | M208: Successful | N208: 2018-04-23
A209: 111 | B209: 2018-04-02 | D209: EVERESTIND | E209: Accu | F209: 478.50 | H209: 442 | I209: 613.00 | J209: Loss of Rs.36.50 /- | K209: =H209-F209 -> -36.50 | L209: =K209/F209 -> -7.63% | M209: Unsuccessful | N209: 2019-10-24
A210: 112 | B210: 2018-04-04 | D210: GPPL$ | E210: Accu | F210: =141.5-7.3 -> 134.2 | H210: 77.00 | I210: 180.00 | J210: Loss of Rs.57.2/- | K210: =H210-F210 -> -57.20 | L210: =K210/F210 -> -42.62% | M210: Unsuccessful | N210: 2019-02-26
A211: 113 | B211: 2018-04-19 | D211: MANPASAND | E211: Accu | F211: 430 | H211: 220.00 | I211: 537.00 | J211: Loss of Rs.210/- | K211: =H211-F211 -> -210.00 | L211: =K211/F211 -> -48.84% | M211: Unsuccessful | N211: 2018-06-01
A212: 114 | B212: 2018-04-30 | D212: HEIDELBERG | E212: Accu | F212: 153.50 | H212: 196.00 | I212: 196.00 | J212: Profit of Rs.42.50/- | K212: =H212-F212 -> 42.50 | L212: =K212/F212 -> 28% | M212: Successful | N212: 2019-05-20
A213: 115 | B213: 2018-07-25 | D213: ZEEMEDIA | E213: Accu | F213: 27.5 | H213: 13.10 | I213: 60.00 | J213: Loss of Rs.14.40/- | K213: -14.40 | L213: -52.36% | M213: Unsuccessful | N213: 2018-02-07
A214: 116 | B214: 2018-08-06 | D214: GABRIEL | E214: Accu | F214: 148.5 | H214: 102 | I214: 182.00 | J214: Loss of Rs.46.50/- | K214: =H214-F214 -> -46.50 | L214: =K214/F214 -> -31.31% | M214: Unsuccessful | N214: 2019-07-15
A215: 117 | B215: 2018-08-23 | D215: INDIANHUME | E215: Accu | F215: 285 | H215: 355 | I215: 364.00 | J215: Profit of Rs.70/- | K215: 70.00 | L215: 24.56% | M215: Successful | N215: 2018-12-21
A216: 118 | B216: 2018-08-29 | D216: GRINDWELL | E216: Accu | F216: 525 | H216: 585 | I216: 635.00 | J216: Profit of Rs.60- | K216: =H216-F216 -> 60.00 | L216: =K216/F216 -> 11.43% | M216: Successful | N216: 2019-07-16
A217: 119 | B217: 2018-10-22 | D217: FINPIPE | E217: Accu | F217: 475 | H217: 574 | I217: 570.00 | J217: Target Achieved | K217: 99.00 | L217: 20.84% | M217: Successful | N217: 2018-10-30
A218: 120 | B218: 2018-10-24 | D218: GULFOILLUB | E218: Accu | F218: 707.5 | H218: 872 | I218: 872.00 | J218: Target Achieved | K218: 164.50 | L218: 23.25% | M218: Successful | N218: 2019-01-17
A219: 121 | B219: 2018-10-25 | D219: DBCORP | E219: Accu | F219: 162 | H219: 204 | I219: 209.00 | J219: Profit of Rs.42/- | K219: 42.00 | L219: 25.93% | M219: Successful | N219: 2019-03-15
A220: 122 | B220: 2018-10-26 | D220: RITES | E220: Accu | F220: 240 | H220: 297 | I220: 297.00 | J220: Target Achieved | K220: 57.00 | L220: 23.75% | M220: Successful | N220: 2018-11-13
A221: 123 | B221: 2018-12-05 | D221: BRIGADE | E221: Accu | F221: 202.5 | H221: 255 | I221: 252.00 | J221: Target Achieved | K221: 52.50 | L221: 25.93% | M221: Successful | N221: 2019-03-18
A222: 124 | B222: 2018-12-31 | D222: JKCEMENT | E222: Accu | F222: 710 | H222: 866 | I222: 866.00 | J222: Target Achieved | K222: 156.00 | L222: 21.97% | M222: Successful | N222: 2019-03-29
A223: 125 | B223: 2019-02-26 | D223: MARICO | E223: Accu | F223: 337.25 | H223: 398.5 | I223: 411.00 | J223: Profit of Rs.61.25/- | K223: 61.25 | L223: 18.16% | M223: Successful | N223: 2019-10-22
A224: 126 | B224: 2019-04-04 | D224: ITDCEM | E224: Accu | F224: 130 | H224: 65 | I224: 158.00 | J224: Loss of Rs.65 /- | K224: -65.00 | L224: -50.00% | M224: Unsuccessful | N224: 2019-09-18
... 28 more rows

Sheet Sheet2 (hidden)
A1: SYMBOL | B1: SERIES | C1: OPEN | D1: HIGH | E1: LOW | F1: CLOSE | G1: LAST | H1: PREVCLOSE | I1: TOTTRDQTY | J1: TOTTRDVAL | K1: TIMESTAMP | L1: TOTALTRADES | M1: ISIN | N1: ISIN
A2: 20MICRONS | B2: EQ | C2: 27.9 | D2: 29 | E2: 25.9 | F2: 26.2 | G2: 25.9 | H2: 27.5 | I2: 80527 | J2: 2193820.55 | K2: 2020-04-08 | L2: 1099 | M2: INE144J01027
A3: 21STCENMGM | B3: EQ | C3: 10.15 | D3: 10.5 | E3: 10.1 | F3: 10.4 | G3: 10.5 | H3: 10.3 | I3: 3205 | J3: 32728.25 | K3: 2020-04-08 | L3: 28 | M3: INE253B01015
A4: 3IINFOTECH | B4: EQ | C4: 1.35 | D4: 1.35 | E4: 1.2 | F4: 1.25 | G4: 1.25 | H4: 1.35 | I4: 2793301 | J4: 3578364.95 | K4: 2020-04-08 | L4: 46535 | M4: INE748C01020
A5: 3MINDIA | B5: EQ | C5: 18950 | D5: 19170 | E5: 18155.05 | F5: 18318.2 | G5: 18270 | H5: 18755.7 | I5: 9926 | J5: 183605811.2 | K5: 2020-04-08 | L5: 4453 | M5: INE470A01017
A6: 3PLAND | B6: EQ | C6: 3.7 | D6: 3.85 | E6: 3.7 | F6: 3.85 | G6: 3.85 | H6: 3.7 | I6: 406 | J6: 1557.85 | K6: 2020-04-08 | L6: 9 | M6: INE105C01023
A7: 5PAISA | B7: EQ | C7: 119.95 | D7: 134 | E7: 115 | F7: 123.35 | G7: 120.5 | H7: 116.4 | I7: 6500 | J7: 793277.05 | K7: 2020-04-08 | L7: 265 | M7: INE618L01018
A8: 63MOONS | B8: EQ | C8: 50.7 | D8: 55.45 | E8: 50.7 | F8: 53.7 | G8: 53.55 | H8: 50.7 | I8: 72221 | J8: 3890984.7 | K8: 2020-04-08 | L8: 3078 | M8: INE111B01023
A9: A2ZINFRA | B9: EQ | C9: 3.15 | D9: 3.25 | E9: 3.1 | F9: 3.15 | G9: 3.15 | H9: 3.15 | I9: 116011 | J9: 367778.85 | K9: 2020-04-08 | L9: 227 | M9: INE619I01012
A10: AARTIDRUGS | B10: EQ | C10: 627 | D10: 669.3 | E10: 605 | F10: 631.6 | G10: 625 | H10: 607.85 | I10: 75970 | J10: 48223549.15 | K10: 2020-04-08 | L10: 5720 | M10: INE767A01016
A11: AARTIIND | B11: EQ | C11: 839.95 | D11: 909.8 | E11: 818 | F11: 854.9 | G11: 864 | H11: 830.7 | I11: 477805 | J11: 419092386.9 | K11: 2020-04-08 | L11: 50045 | M11: INE769A01020
A12: AARVEEDEN | B12: EQ | C12: 8.95 | D12: 9.25 | E12: 7.85 | F12: 8.35 | G12: 8.45 | H12: 8.1 | I12: 9251 | J12: 77100.1 | K12: 2020-04-08 | L12: 94 | M12: INE273D01019
A13: AAVAS | B13: EQ | C13: 1101 | D13: 1183 | E13: 1101 | F13: 1135.2 | G13: 1137 | H13: 1142.35 | I13: 24179 | J13: 28073100.85 | K13: 2020-04-08 | L13: 3631 | M13: INE216P01012
A14: ABAN | B14: EQ | C14: 15.7 | D14: 16.2 | E14: 15.7 | F14: 16.2 | G14: 16.2 | H14: 15.45 | I14: 37609 | J14: 608439.6 | K14: 2020-04-08 | L14: 288 | M14: INE421A01028
A15: ABB | B15: EQ | C15: 935 | D15: 965 | E15: 910 | F15: 930.7 | G15: 928 | H15: 931.35 | I15: 87757 | J15: 82358527.9 | K15: 2020-04-08 | L15: 4699 | M15: INE117A01022
A16: ABBOTINDIA | B16: EQ | C16: 16799.45 | D16: 18250 | E16: 16750 | F16: 17481.1 | G16: 17488 | H16: 16699.7 | I16: 57991 | J16: 1023745502 | K16: 2020-04-08 | L16: 21022 | M16: INE358A01014
A17: ABCAPITAL | B17: EQ | C17: 45 | D17: 47.9 | E17: 44.25 | F17: 45.6 | G17: 45.7 | H17: 45.1 | I17: 1253267 | J17: 57952493.6 | K17: 2020-04-08 | L17: 7317 | M17: INE674K01013
A18: ABFRL | B18: EQ | C18: 148 | D18: 152.8 | E18: 146.75 | F18: 149 | G18: 148 | H18: 149.85 | I18: 416099 | J18: 62371769.1 | K18: 2020-04-08 | L18: 10148 | M18: INE647O01011
A19: ABSLNN50ET | B19: EQ | C19: 244 | D19: 248 | E19: 210 | F19: 235 | G19: 235 | H19: 244 | I19: 56 | J19: 12779.4 | K19: 2020-04-08 | L19: 13 | M19: INF209KB1B87
A20: ACC | B20: EQ | C20: 1000 | D20: 1029.9 | E20: 941.25 | F20: 956.05 | G20: 958 | H20: 1009.95 | I20: 2153627 | J20: 2101320389 | K20: 2020-04-08 | L20: 79728 | M20: INE012A01025
A21: ACCELYA | B21: EQ | C21: 874.3 | D21: 886 | E21: 862 | F21: 880.45 | G21: 879.95 | H21: 874.3 | I21: 10865 | J21: 9557704.55 | K21: 2020-04-08 | L21: 923 | M21: INE793A01012
A22: ACE | B22: EQ | C22: 32.75 | D22: 35.2 | E22: 32.55 | F22: 33.25 | G22: 33.35 | H22: 32.95 | I22: 244708 | J22: 8296578.4 | K22: 2020-04-08 | L22: 2925 | M22: INE731H01025
A23: ADANIENT | B23: EQ | C23: 136.85 | D23: 147.15 | E23: 134.9 | F23: 138.1 | G23: 137.5 | H23: 138.15 | I23: 3237290 | J23: 456492273.1 | K23: 2020-04-08 | L23: 23696 | M23: INE423A01024
A24: ADANIGAS | B24: EQ | C24: 93.9 | D24: 96.35 | E24: 90.5 | F24: 90.8 | G24: 90.65 | H24: 94 | I24: 1888606 | J24: 176837924.4 | K24: 2020-04-08 | L24: 14517 | M24: INE399L01023
A25: ADANIGREEN | B25: EQ | C25: 166.85 | D25: 166.85 | E25: 162 | F25: 166.45 | G25: 166.85 | H25: 158.95 | I25: 702014 | J25: 116248737 | K25: 2020-04-08 | L25: 10187 | M25: INE364U01010
A26: ADANIPORTS | B26: EQ | C26: 248 | D26: 255.85 | E26: 242.75 | F26: 250.85 | G26: 249.7 | H26: 248.1 | I26: 6897883 | J26: 1724830525 | K26: 2020-04-08 | L26: 81499 | M26: INE742F01042
A27: ADANIPOWER | B27: EQ | C27: 28.65 | D27: 31.15 | E27: 27.5 | F27: 28.95 | G27: 28.85 | H27: 28.8 | I27: 12308064 | J27: 361987996.9 | K27: 2020-04-08 | L27: 23153 | M27: INE814H01011
A28: ADANITRANS | B28: EQ | C28: 196.65 | D28: 202 | E28: 190 | F28: 193.65 | G28: 193.5 | H28: 198.3 | I28: 306320 | J28: 59783940.3 | K28: 2020-04-08 | L28: 4236 | M28: INE931S01010
A29: ADFFOODS | B29: EQ | C29: 187.85 | D29: 192.25 | E29: 184 | F29: 187.7 | G29: 187.3 | H29: 183.1 | I29: 22107 | J29: 4185556.05 | K29: 2020-04-08 | L29: 773 | M29: INE982B01019
A30: ADHUNIKIND | B30: EQ | C30: 13.3 | D30: 13.3 | E30: 13.3 | F30: 13.3 | G30: 13.3 | H30: 12.7 | I30: 5518 | J30: 73389.4 | K30: 2020-04-08 | L30: 21 | M30: INE452L01012
A31: ADLABS | B31: EQ | C31: 2.75 | D31: 2.85 | E31: 2.75 | F31: 2.85 | G31: 2.85 | H31: 2.75 | I31: 19360 | J31: 54965.35 | K31: 2020-04-08 | L31: 72 | M31: INE172N01012
A32: ADORWELD | B32: EQ | C32: 195.7 | D32: 201.9 | E32: 193.95 | F32: 195.1 | G32: 194.45 | H32: 196.75 | I32: 1438 | J32: 283768.75 | K32: 2020-04-08 | L32: 94 | M32: INE045A01017
A33: ADROITINFO | B33: EQ | C33: 5.5 | D33: 5.7 | E33: 5.45 | F33: 5.7 | G33: 5.7 | H33: 5.7 | I33: 691 | J33: 3857 | K33: 2020-04-08 | L33: 25 | M33: INE737B01033
A34: ADSL | B34: EQ | C34: 13.05 | D34: 13.2 | E34: 12.4 | F34: 12.5 | G34: 12.45 | H34: 12.7 | I34: 16203 | J34: 205559.25 | K34: 2020-04-08 | L34: 143 | M34: INE102I01027
A35: ADVANIHOTR | B35: EQ | C35: 30.1 | D35: 33 | E35: 30.1 | F35: 31.8 | G35: 31.5 | H35: 30.65 | I35: 5340 | J35: 169948.95 | K35: 2020-04-08 | L35: 193 | M35: INE199C01026
A36: ADVENZYMES | B36: EQ | C36: 140.2 | D36: 146.55 | E36: 137.95 | F36: 139.2 | G36: 139.75 | H36: 136.55 | I36: 77441 | J36: 11046136.15 | K36: 2020-04-08 | L36: 1990 | M36: INE837H01020
A37: AEGISCHEM | B37: EQ | C37: 150 | D37: 158.5 | E37: 147.1 | F37: 156.35 | G37: 156.05 | H37: 144.1 | I37: 175470 | J37: 27041093.9 | K37: 2020-04-08 | L37: 4268 | M37: INE208C01025
A38: AFFLE | B38: BE | C38: 1050 | D38: 1053.45 | E38: 1030 | F38: 1053.45 | G38: 1053.45 | H38: 1003.3 | I38: 8191 | J38: 8619737.5 | K38: 2020-04-08 | L38: 470 | M38: INE00WC01019
A39: AGARIND | B39: EQ | C39: 49.8 | D39: 52.85 | E39: 49.05 | F39: 52.25 | G39: 52.5 | H39: 49.95 | I39: 7826 | J39: 404450.25 | K39: 2020-04-08 | L39: 207 | M39: INE204E01012
A40: AGCNET | B40: BE | C40: 224.35 | D40: 235.55 | E40: 213.25 | F40: 234.7 | G40: 235.55 | H40: 224.35 | I40: 2524 | J40: 573063 | K40: 2020-04-08 | L40: 70 | M40: INE676A01019
A41: AGRITECH | B41: EQ | C41: 23.95 | D41: 23.95 | E41: 23.95 | F41: 23.95 | G41: 23.95 | H41: 22.85 | I41: 504 | J41: 12070.8 | K41: 2020-04-08 | L41: 18 | M41: INE449G01018
A42: AGROPHOS | B42: EQ | C42: 5.7 | D42: 5.7 | E42: 5.2 | F42: 5.7 | G42: 5.7 | H42: 5.45 | I42: 40596 | J42: 227201.55 | K42: 2020-04-08 | L42: 340 | M42: INE740V01019
A43: AHLEAST | B43: EQ | C43: 133.15 | D43: 141.85 | E43: 128.15 | F43: 131.55 | G43: 128.35 | H43: 131.5 | I43: 3303 | J43: 439718.1 | K43: 2020-04-08 | L43: 350 | M43: INE926K01017
A44: AHLUCONT | B44: EQ | C44: 145.95 | D44: 148 | E44: 136 | F44: 146.3 | G44: 148 | H44: 144.1 | I44: 153910 | J44: 21077811.2 | K44: 2020-04-08 | L44: 995 | M44: INE758C01029
A45: AHLWEST | B45: EQ | C45: 289.9 | D45: 289.9 | E45: 270.95 | F45: 275 | G45: 275 | H45: 277 | I45: 238 | J45: 67030 | K45: 2020-04-08 | L45: 91 | M45: INE915K01010
A46: AIAENG | B46: EQ | C46: 1259.45 | D46: 1291 | E46: 1229 | F46: 1255.85 | G46: 1268 | H46: 1249.9 | I46: 73842 | J46: 92756824.05 | K46: 2020-04-08 | L46: 10503 | M46: INE212H01026
A47: AIONJSW | B47: EQ | C47: 10.9 | D47: 11.1 | E47: 10.2 | F47: 11.1 | G47: 11.1 | H47: 10.6 | I47: 90347 | J47: 996144.95 | K47: 2020-04-08 | L47: 180 | M47: INE743C01021
A48: AIRAN | B48: EQ | C48: 9.8 | D48: 10.3 | E48: 9.75 | F48: 9.8 | G48: 9.75 | H48: 9.85 | I48: 1826 | J48: 18127.1 | K48: 2020-04-08 | L48: 25 | M48: INE645W01026
A49: AJANTPHARM | B49: EQ | C49: 1325.75 | D49: 1450 | E49: 1325 | F49: 1367.5 | G49: 1363 | H49: 1340.2 | I49: 166582 | J49: 233126032.5 | K49: 2020-04-08 | L49: 8748 | M49: INE031B01049
A50: AJMERA | B50: EQ | C50: 64.95 | D50: 70.5 | E50: 64.6 | F50: 68.4 | G50: 69.9 | H50: 64.65 | I50: 31766 | J50: 2167947.5 | K50: 2020-04-08 | L50: 909 | M50: INE298G01027
A51: AKASH | B51: BE | C51: 90 | D51: 90 | E51: 90 | F51: 90 | G51: 90 | H51: 90.95 | I51: 500 | J51: 45000 | K51: 2020-04-08 | L51: 1 | M51: INE737W01013
A52: AKSHARCHEM | B52: EQ | C52: 174.75 | D52: 177.6 | E52: 165.3 | F52: 169.7 | G52: 167.15 | H52: 165.25 | I52: 3130 | J52: 531878.25 | K52: 2020-04-08 | L52: 293 | M52: INE542B01011
A53: AKSHOPTFBR | B53: EQ | C53: 3.6 | D53: 3.6 | E53: 3.6 | F53: 3.6 | G53: 3.6 | H53: 3.45 | I53: 27750 | J53: 99900 | K53: 2020-04-08 | L53: 45 | M53: INE523B01011
A54: AKZOINDIA | B54: EQ | C54: 2084.95 | D54: 2133 | E54: 2030 | F54: 2047.9 | G54: 2040 | H54: 2086.75 | I54: 12835 | J54: 26789836.95 | K54: 2020-04-08 | L54: 2242 | M54: INE133A01011
A55: ALANKIT | B55: EQ | C55: 12.9 | D55: 12.9 | E55: 12.9 | F55: 12.9 | G55: 12.9 | H55: 12.3 | I55: 14247 | J55: 183786.3 | K55: 2020-04-08 | L55: 75 | M55: INE914E01040
A56: ALBERTDAVD | B56: EQ | C56: 338.8 | D56: 364.75 | E56: 338.8 | F56: 353.15 | G56: 352 | H56: 341.15 | I56: 24334 | J56: 8579416.55 | K56: 2020-04-08 | L56: 1220 | M56: INE155C01010
A57: ALCHEM | B57: BE | C57: 1.4 | D57: 1.4 | E57: 1.4 | F57: 1.4 | G57: 1.4 | H57: 1.35 | I57: 8608 | J57: 12051.2 | K57: 2020-04-08 | L57: 18 | M57: INE964B01033
A58: ALEMBICLTD | B58: EQ | C58: 43.7 | D58: 48.05 | E58: 39.7 | F58: 45.05 | G58: 45.5 | H58: 42.15 | I58: 695128 | J58: 31779132.75 | K58: 2020-04-08 | L58: 6991 | M58: INE426A01027
A59: ALICON | B59: EQ | C59: 195.95 | D59: 196 | E59: 181.05 | F59: 184.75 | G59: 184 | H59: 189.25 | I59: 3909 | J59: 722322.5 | K59: 2020-04-08 | L59: 123 | M59: INE062D01024
A60: ALKALI | B60: EQ | C60: 29.95 | D60: 31.75 | E60: 29.65 | F60: 31.75 | G60: 31.75 | H60: 28.9 | I60: 9346 | J60: 289594.95 | K60: 2020-04-08 | L60: 349 | M60: INE773I01017
A61: ALKEM | B61: EQ | C61: 2360 | D61: 2736.5 | E61: 2326.2 | F61: 2671.15 | G61: 2639 | H61: 2324.05 | I61: 371259 | J61: 967330461.6 | K61: 2020-04-08 | L61: 44106 | M61: INE540L01014
A62: ALKYLAMINE | B62: EQ | C62: 1236.6 | D62: 1398 | E62: 1222.2 | F62: 1334.05 | G62: 1334 | H62: 1232.45 | I62: 41501 | J62: 55061848.25 | K62: 2020-04-08 | L62: 3832 | M62: INE150B01021
A63: ALLCARGO | B63: EQ | C63: 63.05 | D63: 65.85 | E63: 63 | F63: 65.7 | G63: 65.85 | H63: 59.9 | I63: 300794 | J63: 19569467.05 | K63: 2020-04-08 | L63: 3098 | M63: INE418H01029
A64: ALLSEC | B64: EQ | C64: 131.7 | D64: 131.9 | E64: 129.35 | F64: 131.9 | G64: 131.9 | H64: 125.65 | I64: 1335 | J64: 175836.2 | K64: 2020-04-08 | L64: 37 | M64: INE835G01018
A65: ALOKINDS | B65: EQ | C65: 4.7 | D65: 4.7 | E65: 4.7 | F65: 4.7 | G65: 4.7 | H65: 4.5 | I65: 1698707 | J65: 7983922.9 | K65: 2020-04-08 | L65: 397 | M65: INE270A01029
A66: ALPA | B66: EQ | C66: 18.55 | D66: 20.15 | E66: 17.8 | F66: 20.15 | G66: 20.15 | H66: 16.8 | I66: 131233 | J66: 2593665.9 | K66: 2020-04-08 | L66: 858 | M66: INE385I01010
A67: ALPHAGEO | B67: EQ | C67: 126 | D67: 137.5 | E67: 126 | F67: 134.45 | G67: 133.3 | H67: 129.7 | I67: 22258 | J67: 2986986.5 | K67: 2020-04-08 | L67: 783 | M67: INE137C01018
A68: ALPSINDUS | B68: EQ | C68: 0.65 | D68: 0.75 | E68: 0.65 | F68: 0.75 | G68: 0.7 | H68: 0.7 | I68: 25369 | J68: 18108.8 | K68: 2020-04-08 | L68: 33 | M68: INE093B01015
A69: AMARAJABAT | B69: EQ | C69: 501.1 | D69: 513.65 | E69: 488.45 | F69: 502.05 | G69: 504.9 | H69: 501.1 | I69: 755312 | J69: 378881689.9 | K69: 2020-04-08 | L69: 18162 | M69: INE885A01032
A70: AMBER | B70: EQ | C70: 1189.9 | D70: 1199 | E70: 1072 | F70: 1108.05 | G70: 1109.25 | H70: 1189.9 | I70: 93512 | J70: 105805912.2 | K70: 2020-04-08 | L70: 14252 | M70: INE371P01015
A71: AMBIKCO | B71: EQ | C71: 539.25 | D71: 559 | E71: 531.05 | F71: 545.2 | G71: 536.4 | H71: 537.25 | I71: 3988 | J71: 2168349.4 | K71: 2020-04-08 | L71: 406 | M71: INE540G01014
A72: AMBUJACEM | B72: EQ | C72: 158.5 | D72: 159.5 | E72: 148.2 | F72: 149.7 | G72: 149.55 | H72: 159 | I72: 10421438 | J72: 1597618498 | K72: 2020-04-08 | L72: 84074 | M72: INE079A01024
A73: AMDIND | B73: EQ | C73: 9.9 | D73: 10.5 | E73: 9.5 | F73: 9.8 | G73: 9.55 | H73: 10 | I73: 17757 | J73: 177659.15 | K73: 2020-04-08 | L73: 707 | M73: INE005I01014
A74: AMJLAND | B74: EQ | C74: 14.3 | D74: 14.95 | E74: 13.7 | F74: 14 | G74: 14 | H74: 14.25 | I74: 12523 | J74: 176065.3 | K74: 2020-04-08 | L74: 106 | M74: INE606A01024
A75: AMRUTANJAN | B75: EQ | C75: 326 | D75: 352 | E75: 320.1 | F75: 345.45 | G75: 344.3 | H75: 324 | I75: 278725 | J75: 95586275.35 | K75: 2020-04-08 | L75: 9075 | M75: INE098F01031
A76: ANANTRAJ | B76: EQ | C76: 19.55 | D76: 20.15 | E76: 18.6 | F76: 18.75 | G76: 18.8 | H76: 19.55 | I76: 184694 | J76: 3509270.8 | K76: 2020-04-08 | L76: 1012 | M76: INE242C01024
A77: ANDHRACEMT | B77: EQ | C77: 1.8 | D77: 1.9 | E77: 1.7 | F77: 1.85 | G77: 1.9 | H77: 1.75 | I77: 105618 | J77: 196578.05 | K77: 2020-04-08 | L77: 227 | M77: INE666E01012
A78: ANDHRAPAP | B78: EQ | C78: 148.55 | D78: 148.55 | E78: 147 | F78: 148.55 | G78: 148.55 | H78: 141.5 | I78: 2622 | J78: 389210.05 | K78: 2020-04-08 | L78: 70 | M78: INE435A01028
A79: ANDHRSUGAR | B79: EQ | C79: 206.95 | D79: 212 | E79: 195 | F79: 206.05 | G79: 205.85 | H79: 203.55 | I79: 35494 | J79: 7286675.25 | K79: 2020-04-08 | L79: 1328 | M79: INE715B01013
A80: ANIKINDS | B80: EQ | C80: 7.25 | D80: 7.25 | E80: 6.65 | F80: 6.8 | G80: 6.8 | H80: 6.95 | I80: 4994 | J80: 34701.65 | K80: 2020-04-08 | L80: 35 | M80: INE087B01017
A81: ANKITMETAL | B81: EQ | C81: 0.4 | D81: 0.45 | E81: 0.35 | F81: 0.45 | G81: 0.45 | H81: 0.4 | I81: 64810 | J81: 27213.05 | K81: 2020-04-08 | L81: 29 | M81: INE106I01010
A82: ANSALAPI | B82: EQ | C82: 3.65 | D82: 3.8 | E82: 3.65 | F82: 3.8 | G82: 3.8 | H82: 3.65 | I82: 3974 | J82: 15023.75 | K82: 2020-04-08 | L82: 28 | M82: INE436A01026
A83: ANSALHSG | B83: EQ | C83: 3 | D83: 3 | E83: 2.8 | F83: 2.9 | G83: 2.9 | H83: 2.9 | I83: 31510 | J83: 91846.6 | K83: 2020-04-08 | L83: 64 | M83: INE880B01015
A84: ANUP | B84: EQ | C84: 304.75 | D84: 323.7 | E84: 303.1 | F84: 313.2 | G84: 313.05 | H84: 312.75 | I84: 11786 | J84: 3732090.6 | K84: 2020-04-08 | L84: 460 | M84: INE294Z01018
A85: APARINDS | B85: EQ | C85: 296.95 | D85: 300.35 | E85: 290.6 | F85: 295.85 | G85: 295.5 | H85: 296.05 | I85: 6051 | J85: 1806443.45 | K85: 2020-04-08 | L85: 427 | M85: INE372A01015
A86: APCL | B86: EQ | C86: 102.4 | D86: 102.4 | E86: 95.2 | F86: 97.35 | G86: 97 | H86: 98.5 | I86: 3739 | J86: 362867.6 | K86: 2020-04-08 | L86: 79 | M86: INE071F01012
A87: APCOTEXIND | B87: EQ | C87: 87.55 | D87: 94.85 | E87: 86 | F87: 87.5 | G87: 86.1 | H87: 87.45 | I87: 13115 | J87: 1175575.25 | K87: 2020-04-08 | L87: 323 | M87: INE116A01032
A88: APEX | B88: EQ | C88: 190 | D88: 201.65 | E88: 185.1 | F88: 201.65 | G88: 201.65 | H88: 183.35 | I88: 141806 | J88: 27768799.35 | K88: 2020-04-08 | L88: 3293 | M88: INE346W01013
A89: APLAPOLLO | B89: EQ | C89: 1245 | D89: 1274 | E89: 1220 | F89: 1259.5 | G89: 1258 | H89: 1231.75 | I89: 21152 | J89: 26442272.1 | K89: 2020-04-08 | L89: 3032 | M89: INE702C01019
A90: APLLTD | B90: EQ | C90: 630 | D90: 702.65 | E90: 615.5 | F90: 640.85 | G90: 626 | H90: 610.2 | I90: 540272 | J90: 353935242.1 | K90: 2020-04-08 | L90: 30323 | M90: INE901L01018
A91: APOLLO | B91: EQ | C91: 45.5 | D91: 56 | E91: 45.25 | F91: 54.3 | G91: 53.55 | H91: 46.7 | I91: 68951 | J91: 3631629.4 | K91: 2020-04-08 | L91: 1694 | M91: INE713T01010
A92: APOLLOHOSP | B92: EQ | C92: 1225.9 | D92: 1338.4 | E92: 1211 | F92: 1263.95 | G92: 1261 | H92: 1225.95 | I92: 2070270 | J92: 2654141027 | K92: 2020-04-08 | L92: 156926 | M92: INE437A01024
A93: APOLLOPIPE | B93: EQ | C93: 279.5 | D93: 304 | E93: 262.95 | F93: 281.3 | G93: 281 | H93: 280.1 | I93: 12940 | J93: 3607793.25 | K93: 2020-04-08 | L93: 543 | M93: INE126J01016
A94: APOLLOTYRE | B94: EQ | C94: 83.5 | D94: 87.15 | E94: 82 | F94: 83.4 | G94: 83.15 | H94: 83.5 | I94: 2950752 | J94: 248872037.1 | K94: 2020-04-08 | L94: 19408 | M94: INE438A01022
A95: APOLSINHOT | B95: EQ | C95: 460.35 | D95: 460.4 | E95: 421.1 | F95: 439.8 | G95: 436 | H95: 438.6 | I95: 694 | J95: 306874.65 | K95: 2020-04-08 | L95: 84 | M95: INE451F01024
A96: APTECHT | B96: EQ | C96: 85.3 | D96: 87.7 | E96: 83.55 | F96: 84.6 | G96: 84.3 | H96: 85.3 | I96: 106721 | J96: 9133416.7 | K96: 2020-04-08 | L96: 2385 | M96: INE266F01018
A97: ARCHIDPLY | B97: EQ | C97: 16.55 | D97: 17 | E97: 16.45 | F97: 16.85 | G97: 16.95 | H97: 16.75 | I97: 4083 | J97: 68300.2 | K97: 2020-04-08 | L97: 63 | M97: INE877I01016
A98: ARCHIES | B98: EQ | C98: 9.4 | D98: 9.5 | E98: 9 | F98: 9.05 | G98: 9.15 | H98: 9.45 | I98: 24343 | J98: 224667.6 | K98: 2020-04-08 | L98: 150 | M98: INE731A01020
A99: ARCOTECH | B99: EQ | C99: 0.9 | D99: 0.95 | E99: 0.85 | F99: 0.9 | G99: 0.9 | H99: 0.9 | I99: 51482 | J99: 47500.05 | K99: 2020-04-08 | L99: 77 | M99: INE574I01035
A100: ARENTERP | B100: EQ | C100: 12.65 | D100: 12.65 | E100: 12.05 | F100: 12.05 | G100: 12.05 | H100: 12.65 | I100: 63 | J100: 765.15 | K100: 2020-04-08 | L100: 4 | M100: INE610C01014
A101: ARIES | B101: EQ | C101: 44.4 | D101: 47.6 | E101: 42.65 | F101: 43.6 | G101: 44 | H101: 44.4 | I101: 50875 | J101: 2250478.25 | K101: 2020-04-08 | L101: 1080 | M101: INE298I01015
A102: ARIHANT | B102: EQ | C102: 12.05 | D102: 12.55 | E102: 11.6 | F102: 12.15 | G102: 12.5 | H102: 12.05 | I102: 964 | J102: 11418.15 | K102: 2020-04-08 | L102: 27 | M102: INE413D01011
A103: ARIHANTSUP | B103: EQ | C103: 21.4 | D103: 21.45 | E103: 19.45 | F103: 19.5 | G103: 21 | H103: 20.45 | I103: 4362 | J103: 85414.05 | K103: 2020-04-08 | L103: 80 | M103: INE643K01018
A104: ARMANFIN | B104: EQ | C104: 340 | D104: 373.2 | E104: 337.7 | F104: 373.05 | G104: 373.2 | H104: 355.45 | I104: 50867 | J104: 18465582.65 | K104: 2020-04-08 | L104: 911 | M104: INE109C01017
A105: AROGRANITE | B105: EQ | C105: 21.95 | D105: 24.5 | E105: 20.85 | F105: 24.2 | G105: 24.5 | H105: 22.35 | I105: 26052 | J105: 602565.3 | K105: 2020-04-08 | L105: 183 | M105: INE210C01013
A106: ARROWGREEN | B106: BE | C106: 33.55 | D106: 35 | E106: 33.45 | F106: 33.45 | G106: 33.45 | H106: 33.85 | I106: 5735 | J106: 195198.5 | K106: 2020-04-08 | L106: 32 | M106: INE570D01018
A107: ARSHIYA | B107: EQ | C107: 7.1 | D107: 7.6 | E107: 7.1 | F107: 7.6 | G107: 7.6 | H107: 7.25 | I107: 23178 | J107: 175819.45 | K107: 2020-04-08 | L107: 63 | M107: INE968D01022
A108: ARSSINFRA | B108: EQ | C108: 11.25 | D108: 12.3 | E108: 10.9 | F108: 11.8 | G108: 11.85 | H108: 11.15 | I108: 16388 | J108: 189874.85 | K108: 2020-04-08 | L108: 107 | M108: INE267I01010
A109: ARTEMISMED | B109: EQ | C109: 140 | D109: 147 | E109: 136.3 | F109: 138 | G109: 137 | H109: 139.15 | I109: 1729 | J109: 245138.4 | K109: 2020-04-08 | L109: 31 | M109: INE025R01013
A110: ARVIND | B110: EQ | C110: 23.5 | D110: 24.4 | E110: 22.45 | F110: 23.75 | G110: 23.75 | H110: 22.2 | I110: 2137547 | J110: 50521243.45 | K110: 2020-04-08 | L110: 7057 | M110: INE034A01011
A111: ARVINDFASN | B111: EQ | C111: 139.8 | D111: 141.9 | E111: 132.2 | F111: 133.8 | G111: 134.75 | H111: 139.85 | I111: 46445 | J111: 6387304.5 | K111: 2020-04-08 | L111: 1243 | M111: INE955V01021
A112: ARVSMART | B112: EQ | C112: 64.05 | D112: 67 | E112: 64 | F112: 65.4 | G112: 65.5 | H112: 65 | I112: 10000 | J112: 656036.65 | K112: 2020-04-08 | L112: 320 | M112: INE034S01021
A113: ASAHIINDIA | B113: EQ | C113: 152 | D113: 158 | E113: 147.05 | F113: 155.5 | G113: 152.35 | H113: 153.2 | I113: 5605 | J113: 858978.65 | K113: 2020-04-08 | L113: 218 | M113: INE439A01020
A114: ASAHISONG | B114: EQ | C114: 80.8 | D114: 88.95 | E114: 80.05 | F114: 85.25 | G114: 86 | H114: 80.9 | I114: 8055 | J114: 692533.2 | K114: 2020-04-08 | L114: 314 | M114: INE228I01012
A115: ASAL | B115: EQ | C115: 14.8 | D115: 14.9 | E115: 14.5 | F115: 14.5 | G115: 14.5 | H115: 14.25 | I115: 8037 | J115: 118819.3 | K115: 2020-04-08 | L115: 36 | M115: INE900C01027
A116: ASALCBR | B116: EQ | C116: 164.9 | D116: 175 | E116: 158 | F116: 165.7 | G116: 165 | H116: 162.9 | I116: 31033 | J116: 5116102.05 | K116: 2020-04-08 | L116: 970 | M116: INE073G01016
A117: ASHAPURMIN | B117: EQ | C117: 22.1 | D117: 22.1 | E117: 22.05 | F117: 22.1 | G117: 22.1 | H117: 21.05 | I117: 8770 | J117: 193792 | K117: 2020-04-08 | L117: 43 | M117: INE348A01023
A118: ASHIANA | B118: EQ | C118: 52.9 | D118: 52.9 | E118: 49.1 | F118: 49.95 | G118: 50 | H118: 50 | I118: 69042 | J118: 3480534.3 | K118: 2020-04-08 | L118: 621 | M118: INE365D01021
A119: ASHIMASYN | B119: EQ | C119: 3.9 | D119: 3.9 | E119: 3.9 | F119: 3.9 | G119: 3.9 | H119: 3.55 | I119: 28914 | J119: 112764.6 | K119: 2020-04-08 | L119: 46 | M119: INE440A01010
A120: ASHOKA | B120: EQ | C120: 38.35 | D120: 42.7 | E120: 37.8 | F120: 42.7 | G120: 42.7 | H120: 38.85 | I120: 1577514 | J120: 65134101.3 | K120: 2020-04-08 | L120: 8475 | M120: INE442H01029
A121: ASHOKLEY | B121: EQ | C121: 39.85 | D121: 47.8 | E121: 38.75 | F121: 43.85 | G121: 43.6 | H121: 39.85 | I121: 76817768 | J121: 3355417806 | K121: 2020-04-08 | L121: 169889 | M121: INE208A01029
A122: ASIANHOTNR | B122: EQ | C122: 70 | D122: 71.8 | E122: 66 | F122: 71.55 | G122: 71.5 | H122: 65.4 | I122: 4982 | J122: 349215.55 | K122: 2020-04-08 | L122: 198 | M122: INE363A01022
A123: ASIANPAINT | B123: EQ | C123: 1623.8 | D123: 1687.8 | E123: 1600 | F123: 1608.95 | G123: 1608 | H123: 1623.8 | I123: 2382216 | J123: 3911658954 | K123: 2020-04-08 | L123: 101146 | M123: INE021A01026
A124: ASIANTILES | B124: EQ | C124: 156 | D124: 162.9 | E124: 155 | F124: 157.6 | G124: 156.5 | H124: 157.65 | I124: 19917 | J124: 3151924.4 | K124: 2020-04-08 | L124: 431 | M124: INE022I01019
A125: ASPINWALL | B125: EQ | C125: 93 | D125: 98.7 | E125: 83.55 | F125: 93 | G125: 93 | H125: 90 | I125: 413 | J125: 38837.15 | K125: 2020-04-08 | L125: 20 | M125: INE991I01015
A126: ASTEC | B126: EQ | C126: 450.65 | D126: 465.05 | E126: 440 | F126: 460.05 | G126: 460.3 | H126: 443.9 | I126: 5283 | J126: 2392645.5 | K126: 2020-04-08 | L126: 494 | M126: INE563J01010
A127: ASTERDM | B127: EQ | C127: 96 | D127: 103.5 | E127: 93.8 | F127: 99.25 | G127: 99 | H127: 94.55 | I127: 996205 | J127: 98978623.7 | K127: 2020-04-08 | L127: 4570 | M127: INE914M01019
A128: ASTRAL | B128: EQ | C128: 962 | D128: 986 | E128: 952 | F128: 955.45 | G128: 954 | H128: 973.85 | I128: 59212 | J128: 57381672.65 | K128: 2020-04-08 | L128: 7623 | M128: INE006I01046
A129: ASTRAMICRO | B129: EQ | C129: 56.9 | D129: 62.55 | E129: 55.85 | F129: 61.7 | G129: 62.55 | H129: 56.9 | I129: 253097 | J129: 15146656.55 | K129: 2020-04-08 | L129: 1961 | M129: INE386C01029
A130: ASTRAZEN | B130: EQ | C130: 2700 | D130: 2830 | E130: 2544 | F130: 2561.6 | G130: 2549 | H130: 2693.65 | I130: 38510 | J130: 104113109 | K130: 2020-04-08 | L130: 6647 | M130: INE203A01020
A131: ASTRON | B131: EQ | C131: 26.15 | D131: 29.9 | E131: 25.3 | F131: 27.5 | G131: 27.8 | H131: 27.65 | I131: 61618 | J131: 1693449.45 | K131: 2020-04-08 | L131: 1743 | M131: INE646X01014
A132: ATFL | B132: EQ | C132: 479.65 | D132: 499 | E132: 475 | F132: 481.55 | G132: 475 | H132: 479.65 | I132: 6104 | J132: 2975754.9 | K132: 2020-04-08 | L132: 411 | M132: INE209A01019
A133: ATLANTA | B133: EQ | C133: 3 | D133: 3.15 | E133: 3 | F133: 3.15 | G133: 3.15 | H133: 3 | I133: 8624 | J133: 26936.35 | K133: 2020-04-08 | L133: 28 | M133: INE285H01022
A134: ATLASCYCLE | B134: BE | C134: 30 | D134: 31.5 | E134: 29.5 | F134: 30.7 | G134: 30.7 | H134: 30 | I134: 2000 | J134: 60118.65 | K134: 2020-04-08 | L134: 42 | M134: INE446A01025
A135: ATNINTER | B135: BE | C135: 0.1 | D135: 0.1 | E135: 0.1 | F135: 0.1 | G135: 0.1 | H135: 0.1 | I135: 12716 | J135: 1271.6 | K135: 2020-04-08 | L135: 5 | M135: INE803A01027
A136: ATUL | B136: EQ | C136: 3930 | D136: 4005 | E136: 3908.35 | F136: 3951.85 | G136: 3954.95 | H136: 3927.1 | I136: 76768 | J136: 304824820.4 | K136: 2020-04-08 | L136: 11635 | M136: INE100A01010
A137: ATULAUTO | B137: EQ | C137: 151.35 | D137: 154.05 | E137: 146.8 | F137: 153.45 | G137: 153.95 | H137: 146.75 | I137: 13699 | J137: 2093863.3 | K137: 2020-04-08 | L137: 810 | M137: INE951D01028
A138: AUBANK | B138: EQ | C138: 461.2 | D138: 490 | E138: 457 | F138: 480.3 | G138: 473 | H138: 478.4 | I138: 1791057 | J138: 837589012.6 | K138: 2020-04-08 | L138: 59410 | M138: INE949L01017
A139: AURIONPRO | B139: EQ | C139: 41.75 | D139: 43.7 | E139: 40 | F139: 42.9 | G139: 42.9 | H139: 40.95 | I139: 8828 | J139: 376649.05 | K139: 2020-04-08 | L139: 213 | M139: INE132H01018
A140: AUROPHARMA | B140: EQ | C140: 432.5 | D140: 476.3 | E140: 426.3 | F140: 438.15 | G140: 438.9 | H140: 445.7 | I140: 13186213 | J140: 5925576015 | K140: 2020-04-08 | L140: 205238 | M140: INE406A01037
A141: AUSOMENT | B141: EQ | C141: 26.1 | D141: 26.1 | E141: 26.1 | F141: 26.1 | G141: 26.1 | H141: 25 | I141: 100 | J141: 2610 | K141: 2020-04-08 | L141: 1 | M141: INE218C01016
A142: AUTOAXLES | B142: EQ | C142: 413 | D142: 423.5 | E142: 398.05 | F142: 413.45 | G142: 416 | H142: 399.3 | I142: 5448 | J142: 2244823.45 | K142: 2020-04-08 | L142: 638 | M142: INE449A01011
A143: AUTOIND | B143: EQ | C143: 11.3 | D143: 11.35 | E143: 11.1 | F143: 11.35 | G143: 11.35 | H143: 10.85 | I143: 9358 | J143: 105383.05 | K143: 2020-04-08 | L143: 68 | M143: INE718H01014
A144: AUTOLITIND | B144: EQ | C144: 13.2 | D144: 14.4 | E144: 13.2 | F144: 13.8 | G144: 13.9 | H144: 13.75 | I144: 4699 | J144: 65525.8 | K144: 2020-04-08 | L144: 68 | M144: INE448A01013
A145: AVADHSUGAR | B145: EQ | C145: 143.55 | D145: 143.55 | E145: 143.55 | F145: 143.55 | G145: 143.55 | H145: 136.75 | I145: 13174 | J145: 1891127.7 | K145: 2020-04-08 | L145: 157 | M145: INE349W01017
A146: AVANTIFEED | B146: EQ | C146: 311 | D146: 341.55 | E146: 310.5 | F146: 341.35 | G146: 341.55 | H146: 310.5 | I146: 748404 | J146: 246839085.1 | K146: 2020-04-08 | L146: 23272 | M146: INE871C01038
A147: AVTNPL | B147: EQ | C147: 25.45 | D147: 27.8 | E147: 24.25 | F147: 27.25 | G147: 27 | H147: 25.05 | I147: 213540 | J147: 5643644.4 | K147: 2020-04-08 | L147: 1601 | M147: INE488D01021
A148: AXISBANK | B148: EQ | C148: 383.75 | D148: 427.7 | E148: 373.5 | F148: 391.35 | G148: 391.4 | H148: 388.85 | I148: 64930772 | J148: 2.575974593e+10 | K148: 2020-04-08 | L148: 769506 | M148: INE238A01034
A149: AXISCADES | B149: EQ | C149: 30.9 | D149: 31.5 | E149: 28.65 | F149: 31.4 | G149: 31.5 | H149: 30 | I149: 39670 | J149: 1232336.75 | K149: 2020-04-08 | L149: 621 | M149: INE555B01013
A150: AXISGOLD | B150: EQ | C150: 3969.9 | D150: 3989 | E150: 3925 | F150: 3973.3 | G150: 3983 | H150: 3919.55 | I150: 701 | J150: 2769851.6 | K150: 2020-04-08 | L150: 206 | M150: INF846K01347
A151: AXISNIFTY | B151: EQ | C151: 1000.01 | D151: 1000.01 | E151: 1000.01 | F151: 1000.01 | G151: 1000.01 | H151: 1007 | I151: 2 | J151: 2000.02 | K151: 2020-04-08 | L151: 1 | M151: INF846K01ZL0
A152: AYMSYNTEX | B152: EQ | C152: 15.5 | D152: 16.8 | E152: 15.5 | F152: 16.5 | G152: 16.5 | H152: 16.1 | I152: 2637 | J152: 43548.55 | K152: 2020-04-08 | L152: 26 | M152: INE193B01039
A153: BAFNAPH | B153: EQ | C153: 16.05 | D153: 16.05 | E153: 16.05 | F153: 16.05 | G153: 16.05 | H153: 15.3 | I153: 272 | J153: 4365.6 | K153: 2020-04-08 | L153: 8 | M153: INE878I01022
A154: BAGFILMS | B154: BE | C154: 1.75 | D154: 1.8 | E154: 1.75 | F154: 1.8 | G154: 1.8 | H154: 1.75 | I154: 3861 | J154: 6912.3 | K154: 2020-04-08 | L154: 20 | M154: INE116D01028
A155: BAJAJ-AUTO | B155: EQ | C155: 2180 | D155: 2383.45 | E155: 2168.55 | F155: 2241.7 | G155: 2260 | H155: 2280.05 | I155: 840875 | J155: 1933266167 | K155: 2020-04-08 | L155: 59866 | M155: INE917I01010
A156: BAJAJCON | B156: EQ | C156: 136 | D156: 148.65 | E156: 135.1 | F156: 137.95 | G156: 138 | H156: 138.15 | I156: 1031633 | J156: 145711259.1 | K156: 2020-04-08 | L156: 26102 | M156: INE933K01021
A157: BAJAJELEC | B157: EQ | C157: 277.3 | D157: 294.5 | E157: 277.3 | F157: 287.8 | G157: 289 | H157: 277.3 | I157: 58251 | J157: 16797537.55 | K157: 2020-04-08 | L157: 3821 | M157: INE193E01025
A158: BAJAJFINSV | B158: EQ | C158: 4575 | D158: 4950 | E158: 4537.8 | F158: 4608.5 | G158: 4604 | H158: 4724.9 | I158: 1113057 | J158: 5259493342 | K158: 2020-04-08 | L158: 158158 | M158: INE918I01018
A159: BAJAJHIND | B159: EQ | C159: 3.05 | D159: 3.05 | E159: 3.05 | F159: 3.05 | G159: 3.05 | H159: 2.95 | I159: 80900 | J159: 246745 | K159: 2020-04-08 | L159: 110 | M159: INE306A01021
A160: BAJAJHLDNG | B160: EQ | C160: 2027.95 | D160: 2073.85 | E160: 1925 | F160: 2024.75 | G160: 2025 | H160: 1978.9 | I160: 25453 | J160: 51363834.45 | K160: 2020-04-08 | L160: 6198 | M160: INE118A01012
A161: BAJFINANCE | B161: EQ | C161: 2184 | D161: 2374 | E161: 2144.15 | F161: 2332.9 | G161: 2329 | H161: 2253.35 | I161: 9109346 | J161: 2.088826331e+10 | K161: 2020-04-08 | L161: 516967 | M161: INE296A01024
A162: BALAJITELE | B162: EQ | C162: 43 | D162: 45 | E162: 40.8 | F162: 41.9 | G162: 42.15 | H162: 43.75 | I162: 194912 | J162: 8414452.4 | K162: 2020-04-08 | L162: 1677 | M162: INE794B01026
A163: BALAMINES | B163: EQ | C163: 277 | D163: 296 | E163: 260.4 | F163: 283.65 | G163: 284.45 | H163: 271.2 | I163: 70594 | J163: 20058887.5 | K163: 2020-04-08 | L163: 2337 | M163: INE050E01027
A164: BALAXI | B164: BE | C164: 82.7 | D164: 82.7 | E164: 75.05 | F164: 79.9 | G164: 79.9 | H164: 79 | I164: 1047 | J164: 78761.9 | K164: 2020-04-08 | L164: 24 | M164: INE618N01014
A165: BALKRISHNA | B165: EQ | C165: 8.6 | D165: 8.8 | E165: 8.35 | F165: 8.8 | G165: 8.8 | H165: 8.4 | I165: 7860 | J165: 67624.35 | K165: 2020-04-08 | L165: 49 | M165: INE875R01011
A166: BALKRISIND | B166: EQ | C166: 822 | D166: 862 | E166: 815 | F166: 821.35 | G166: 818.3 | H166: 823.55 | I166: 444079 | J166: 371870250.3 | K166: 2020-04-08 | L166: 24462 | M166: INE787D01026
A167: BALLARPUR | B167: EQ | C167: 0.4 | D167: 0.4 | E167: 0.3 | F167: 0.35 | G167: 0.35 | H167: 0.35 | I167: 9769871 | J167: 3419941.15 | K167: 2020-04-08 | L167: 514 | M167: INE294A01037
A168: BALMLAWRIE | B168: EQ | C168: 84 | D168: 87.9 | E168: 81 | F168: 84.75 | G168: 85.65 | H168: 85.5 | I168: 202053 | J168: 17357055.25 | K168: 2020-04-08 | L168: 3105 | M168: INE164A01016
A169: BALPHARMA | B169: EQ | C169: 38.9 | D169: 41.7 | E169: 38.9 | F169: 41.7 | G169: 41.7 | H169: 37.95 | I169: 40933 | J169: 1688199.5 | K169: 2020-04-08 | L169: 518 | M169: INE083D01012
A170: BALRAMCHIN | B170: EQ | C170: 123.85 | D170: 126.4 | E170: 123 | F170: 126.4 | G170: 126.4 | H170: 120.4 | I170: 642515 | J170: 80884980.2 | K170: 2020-04-08 | L170: 7125 | M170: INE119A01028
A171: BANARBEADS | B171: EQ | C171: 30.25 | D171: 32.5 | E171: 29.6 | F171: 29.75 | G171: 29.75 | H171: 31.5 | I171: 160 | J171: 4873.85 | K171: 2020-04-08 | L171: 26 | M171: INE655B01011
A172: BANARISUG | B172: EQ | C172: 900 | D172: 925 | E172: 880 | F172: 886.1 | G172: 880 | H172: 893.1 | I172: 410 | J172: 368979.1 | K172: 2020-04-08 | L172: 94 | M172: INE459A01010
A173: BANCOINDIA | B173: EQ | C173: 65.45 | D173: 67.5 | E173: 64.1 | F173: 65.95 | G173: 66 | H173: 65.45 | I173: 40062 | J173: 2654130.6 | K173: 2020-04-08 | L173: 1013 | M173: INE213C01025
A174: BANDHANBNK | B174: EQ | C174: 167.95 | D174: 209.05 | E174: 167.5 | F174: 193.75 | G174: 195.25 | H174: 167.25 | I174: 30692919 | J174: 5833285762 | K174: 2020-04-08 | L174: 332020 | M174: INE545U01014
A175: BANG | B175: EQ | C175: 12.05 | D175: 13.1 | E175: 11.9 | F175: 13.1 | G175: 13.1 | H175: 12.5 | I175: 1590 | J175: 20489 | K175: 2020-04-08 | L175: 31 | M175: INE863I01016
A176: BANKBARODA | B176: EQ | C176: 48 | D176: 51.5 | E176: 47.3 | F176: 48.35 | G176: 48.45 | H176: 48.15 | I176: 27159204 | J176: 1340103716 | K176: 2020-04-08 | L176: 77070 | M176: INE028A01039
A177: BANKBEES | B177: EQ | C177: 190 | D177: 205.4 | E177: 186.06 | F177: 191.28 | G177: 191.4 | H177: 192.12 | I177: 676832 | J177: 131368353.2 | K177: 2020-04-08 | L177: 10023 | M177: INF204KB15I9
A178: BANKINDIA | B178: EQ | C178: 32.7 | D178: 34.75 | E178: 32.5 | F178: 33.35 | G178: 33.25 | H178: 32.95 | I178: 1236627 | J178: 41574499.75 | K178: 2020-04-08 | L178: 6257 | M178: INE084A01016
A179: BANSWRAS | B179: EQ | C179: 77.4 | D179: 77.4 | E179: 70.2 | F179: 71.15 | G179: 70.2 | H179: 73.75 | I179: 22922 | J179: 1667255.55 | K179: 2020-04-08 | L179: 137 | M179: INE629D01012
A180: BASF | B180: EQ | C180: 1154 | D180: 1154 | E180: 1105 | F180: 1119.95 | G180: 1120.5 | H180: 1138.25 | I180: 26139 | J180: 29425244.35 | K180: 2020-04-08 | L180: 2640 | M180: INE373A01013
A181: BASML | B181: EQ | C181: 74.05 | D181: 84 | E181: 74.05 | F181: 80 | G181: 80 | H181: 78.7 | I181: 1648 | J181: 135366.45 | K181: 2020-04-08 | L181: 154 | M181: INE186H01014
A182: BATAINDIA | B182: EQ | C182: 1246.5 | D182: 1339 | E182: 1228 | F182: 1240.05 | G182: 1238.95 | H182: 1246.4 | I182: 1346088 | J182: 1726485633 | K182: 2020-04-08 | L182: 66274 | M182: INE176A01028
A183: BAYERCROP | B183: EQ | C183: 3500 | D183: 3946.6 | E183: 3499.3 | F183: 3818.15 | G183: 3772.15 | H183: 3510 | I183: 32833 | J183: 125437264 | K183: 2020-04-08 | L183: 6737 | M183: INE462A01022
A184: BBL | B184: EQ | C184: 590 | D184: 621.25 | E184: 590 | F184: 613.05 | G184: 621.25 | H184: 589.55 | I184: 9335 | J184: 5684085.45 | K184: 2020-04-08 | L184: 804 | M184: INE464A01028
A185: BBTC | B185: EQ | C185: 810 | D185: 854.3 | E185: 774 | F185: 784.2 | G185: 787.95 | H185: 788.4 | I185: 76612 | J185: 62014517.65 | K185: 2020-04-08 | L185: 5281 | M185: INE050A01025
A186: BCG | B186: EQ | C186: 3.6 | D186: 3.65 | E186: 3.55 | F186: 3.65 | G186: 3.65 | H186: 3.5 | I186: 305718 | J186: 1113234.95 | K186: 2020-04-08 | L186: 149 | M186: INE425B01027
A187: BCP | B187: EQ | C187: 10.75 | D187: 10.75 | E187: 10.5 | F187: 10.75 | G187: 10.75 | H187: 10.25 | I187: 8192 | J187: 87934.6 | K187: 2020-04-08 | L187: 28 | M187: INE905P01028
A188: BDL | B188: EQ | C188: 191 | D188: 229 | E188: 188.2 | F188: 218.2 | G188: 216.4 | H188: 191.4 | I188: 448405 | J188: 97968192.25 | K188: 2020-04-08 | L188: 13672 | M188: INE171Z01018
A189: BEARDSELL | B189: EQ | C189: 6.7 | D189: 7.3 | E189: 6.7 | F189: 7.3 | G189: 7.3 | H189: 7.05 | I189: 1250 | J189: 8417 | K189: 2020-04-08 | L189: 4 | M189: INE520H01022
A190: BEDMUTHA | B190: EQ | C190: 12.8 | D190: 13.05 | E190: 12.45 | F190: 12.45 | G190: 12.45 | H190: 13.1 | I190: 19584 | J190: 245429.15 | K190: 2020-04-08 | L190: 32 | M190: INE844K01012
A191: BEL | B191: EQ | C191: 69 | D191: 71.3 | E191: 65.1 | F191: 66.4 | G191: 66.5 | H191: 69 | I191: 16699885 | J191: 1138705070 | K191: 2020-04-08 | L191: 69587 | M191: INE263A01024
A192: BEML | B192: EQ | C192: 492 | D192: 523.5 | E192: 492 | F192: 503.6 | G192: 503 | H192: 475.95 | I192: 890527 | J192: 458689246.6 | K192: 2020-04-08 | L192: 23670 | M192: INE258A01016
A193: BEPL | B193: EQ | C193: 31 | D193: 32.75 | E193: 30.3 | F193: 31.25 | G193: 31.6 | H193: 30.25 | I193: 333595 | J193: 10578641.1 | K193: 2020-04-08 | L193: 3321 | M193: INE922A01025
A194: BERGEPAINT | B194: EQ | C194: 479.9 | D194: 487.65 | E194: 460 | F194: 463.5 | G194: 462 | H194: 479.2 | I194: 1729062 | J194: 817908730.6 | K194: 2020-04-08 | L194: 32950 | M194: INE463A01038
A195: BFINVEST | B195: EQ | C195: 258 | D195: 268.8 | E195: 244.6 | F195: 246.3 | G195: 248.95 | H195: 257.45 | I195: 4938 | J195: 1236639.95 | K195: 2020-04-08 | L195: 244 | M195: INE878K01010
A196: BFUTILITIE | B196: EQ | C196: 158.35 | D196: 158.35 | E196: 151.05 | F196: 154.05 | G196: 153.7 | H196: 150.85 | I196: 138134 | J196: 21700813.75 | K196: 2020-04-08 | L196: 1649 | M196: INE243D01012
A197: BGRENERGY | B197: EQ | C197: 22.1 | D197: 22.85 | E197: 20.95 | F197: 21.1 | G197: 21.15 | H197: 22.2 | I197: 172282 | J197: 3763089.75 | K197: 2020-04-08 | L197: 1108 | M197: INE661I01014
A198: BHAGERIA | B198: EQ | C198: 85 | D198: 91.05 | E198: 80.65 | F198: 81.6 | G198: 82.3 | H198: 84.2 | I198: 34795 | J198: 2944870.7 | K198: 2020-04-08 | L198: 925 | M198: INE354C01027
A199: BHAGYANGR | B199: EQ | C199: 14.05 | D199: 15.2 | E199: 14 | F199: 14.4 | G199: 14.4 | H199: 14.4 | I199: 1338 | J199: 19622.25 | K199: 2020-04-08 | L199: 50 | M199: INE458B01036
A200: BHAGYAPROP | B200: EQ | C200: 18 | D200: 20 | E200: 18 | F200: 20 | G200: 20 | H200: 19 | I200: 999 | J200: 19011 | K200: 2020-04-08 | L200: 5 | M200: INE363W01018
... 1470 more rows

Sheet Sheet1 (hidden)

Sheet Sheet3 (hidden)

Sheet Sheet4 (hidden)

Sheet Sheet5 (hidden)
